Workbook

Sheet Table of Contents
A1: Table of Contents
A2: CapRate_AC F ATS | C2: AIR CARRIER - FREIGHT - AIR TRANSPORT SERVICES
A3: S&D_AC F ATS | C3: AIR CARRIER - FREIGHT - AIR TRANSPORT SERVICES
A4: Debt_AC F ATS | C4: AIR CARRIER - FREIGHT - AIR TRANSPORT SERVICES
A5: CF Multiples_AC F ATS | C5: AIR CARRIER - FREIGHT - AIR TRANSPORT SERVICES
A6: CapRate_AC F Atlas Air | C6: AIR CARRIER - FREIGHT - ATLAS AIR
A7: S&D_AC F Atlas Air | C7: AIR CARRIER - FREIGHT - ATLAS AIR
A8: Debt_AC F Atlas Air | C8: AIR CARRIER - FREIGHT - ATLAS AIR
A9: CF Multiples_AC F Atlas Air | C9: AIR CARRIER - FREIGHT - ATLAS AIR
A10: CapRate_AC F FEDEX | C10: AIR CARRIER - FREIGHT - FEDEX
A11: S&D_AC F FEDEX | C11: AIR CARRIER - FREIGHT - FEDEX
A12: Debt_AC F FEDEX | C12: AIR CARRIER - FREIGHT - FEDEX
A13: CF Multiples_AC F FEDEX | C13: AIR CARRIER - FREIGHT - FEDEX
A14: CapRate_AC F UPS | C14: AIR CARRIER - FREIGHT - UPS
A15: S&D_AC F UPS | C15: AIR CARRIER - FREIGHT - UPS
A16: Debt_AC F UPS | C16: AIR CARRIER - FREIGHT - UPS
A17: CF Multiples_AC F UPS | C17: AIR CARRIER - FREIGHT - UPS
A18: CapRate_AC F ALL | C18: AIR CARRIER - FREIGHT - ALL
A19: S&D_AC F ALL | C19: AIR CARRIER - FREIGHT - ALL
A20: Debt_AC F ALL | C20: AIR CARRIER - FREIGHT - ALL
A21: CF Multiples_AC F ALL | C21: AIR CARRIER - FREIGHT - ALL
A22: CapRate_AC P ALL | C22: AIR CARRIER - PASSENGER - ALL
A23: S&D_AC P ALL | C23: AIR CARRIER - PASSENGER - ALL
A24: Debt_AC P ALL | C24: AIR CARRIER - PASSENGER - ALL
A25: CF Multiples_AC P ALL | C25: AIR CARRIER - PASSENGER - ALL
A26: CapRate_AC P American | C26: AIR CARRIER - PASSENGER - AMERICAN
A27: S&D_AC P American | C27: AIR CARRIER - PASSENGER - AMERICAN
A28: Debt_AC P American | C28: AIR CARRIER - PASSENGER - AMERICAN
A29: CF Multiples_AC P American | C29: AIR CARRIER - PASSENGER - AMERICAN
A30: CapRate_AC P Delta | C30: AIR CARRIER - PASSENGER - DELTA
A31: S&D_AC P Delta | C31: AIR CARRIER - PASSENGER - DELTA
A32: Debt_AC P Delta | C32: AIR CARRIER - PASSENGER - DELTA
A33: CF Multiples_AC P Delta | C33: AIR CARRIER - PASSENGER - DELTA
A34: CapRate_AC P Skywest | C34: AIR CARRIER - PASSENGER - SKYWEST
A35: S&D_AC P Skywest | C35: AIR CARRIER - PASSENGER - SKYWEST
A36: Debt_AC P Skywest | C36: AIR CARRIER - PASSENGER - SKYWEST
A37: CF Multiples_AC P Skywest | C37: AIR CARRIER - PASSENGER - SKYWEST
A38: CapRate_AC P Southwest | C38: AIR CARRIER - PASSENGER - SOUTHWEST
A39: S&D_AC P Southwest | C39: AIR CARRIER - PASSENGER - SOUTHWEST
A40: Debt_AC P Southwest | C40: AIR CARRIER - PASSENGER - SOUTHWEST
A41: CF Multiples_AC P Southwest | C41: AIR CARRIER - PASSENGER - SOUTHWEST
A42: CapRate_AC P United | C42: AIR CARRIER - PASSENGER - UNITED CONTINENTAL
A43: S&D_AC P United | C43: AIR CARRIER - PASSENGER - UNITED CONTINENTAL
A44: Debt_AC P United | C44: AIR CARRIER - PASSENGER - UNITED CONTINENTAL
A45: CF Multiples_AC P United | C45: AIR CARRIER - PASSENGER - UNITED CONTINENTAL
A46: CapRate_EU | C46: ELECTRIC UTILITIES
A47: S&D_EU | C47: ELECTRIC UTILITIES
A48: Debt_EU | C48: ELECTRIC UTILITIES
A49: CF Multiples_EU | C49: ELECTRIC UTILITIES
A50: CapRate_EU Wholesale | C50: ELECTRIC UTILITIES - WHOLESALE
A51: S&D_EU Wholesale | C51: ELECTRIC UTILITIES - WHOLESALE
A52: Debt_EU Wholesale | C52: ELECTRIC UTILITIES - WHOLESALE
A53: CF Multiples_EU Wholesale | C53: ELECTRIC UTILITIES - WHOLESALE
A54: CapRate_Gas Dist | C54: GAS DISTRIBUTION COMPANIES
A55: S&D_Gas Dist | C55: GAS DISTRIBUTION COMPANIES
A56: Debt_Gas Dist | C56: GAS DISTRIBUTION COMPANIES
A57: CF Multiples_Gas Dist | C57: GAS DISTRIBUTION COMPANIES
A58: CapRate_GP | C58: GAS PIPELINE COMPANIES
A59: S&D_GP | C59: GAS PIPELINE COMPANIES
A60: Debt_GP | C60: GAS PIPELINE COMPANIES
A61: CF Multiples_GP | C61: GAS PIPELINE COMPANIES
A62: CapRate_LQ PL | C62: LIQUID PIPELINE COMPANIES
A63: S&D_LQ PL | C63: LIQUID PIPELINE COMPANIES
A64: Debt_LQ PL | C64: LIQUID PIPELINE COMPANIES
A65: CF Multiples_LQ PL | C65: LIQUID PIPELINE COMPANIES
A66: CapRate_Private Water | C66: PRIVATE WATER COMPANIES
A67: S&D_Private Water | C67: PRIVATE WATER COMPANIES
A68: Debt_Private Water | C68: PRIVATE WATER COMPANIES
A69: CF Multiples_Private Water | C69: PRIVATE WATER COMPANIES
A70: CapRate_RR | C70: RAILROAD COMPANIES
A71: S&D_RR | C71: RAILROAD COMPANIES
A72: Debt_RR | C72: RAILROAD COMPANIES
A73: CF Multiples_RR | C73: RAILROAD COMPANIES

Sheet CapRate_AC F ATS
C1: KENTUCKY DEPARTMENT OF REVENUE
C2: DIVISION OF STATE VALUATION, PUBLIC SERVICE BRANCH
C4: 2020 Tax Year
C5: DIRECT CAPITALIZATION RATE STUDY
C11: AIR TRANSPORT SERVICES
C12: Cash Flow Direct Capitalization Rate
A14: Source of | B14: Capital | C14: Cost of | D14: Tax | E14: Cost of Capital | F14: Weighted
A15: Capital | B15: Structure | C15: Capital | D15: Rate | E15: After Tax | F15: Cost
A18: EQUITY | B18: 0.48 | C18: 0.1999 | E18: =+C18 -> 0.1999 | F18: =+E18*B18 -> 0.095952
A20: DEBT | B20: 0.52 | C20: 0.0613 | D20: 0.26 | E20: =+C20*(1-D20) -> 0.045362 | F20: =+B20*E20 -> 0.02358824
A22: TOTAL | B22: =+B18+B20 -> 1 | F22: =+F18+F20 -> 0.11954024
E24: SAY | F24: 0.1195

Sheet S&D_AC F ATS
A1: KENTUCKY DEPARTMENT OF REVENUE
A2: DIVISION OF STATE VALUATION, PUBLIC SERVICE BRANCH
A3: 2020 Tax Year
A6: The capital structure of this industry is a representative or typical capital structure of the group, not that of the present owner. The capital structure selected reflects the most likely arrangement of a prospective buyer.
A9: Industry > Air Carriers - Freight
H11: Dec. 31, 2019
D12: 4TH Qtr | F12: Average | H12: Common Stock | I12: Dec. 31, 2019 | J12: Dec. 31, 2019
B13: Ticker | C13: Industry | D13: Stock Price | F13: 4th Qtr | G13: Dec. 31, 2019 | H13: Shares Outstanding | I13: Preferred Stock | J13: Long Term Debt **
A14: Company | B14: Symbol | C14: Group | D14: High | E14: Low | F14: Stock Price | G14: Stock Price | H14: Net of Treasury | I14: BV | J14: BV
A15: VL | B15: VL | C15: VL | D15: 10K / SEC | E15: 10K / SEC | F15: 10K / SEC | G15: Yahoo | H15: 10K / SEC | I15: 10K / SEC | J15: 10K / SEC
A17: Air Transport Services Group | B17: ATSG | C17: Air Trans | D17: 25.19 | E17: 19.1 | F17: =AVERAGE(D17:E17) -> 22.145 | G17: 23.46 | H17: 59329431 | I17: 0 | J17: =1469677000+14707000 -> 1484384000
D25: Dec. 31, 2019 | E25: Dec. 31, 2019 | F25: Dec. 31, 2019 | G25: Dec. 31, 2019 | H25: Dec. 31, 2019 | I25: Dec. 31, 2019 | J25: Dec. 31, 2019
B26: Ticker | C26: Industry | D26: Common Stock | E26: Preferred Stock | F26: Op Leased Property * | G26: Long Term Debt | H26: Total Market Value | I26: % Common Stock | J26: % LT Debt
A27: Company | B27: Symbol | C27: Group | D27: FMV | E27: FMV | F27: FMV | G27: FMV | H27: CS+LTD +PS
A28: VL | B28: VL | C28: VL | D28: Calculated | E28: 10K / SEC | F28: 10K / SEC | G28: 10K / SEC | H28: Calculated | I28: Calculated | J28: Calculated
A30: =+A17 -> Air Transport Services Group | B30: =+B17 -> ATSG | C30: =+C17 -> Air Trans | D30: =(+H17)*G17 -> 1391868451 | E30: =+K17 -> 0 | F30: 44302000 | G30: =(1481.7/1484.4)*J17 -> 1481684029 | H30: =+D30+E30+F30+G30 -> 2917854480 | I30: =+D30/H30 -> 0.4770177747 | J30: =(+E30+F30+G30)/H30 -> 0.5229822253
A35: * Operating lease rents included are for aircraft, engines, office and facilities, purchased capacity, vehicles, real property, and other operating leased property. | H35: RANGE | I35: 19.35% - 77.04% | J35: 22.96% - 80.65%
A36: ** Long Term Debt includes the capital lease debt plus current maturities. | H36: Median | I36: =MEDIAN(I30:I30) -> 0.4770177747 | J36: =MEDIAN(J30:J30) -> 0.5229822253
A37: Any difference between the lease liability value and lease asset value is prepayments, lease incentives, and/or other direct costs. | H37: Average | I37: =AVERAGE(I30:I30) -> 0.4770177747 | J37: =AVERAGE(J30:J30) -> 0.5229822253
A38: Maintenance, real estate taxes,insurance and other operating expenses associated with the leases are excluded from the ROU measurement.
H39: SAY | I39: 0.48 | J39: 0.52
B46: Op Lese Expense | C46: Company | D46: ROU Values Assets | E46: ROU Values Liab.
B47: 301984000 | C47: =+A30 -> Air Transport Services Group | D47: 44302000 | E47: 43191000

Sheet Debt_AC F ATS
A1: KENTUCKY DEPARTMENT OF REVENUE
A2: DIVISION OF STATE VALUATION, PUBLIC SERVICE BRANCH
A3: 2020 Tax Year
A5: Industry > Air Carriers - Freight
B7: Ticker | C7: Industry | D7: Beta | E7: Actual | F7: Financial | G7: S&P | H7: Moody's /Mergent Bond | I7: Mergent Bond
A8: Company | B8: Symbol | C8: Group | E8: Tax Rate | F8: Strength | G8: Rating | H8: Rating | I8: Debt Rate
A9: VL | B9: VL | C9: VL | D9: VL | E9: VL | F9: VL | G9: S&P | H9: Mergent Bond | I9: Mergent Bond
A11: Air Transport Services Group | B11: ATSG | C11: AirTrans | D11: 1.2 | E11: 0.19 | F11: B | H11: Ba2 | I11: 0.0613
C13: RANGE | D13: 1.00- 1.75 | E13: 15.00 - 25.50 | I13: 3.37% - 6.13%
C14: Median | D14: =MEDIAN(D11:D11) -> 1.2 | E14: =MEDIAN(E11:E11) -> 0.19 | I14: =MEDIAN(I11:I11) -> 0.0613
C15: Average | D15: =AVERAGE(D11:D11) -> 1.2 | E15: =AVERAGE(E11:E11) -> 0.19 | I15: =AVERAGE(I11:I11) -> 0.0613
H17: Say | I17: 0.0613

Sheet CF Multiples_AC F ATS
A1: KENTUCKY DEPARTMENT OF REVENUE
A2: DIVISION OF STATE VALUATION, PUBLIC SERVICE BRANCH
A3: 2020 Tax Year
A5: Industry > Air Carriers - Freight
D7: CASH FLOW MULTIPLIERS
D8: YEAR END 12/31/2019
B11: Ticker | D11: Cash Flow | E11: Cash Flow | F11: Computed
A12: Company | B12: Symbol | C12: Price | D12: Per Share | E12: Multiple | F12: Inverse
C13: VL | D13: VL Actual 2019 CF
A16: Air Transport Services Group | B16: ATSG | C16: 23.46 | D16: 4.69 | E16: =C16/D16 -> 5.002132196 | F16: =1/E16 -> 0.1999147485
B18: RANGE | C18: 23.46-158.00 | D18: 4.69-28.67 | E18: 1.85-10.10 | F18: 9.90-53.91%
B19: Median | C19: =MEDIAN(C16:C16) -> 23.46 | D19: =MEDIAN(D16:D16) -> 4.69 | E19: =MEDIAN(E16:E16) -> 5.002132196 | F19: =MEDIAN(F16:F16) -> 0.1999147485
B20: Average | C20: =AVERAGE(C16:C16) -> 23.46 | D20: =AVERAGE(D16:D16) -> 4.69 | E20: =AVERAGE(E16:E16) -> 5.002132196 | F20: =AVERAGE(F16:F16) -> 0.1999147485
E22: SAY | F22: 0.1999

Sheet CapRate_AC F Atlas Air
C1: KENTUCKY DEPARTMENT OF REVENUE
C2: DIVISION OF STATE VALUATION, PUBLIC SERVICE BRANCH
C4: 2020 Tax Year
C5: DIRECT CAPITALIZATION RATE STUDY
C11: ATLAS AIR
C12: Cash Flow Direct Capitalization Rate
A14: Source of | B14: Capital | C14: Cost of | D14: Tax | E14: Cost of Capital | F14: Weighted
A15: Capital | B15: Structure | C15: Capital | D15: Rate | E15: After Tax | F15: Cost
A18: EQUITY | B18: 0.19 | C18: 0.5391 | E18: =+C18 -> 0.5391 | F18: =+E18*B18 -> 0.102429
A20: DEBT | B20: 0.81 | C20: 0.0393 | D20: 0.26 | E20: =+C20*(1-D20) -> 0.029082 | F20: =+B20*E20 -> 0.02355642
A22: TOTAL | B22: =+B18+B20 -> 1 | F22: =+F18+F20 -> 0.12598542
E24: SAY | F24: 0.126

Sheet S&D_AC F Atlas Air
A1: KENTUCKY DEPARTMENT OF REVENUE
A2: DIVISION OF STATE VALUATION, PUBLIC SERVICE BRANCH
A3: 2020 Tax Year
A6: The capital structure of this industry is a representative or typical capital structure of the group, not that of the present owner. The capital structure selected reflects the most likely arrangement of a prospective buyer.
A9: Industry > Air Carriers - Freight
H11: Dec. 31, 2019
D12: 4TH Qtr | F12: Average | H12: Common Stock | I12: Dec. 31, 2019 | J12: Dec. 31, 2019
B13: Ticker | C13: Industry | D13: Stock Price | F13: 4th Qtr | G13: Dec. 31, 2019 | H13: Shares Outstanding | I13: Preferred Stock | J13: Long Term Debt **
A14: Company | B14: Symbol | C14: Group | D14: High | E14: Low | F14: Stock Price | G14: Stock Price | H14: Net of Treasury | I14: BV | J14: BV
A15: VL | B15: VL | C15: VL | D15: 10K / SEC | E15: 10K / SEC | F15: 10K / SEC | G15: Yahoo | H15: 10K / SEC | I15: 10K / SEC | J15: 10K / SEC
A17: Atlas Air | B17: AAWW | C17: Air Trans | D17: 28.53 | E17: 20.96 | F17: =AVERAGE(D17:E17) -> 24.745 | G17: 27.57 | H17: 25870876 | I17: 0 | J17: 2340172000
D25: Dec. 31, 2019 | E25: Dec. 31, 2019 | F25: Dec. 31, 2019 | G25: Dec. 31, 2019 | H25: Dec. 31, 2019 | I25: Dec. 31, 2019 | J25: Dec. 31, 2019
B26: Ticker | C26: Industry | D26: Common Stock | E26: Preferred Stock | F26: Op Leased Property * | G26: Long Term Debt | H26: Total Market Value | I26: % Common Stock | J26: % LT Debt
A27: Company | B27: Symbol | C27: Group | D27: FMV | E27: FMV | F27: FMV | G27: FMV | H27: CS+LTD +PS
A28: VL | B28: VL | C28: VL | D28: Calculated | E28: 10K / SEC | F28: 10K / SEC | G28: 10K / SEC | H28: Calculated | I28: Calculated | J28: Calculated
A30: =+A17 -> Atlas Air | B30: =+B17 -> AAWW | C30: =+C17 -> Air Trans | D30: =(+H17)*G17 -> 713260051.3 | E30: =+K17 -> 0 | F30: =+E47 -> 534805000 | G30: =+J17*(2464338/2364517) -> 2438965246 | H30: =+D30+E30+F30+G30 -> 3687030297 | I30: =+D30/H30 -> 0.1934510958 | J30: =(+E30+F30+G30)/H30 -> 0.8065489042
A35: * Operating lease rents included are for aircraft, engines, office and facilities, purchased capacity, vehicles, real property, and other operating leased property. | H35: RANGE | I35: 19.35% - 77.04% | J35: 22.96% - 80.65%
A36: ** Long Term Debt includes the capital lease debt plus current maturities. | H36: Median | I36: =MEDIAN(I30:I30) -> 0.1934510958 | J36: =MEDIAN(J30:J30) -> 0.8065489042
A37: Any difference between the lease liability value and lease asset value is prepayments, lease incentives, and/or other direct costs. | H37: Average | I37: =AVERAGE(I30:I30) -> 0.1934510958 | J37: =AVERAGE(J30:J30) -> 0.8065489042
A38: Maintenance, real estate taxes,insurance and other operating expenses associated with the leases are excluded from the ROU measurement.
H39: SAY | I39: 0.19 | J39: 0.81
B46: Op Lese Expense | C46: Company | D46: ROU Values Assets | E46: ROU Values Liab.
B47: 155639000 | C47: =+A30 -> Atlas Air | D47: 231133000 | E47: =141973000+392832000 -> 534805000

Sheet Debt_AC F Atlas Air
A1: KENTUCKY DEPARTMENT OF REVENUE
A2: DIVISION OF STATE VALUATION, PUBLIC SERVICE BRANCH
A3: 2020 Tax Year
A5: Industry > Air Carriers - Freight
B7: Ticker | C7: Industry | D7: Beta | E7: Actual | F7: Financial | G7: S&P | H7: Moody's /Mergent Bond | I7: Mergent Bond
A8: Company | B8: Symbol | C8: Group | E8: Tax Rate | F8: Strength | G8: Rating | H8: Rating | I8: Debt Rate
A9: VL | B9: VL | C9: VL | D9: VL | E9: VL | F9: VL | G9: S&P | H9: Mergent Bond | I9: Mergent Bond
A11: Atlas Air Worldwide Holdings | B11: AAWW | C11: AirTrans | D11: 1.75 | E11: 0.15 | F11: B+ | H11: Baa | I11: 0.0393
C13: RANGE | D13: 1.00- 1.75 | E13: 15.00 - 25.50 | I13: 3.37% - 6.13%
C14: Median | D14: =MEDIAN(D11:D11) -> 1.75 | E14: =MEDIAN(E11:E11) -> 0.15 | I14: =MEDIAN(I11:I11) -> 0.0393
C15: Average | D15: =AVERAGE(D11:D11) -> 1.75 | E15: =AVERAGE(E11:E11) -> 0.15 | I15: =AVERAGE(I11:I11) -> 0.0393
H17: Say | I17: 0.0393

Sheet CF Multiples_AC F Atlas Air
A1: KENTUCKY DEPARTMENT OF REVENUE
A2: DIVISION OF STATE VALUATION, PUBLIC SERVICE BRANCH
A3: 2020 Tax Year
A5: Industry > Air Carriers - Freight
D7: CASH FLOW MULTIPLIERS
D8: YEAR END 12/31/2019
B11: Ticker | D11: Cash Flow | E11: Cash Flow | F11: Computed
A12: Company | B12: Symbol | C12: Price | D12: Per Share | E12: Multiple | F12: Inverse
C13: VL | D13: VL Actual 2019 CF
A16: Atlas Air Worldwide Holdings | B16: AAWW | C16: 27.08 | D16: 14.6 | E16: =C16/D16 -> 1.854794521 | F16: =1/E16 -> 0.5391432792
B18: RANGE | C18: 23.46-158.00 | D18: 4.69-28.67 | E18: 1.85-10.10 | F18: 9.90-53.91%
B19: Median | C19: =MEDIAN(C16:C16) -> 27.08 | D19: =MEDIAN(D16:D16) -> 14.6 | E19: =MEDIAN(E16:E16) -> 1.854794521 | F19: =MEDIAN(F16:F16) -> 0.5391432792
B20: Average | C20: =AVERAGE(C16:C16) -> 27.08 | D20: =AVERAGE(D16:D16) -> 14.6 | E20: =AVERAGE(E16:E16) -> 1.854794521 | F20: =AVERAGE(F16:F16) -> 0.5391432792
E22: SAY | F22: 0.5391

Sheet CapRate_AC F FEDEX
C1: KENTUCKY DEPARTMENT OF REVENUE
C2: DIVISION OF STATE VALUATION, PUBLIC SERVICE BRANCH
C4: 2020 Tax Year
C5: DIRECT CAPITALIZATION RATE STUDY
C11: FEDEX
C12: Cash Flow Direct Capitalization Rate
A14: Source of | B14: Capital | C14: Cost of | D14: Tax | E14: Cost of Capital | F14: Weighted
A15: Capital | B15: Structure | C15: Capital | D15: Rate | E15: After Tax | F15: Cost
A18: EQUITY | B18: 0.55 | C18: 0.1815 | E18: =+C18 -> 0.1815 | F18: =+E18*B18 -> 0.099825
A20: DEBT | B20: 0.45 | C20: 0.0393 | D20: 0.26 | E20: =+C20*(1-D20) -> 0.029082 | F20: =+B20*E20 -> 0.0130869
A22: TOTAL | B22: =+B18+B20 -> 1 | F22: =+F18+F20 -> 0.1129119
E24: SAY | F24: 0.1129

Sheet S&D_AC F FEDEX
A1: KENTUCKY DEPARTMENT OF REVENUE
A2: DIVISION OF STATE VALUATION, PUBLIC SERVICE BRANCH
A3: 2020 Tax Year
A6: The capital structure of this industry is a representative or typical capital structure of the group, not that of the present owner. The capital structure selected reflects the most likely arrangement of a prospective buyer.
A9: Industry > Air Carriers - Freight
H11: Dec. 31, 2019
D12: 4TH Qtr | F12: Average | H12: Common Stock | I12: Dec. 31, 2019 | J12: Dec. 31, 2019
B13: Ticker | C13: Industry | D13: Stock Price | F13: 4th Qtr | G13: Dec. 31, 2019 | H13: Shares Outstanding | I13: Preferred Stock | J13: Long Term Debt **
A14: Company | B14: Symbol | C14: Group | D14: High | E14: Low | F14: Stock Price | G14: Stock Price | H14: Net of Treasury | I14: BV | J14: BV
A15: VL | B15: VL | C15: VL | D15: 10K / SEC | E15: 10K / SEC | F15: 10K / SEC | G15: Yahoo | H15: 10K / SEC | I15: 10K / SEC | J15: 10K / SEC
A17: FedEx Corp *** | B17: FDX | C17: Air Trans | D17: 165.67 | E17: 138.39 | F17: =AVERAGE(D17:E17) -> 152.03 | G17: 160.05 | H17: 318000000 | I17: 0 | J17: =18691000000+16000000 -> 18707000000
D25: Dec. 31, 2019 | E25: Dec. 31, 2019 | F25: Dec. 31, 2019 | G25: Dec. 31, 2019 | H25: Dec. 31, 2019 | I25: Dec. 31, 2019 | J25: Dec. 31, 2019
B26: Ticker | C26: Industry | D26: Common Stock | E26: Preferred Stock | F26: Op Leased Property * | G26: Long Term Debt | H26: Total Market Value | I26: % Common Stock | J26: % LT Debt
A27: Company | B27: Symbol | C27: Group | D27: FMV | E27: FMV | F27: FMV | G27: FMV | H27: CS+LTD +PS
A28: VL | B28: VL | C28: VL | D28: Calculated | E28: 10K / SEC | F28: 10K / SEC | G28: 10K / SEC | H28: Calculated | I28: Calculated | J28: Calculated
A30: =+A17 -> FedEx Corp *** | B30: =+B17 -> FDX | C30: =+C17 -> Air Trans | D30: =((+H17)*G17)-9225000000 -> 41670900000 | E30: =+K17 -> 0 | F30: =+E47 -> 14360000000 | G30: =+J17*(19600/18600) -> 1.971275269e+10 | H30: =+D30+E30+F30+G30 -> 7.574365269e+10 | I30: =+D30/H30 -> 0.5501569903 | J30: =(+E30+F30+G30)/H30 -> 0.4498430097
A35: * Operating lease rents included are for aircraft, engines, office and facilities, purchased capacity, vehicles, real property, and other operating leased property. | H35: RANGE | I35: 19.35% - 77.04% | J35: 22.96% - 80.65%
A36: ** Long Term Debt includes the capital lease debt plus current maturities. | H36: Median | I36: =MEDIAN(I30:I30) -> 0.5501569903 | J36: =MEDIAN(J30:J30) -> 0.4498430097
A37: *** FedEx balance sheet came from 10Q Nov. 30, 2019 | H37: Average | I37: =AVERAGE(I30:I30) -> 0.5501569903 | J37: =AVERAGE(J30:J30) -> 0.4498430097
A38: Any difference between the lease liability value and lease asset value is prepayments, lease incentives, and/or other direct costs.
A39: Maintenance, real estate taxes,insurance and other operating expenses associated with the leases are excluded from the ROU measurement. | H39: SAY | I39: 0.55 | J39: 0.45
B46: Op Lese Expense | C46: Company | D46: ROU Values Assets | E46: ROU Values Liab.
B47: 2875000000 | C47: =+A30 -> FedEx Corp *** | D47: 14097000000 | E47: 14360000000

Sheet Debt_AC F FEDEX
A1: KENTUCKY DEPARTMENT OF REVENUE
A2: DIVISION OF STATE VALUATION, PUBLIC SERVICE BRANCH
A3: 2020 Tax Year
A5: Industry > Air Carriers - Freight
B7: Ticker | C7: Industry | D7: Beta | E7: Actual | F7: Financial | G7: S&P | H7: Moody's /Mergent Bond | I7: Mergent Bond
A8: Company | B8: Symbol | C8: Group | E8: Tax Rate | F8: Strength | G8: Rating | H8: Rating | I8: Debt Rate
A9: VL | B9: VL | C9: VL | D9: VL | E9: VL | F9: VL | G9: S&P | H9: Mergent Bond | I9: Mergent Bond
A11: FedEx Corp | B11: FDX | C11: AirTrans | D11: 1.4 | E11: 0.255 | F11: A++ | G11: BBB | H11: Baa2 | I11: 0.0393
C13: RANGE | D13: 1.00- 1.75 | E13: 15.00 - 25.50 | I13: 3.37% - 6.13%
C14: Median | D14: =MEDIAN(D11:D11) -> 1.4 | E14: =MEDIAN(E11:E11) -> 0.255 | I14: =MEDIAN(I11:I11) -> 0.0393
C15: Average | D15: =AVERAGE(D11:D11) -> 1.4 | E15: =AVERAGE(E11:E11) -> 0.255 | I15: =AVERAGE(I11:I11) -> 0.0393
H17: Say | I17: 0.0393

Sheet CF Multiples_AC F FEDEX
A1: KENTUCKY DEPARTMENT OF REVENUE
A2: DIVISION OF STATE VALUATION, PUBLIC SERVICE BRANCH
A3: 2020 Tax Year
A5: Industry > Air Carriers - Freight
D7: CASH FLOW MULTIPLIERS
D8: YEAR END 12/31/2019
B11: Ticker | D11: Cash Flow | E11: Cash Flow | F11: Computed
A12: Company | B12: Symbol | C12: Price | D12: Per Share | E12: Multiple | F12: Inverse
C13: VL | D13: VL Actual 2019 CF
A16: FedEx Corp | B16: FDX | C16: 158 | D16: 28.67 | E16: =C16/D16 -> 5.510987095 | F16: =1/E16 -> 0.1814556962
B18: RANGE | C18: 23.46-158.00 | D18: 4.69-28.67 | E18: 1.85-10.10 | F18: 9.90-53.91%
B19: Median | C19: =MEDIAN(C16:C16) -> 158 | D19: =MEDIAN(D16:D16) -> 28.67 | E19: =MEDIAN(E16:E16) -> 5.510987095 | F19: =MEDIAN(F16:F16) -> 0.1814556962
B20: Average | C20: =AVERAGE(C16:C16) -> 158 | D20: =AVERAGE(D16:D16) -> 28.67 | E20: =AVERAGE(E16:E16) -> 5.510987095 | F20: =AVERAGE(F16:F16) -> 0.1814556962
E22: SAY | F22: 0.1815

Sheet CapRate_AC F UPS
C1: KENTUCKY DEPARTMENT OF REVENUE
C2: DIVISION OF STATE VALUATION, PUBLIC SERVICE BRANCH
C4: 2020 Tax Year
C5: DIRECT CAPITALIZATION RATE STUDY
C11: UNITED PARCEL SERVICE
C12: Cash Flow Direct Capitalization Rate
A14: Source of | B14: Capital | C14: Cost of | D14: Tax | E14: Cost of Capital | F14: Weighted
A15: Capital | B15: Structure | C15: Capital | D15: Rate | E15: After Tax | F15: Cost
A18: EQUITY | B18: 0.77 | C18: 0.099 | E18: =+C18 -> 0.099 | F18: =+E18*B18 -> 0.07623
A20: DEBT | B20: 0.23 | C20: 0.0337 | D20: 0.26 | E20: =+C20*(1-D20) -> 0.024938 | F20: =+B20*E20 -> 0.00573574
A22: TOTAL | B22: =+B18+B20 -> 1 | F22: =+F18+F20 -> 0.08196574
E24: SAY | F24: 0.082

Sheet S&D_AC F UPS
A1: KENTUCKY DEPARTMENT OF REVENUE
A2: DIVISION OF STATE VALUATION, PUBLIC SERVICE BRANCH
A3: 2020 Tax Year
A6: The capital structure of this industry is a representative or typical capital structure of the group, not that of the present owner. The capital structure selected reflects the most likely arrangement of a prospective buyer.
A9: Industry > Air Carriers - Freight
H11: Dec. 31, 2019
D12: 4TH Qtr | F12: Average | H12: Common Stock | I12: Dec. 31, 2019 | J12: Dec. 31, 2019
B13: Ticker | C13: Industry | D13: Stock Price | F13: 4th Qtr | G13: Dec. 31, 2019 | H13: Shares Outstanding | I13: Preferred Stock | J13: Long Term Debt **
A14: Company | B14: Symbol | C14: Group | D14: High | E14: Low | F14: Stock Price | G14: Stock Price | H14: Net of Treasury | I14: BV | J14: BV
A15: VL | B15: VL | C15: VL | D15: 10K / SEC | E15: 10K / SEC | F15: 10K / SEC | G15: Yahoo | H15: 10K / SEC | I15: 10K / SEC | J15: 10K / SEC
A17: United Parcel Service | B17: UPS | C17: Air Trans | D17: 124.3 | E17: 112.74 | F17: =AVERAGE(D17:E17) -> 118.52 | G17: 117.06 | H17: =(156+701-0.4)*1000000 -> 856600000 | I17: 0 | J17: =21818000000+3420000000 -> 25238000000
D25: Dec. 31, 2019 | E25: Dec. 31, 2019 | F25: Dec. 31, 2019 | G25: Dec. 31, 2019 | H25: Dec. 31, 2019 | I25: Dec. 31, 2019 | J25: Dec. 31, 2019
B26: Ticker | C26: Industry | D26: Common Stock | E26: Preferred Stock | F26: Op Leased Property * | G26: Long Term Debt | H26: Total Market Value | I26: % Common Stock | J26: % LT Debt
A27: Company | B27: Symbol | C27: Group | D27: FMV | E27: FMV | F27: FMV | G27: FMV | H27: CS+LTD +PS
A28: VL | B28: VL | C28: VL | D28: Calculated | E28: 10K / SEC | F28: 10K / SEC | G28: 10K / SEC | H28: Calculated | I28: Calculated | J28: Calculated
A30: =+A17 -> United Parcel Service | B30: =+B17 -> UPS | C30: =+C17 -> Air Trans | D30: =(+H17)*G17 -> 100273596000 | E30: =+K17 -> 0 | F30: =+E47 -> 2929000000 | G30: =+J17*(26949/25238) -> 2.6949e+10 | H30: =+D30+E30+F30+G30 -> 130151596000 | I30: =+D30/H30 -> 0.7704369296 | J30: =(+E30+F30+G30)/H30 -> 0.2295630704
A35: * Operating lease rents included are for aircraft, engines, office and facilities, purchased capacity, vehicles, real property, and other operating leased property. | H35: RANGE | I35: 19.35% - 77.04% | J35: 22.96% - 80.65%
A36: ** Long Term Debt includes the capital lease debt plus current maturities. | H36: Median | I36: =MEDIAN(I30:I30) -> 0.7704369296 | J36: =MEDIAN(J30:J30) -> 0.2295630704
A37: Any difference between the lease liability value and lease asset value is prepayments, lease incentives, and/or other direct costs. | H37: Average | I37: =AVERAGE(I30:I30) -> 0.7704369296 | J37: =AVERAGE(J30:J30) -> 0.2295630704
A38: Maintenance, real estate taxes,insurance and other operating expenses associated with the leases are excluded from the ROU measurement.
H39: SAY | I39: 0.77 | J39: 0.23
B46: Op Lese Expense | C46: Company | D46: ROU Values Assets | E46: ROU Values Liab.
B47: 959000000 | C47: =+A30 -> United Parcel Service | D47: 2856000000 | E47: 2929000000

Sheet Debt_AC F UPS
A1: KENTUCKY DEPARTMENT OF REVENUE
A2: DIVISION OF STATE VALUATION, PUBLIC SERVICE BRANCH
A3: 2020 Tax Year
A5: Industry > Air Carriers - Freight
B7: Ticker | C7: Industry | D7: Beta | E7: Actual | F7: Financial | G7: S&P | H7: Moody's /Mergent Bond | I7: Mergent Bond
A8: Company | B8: Symbol | C8: Group | E8: Tax Rate | F8: Strength | G8: Rating | H8: Rating | I8: Debt Rate
A9: VL | B9: VL | C9: VL | D9: VL | E9: VL | F9: VL | G9: S&P | H9: Mergent Bond | I9: Mergent Bond
A11: United Parcel Service | B11: UPS | C11: AirTrans | D11: 1 | E11: 0.23 | F11: A | G11: A+ | H11: A2 / A1 | I11: 0.0337
C13: RANGE | D13: 1.00- 1.75 | E13: 15.00 - 25.50 | I13: 3.37% - 6.13%
C14: Median | D14: =MEDIAN(D11:D11) -> 1 | E14: =MEDIAN(E11:E11) -> 0.23 | I14: =MEDIAN(I11:I11) -> 0.0337
C15: Average | D15: =AVERAGE(D11:D11) -> 1 | E15: =AVERAGE(E11:E11) -> 0.23 | I15: =AVERAGE(I11:I11) -> 0.0337
H17: Say | I17: 0.0337

Sheet CF Multiples_AC F UPS
A1: KENTUCKY DEPARTMENT OF REVENUE
A2: DIVISION OF STATE VALUATION, PUBLIC SERVICE BRANCH
A3: 2020 Tax Year
A5: Industry > Air Carriers - Freight
D7: CASH FLOW MULTIPLIERS
D8: YEAR END 12/31/2019
B11: Ticker | D11: Cash Flow | E11: Cash Flow | F11: Computed
A12: Company | B12: Symbol | C12: Price | D12: Per Share | E12: Multiple | F12: Inverse
C13: VL | D13: VL Actual 2019 CF
A16: United Parcel Service | B16: UPS | C16: 104.87 | D16: 10.38 | E16: =C16/D16 -> 10.10308285 | F16: =1/E16 -> 0.09897968914
B18: RANGE | C18: 23.46-158.00 | D18: 4.69-28.67 | E18: 1.85-10.10 | F18: 9.90-53.91%
B19: Median | C19: =MEDIAN(C16:C16) -> 104.87 | D19: =MEDIAN(D16:D16) -> 10.38 | E19: =MEDIAN(E16:E16) -> 10.10308285 | F19: =MEDIAN(F16:F16) -> 0.09897968914
B20: Average | C20: =AVERAGE(C16:C16) -> 104.87 | D20: =AVERAGE(D16:D16) -> 10.38 | E20: =AVERAGE(E16:E16) -> 10.10308285 | F20: =AVERAGE(F16:F16) -> 0.09897968914
E22: SAY | F22: 0.099

Sheet CapRate_AC F ALL
C1: KENTUCKY DEPARTMENT OF REVENUE
C2: DIVISION OF STATE VALUATION, PUBLIC SERVICE BRANCH
C4: 2020 Tax Year
C5: DIRECT CAPITALIZATION RATE STUDY
C11: AIR CARRIER - FREIGHT
C12: Cash Flow Direct Capitalization Rate
A14: Source of | B14: Capital | C14: Cost of | D14: Tax | E14: Cost of Capital | F14: Weighted
A15: Capital | B15: Structure | C15: Capital | D15: Rate | E15: After Tax | F15: Cost
A18: EQUITY | B18: 0.51 | C18: 0.1907 | E18: =+C18 -> 0.1907 | F18: =+E18*B18 -> 0.097257
A20: DEBT | B20: 0.49 | C20: 0.0393 | D20: 0.26 | E20: =+C20*(1-D20) -> 0.029082 | F20: =+B20*E20 -> 0.01425018
A22: TOTAL | B22: =+B18+B20 -> 1 | F22: =+F18+F20 -> 0.11150718
E24: SAY | F24: 0.1115

Sheet S&D_AC F ALL
A1: KENTUCKY DEPARTMENT OF REVENUE
A2: DIVISION OF STATE VALUATION, PUBLIC SERVICE BRANCH
A3: 2020 Tax Year
A6: The capital structure of this industry is a representative or typical capital structure of the group, not that of the present owner. The capital structure selected reflects the most likely arrangement of a prospective buyer.
A9: Industry > Air Carriers - Freight
H11: Dec. 31, 2019
D12: 4TH Qtr | F12: Average | H12: Common Stock | I12: Dec. 31, 2019 | J12: Dec. 31, 2019
B13: Ticker | C13: Industry | D13: Stock Price | F13: 4th Qtr | G13: Dec. 31, 2019 | H13: Shares Outstanding | I13: Preferred Stock | J13: Long Term Debt **
A14: Company | B14: Symbol | C14: Group | D14: High | E14: Low | F14: Stock Price | G14: Stock Price | H14: Net of Treasury | I14: BV | J14: BV
A15: VL | B15: VL | C15: VL | D15: 10K / SEC | E15: 10K / SEC | F15: 10K / SEC | G15: Yahoo | H15: 10K / SEC | I15: 10K / SEC | J15: 10K / SEC
A17: Air Transport Services Group | B17: ATSG | C17: Air Trans | D17: 25.19 | E17: 19.1 | F17: =AVERAGE(D17:E17) -> 22.145 | G17: 23.46 | H17: 59329431 | I17: 0 | J17: =1469677000+14707000 -> 1484384000
A18: Atlas Air | B18: AAWW | C18: Air Trans | D18: 28.53 | E18: 20.96 | F18: =AVERAGE(D18:E18) -> 24.745 | G18: 27.57 | H18: 25870876 | I18: 0 | J18: 2340172000
A19: FedEx Corp *** | B19: FDX | C19: Air Trans | D19: 165.67 | E19: 138.39 | F19: 152.03 | G19: 160.05 | H19: 318000000 | I19: 0 | J19: =18691000000+16000000 -> 18707000000
A20: United Parcel Service | B20: UPS | C20: Air Trans | D20: 124.3 | E20: 112.74 | F20: 118.52 | G20: 117.06 | H20: =(156+701-0.4)*1000000 -> 856600000 | I20: 0 | J20: =21818000000+3420000000 -> 25238000000
D28: Dec. 31, 2019 | E28: Dec. 31, 2019 | F28: Dec. 31, 2019 | G28: Dec. 31, 2019 | H28: Dec. 31, 2019 | I28: Dec. 31, 2019 | J28: Dec. 31, 2019
B29: Ticker | C29: Industry | D29: Common Stock | E29: Preferred Stock | F29: Op Leased Property * | G29: Long Term Debt | H29: Total Market Value | I29: % Common Stock | J29: % LT Debt
A30: Company | B30: Symbol | C30: Group | D30: FMV | E30: FMV | F30: FMV | G30: FMV | H30: CS+LTD +PS
A31: VL | B31: VL | C31: VL | D31: Calculated | E31: 10K / SEC | F31: 10K / SEC | G31: 10K / SEC | H31: Calculated | I31: Calculated | J31: Calculated
A33: =+A17 -> Air Transport Services Group | B33: ATSG | C33: Air Trans | D33: =(+H17)*G17 -> 1391868451 | E33: =+K17 -> 0 | F33: 44302000 | G33: =(1481.7/1484.4)*J17 -> 1481684029 | H33: =+D33+E33+F33+G33 -> 2917854480 | I33: =+D33/H33 -> 0.4770177747 | J33: =(+E33+F33+G33)/H33 -> 0.5229822253
A34: Atlas Air | B34: AAWW | C34: Air Trans | D34: =(+H18)*G18 -> 713260051.3 | E34: =+K18 -> 0 | F34: =+E54 -> 534805000 | G34: =+J18*(2464338/2364517) -> 2438965246 | H34: =+D34+E34+F34+G34 -> 3687030297 | I34: =+D34/H34 -> 0.1934510958 | J34: =(+E34+F34+G34)/H34 -> 0.8065489042
A35: FedEx Corp *** | B35: FDX | C35: Air Trans | D35: =((+H19)*G19)-9225000000 -> 41670900000 | E35: =+K19 -> 0 | F35: =+E55 -> 14360000000 | G35: =+J19*(19600/18600) -> 1.971275269e+10 | H35: 7.574365269e+10 | I35: =+D35/H35 -> 0.5501569903 | J35: 0.4498430097
A36: United Parcel Service | B36: UPS | C36: Air Trans | D36: =(+H20)*G20 -> 100273596000 | E36: =+K20 -> 0 | F36: =+E56 -> 2929000000 | G36: =+J20*(26949/25238) -> 2.6949e+10 | H36: 130151596000 | I36: =+D36/H36 -> 0.7704369296 | J36: 0.2295630704
A41: * Operating lease rents included are for aircraft, engines, office and facilities, purchased capacity, vehicles, real property, and other operating leased property. | H41: RANGE | I41: 19.35% - 77.04% | J41: 22.96% - 80.65%
A42: ** Long Term Debt includes the capital lease debt plus current maturities. | H42: Median | I42: =MEDIAN(I33:I36) -> 0.5135873825 | J42: =MEDIAN(J33:J36) -> 0.4864126175
A43: *** FedEx balance sheet came from 10Q Nov. 30, 2019 | H43: Average | I43: =AVERAGE(I33:I36) -> 0.4977656976 | J43: =AVERAGE(J33:J36) -> 0.5022343024
A44: Any difference between the lease liability value and lease asset value is prepayments, lease incentives, and/or other direct costs.
A45: Maintenance, real estate taxes,insurance and other operating expenses associated with the leases are excluded from the ROU measurement. | H45: SAY | I45: 0.51 | J45: 0.49
I48: =+I33 -> 0.4770177747 | J48: =+J33 -> 0.5229822253
I49: =+I35 -> 0.5501569903 | J49: =+J35 -> 0.4498430097
I50: =+I36 -> 0.7704369296 | J50: =+J36 -> 0.2295630704
H51: Median | I51: =MEDIAN(I48:I50) -> 0.5501569903 | J51: =MEDIAN(J48:J50) -> 0.4498430097
B52: Op Lese Expense | C52: Company | D52: ROU Values Assets | E52: ROU Values Liab. | H52: Average | I52: =AVERAGE(I48:I50) -> 0.5992038982 | J52: =AVERAGE(J48:J50) -> 0.4007961018
B53: 301984000 | C53: =+A33 -> Air Transport Services Group | D53: 44302000 | E53: 43191000 | H53: SAY | I53: 0.55 | J53: 0.45 | K53: Without Atlas
B54: 155639000 | C54: =+A34 -> Atlas Air | D54: 231133000 | E54: =141973000+392832000 -> 534805000
B55: 2875000000 | C55: =+A35 -> FedEx Corp *** | D55: 14097000000 | E55: 14360000000
B56: 959000000 | C56: =+A36 -> United Parcel Service | D56: 2856000000 | E56: 2929000000
I57: =+I35 -> 0.5501569903 | J57: =+J35 -> 0.4498430097
I58: =+I36 -> 0.7704369296 | J58: =+J36 -> 0.2295630704
H59: Median | I59: =MEDIAN(I56:I58) -> 0.6602969599 | J59: =MEDIAN(J56:J58) -> 0.3397030401
H60: Average | I60: =AVERAGE(I56:I58) -> 0.6602969599 | J60: =AVERAGE(J56:J58) -> 0.3397030401
H61: SAY | I61: 0.66 | J61: 0.34 | K61: Without Atlas& Air Transport

Sheet Debt_AC F ALL
A1: KENTUCKY DEPARTMENT OF REVENUE
A2: DIVISION OF STATE VALUATION, PUBLIC SERVICE BRANCH
A3: 2020 Tax Year
A5: Industry > Air Carriers - Freight
B7: Ticker | C7: Industry | D7: Beta | E7: Actual | F7: Financial | G7: S&P | H7: Moody's /Mergent Bond | I7: Mergent Bond
A8: Company | B8: Symbol | C8: Group | E8: Tax Rate | F8: Strength | G8: Rating | H8: Rating | I8: Debt Rate
A9: VL | B9: VL | C9: VL | D9: VL | E9: VL | F9: VL | G9: S&P | H9: Mergent Bond | I9: Mergent Bond
A11: Air Transport Services Group | B11: ATSG | C11: AirTrans | D11: 1.2 | E11: 0.19 | F11: B | H11: Ba2 | I11: 0.0613
A12: Atlas Air Worldwide Holdings | B12: AAWW | C12: AirTrans | D12: 1.75 | E12: 0.15 | F12: B+ | H12: Baa | I12: 0.0393
A13: FedEx Corp | B13: FDX | C13: AirTrans | D13: 1.4 | E13: 0.255 | F13: A++ | G13: BBB | H13: Baa2 | I13: 0.0393
A14: United Parcel Service | B14: UPS | C14: AirTrans | D14: 1 | E14: 0.23 | F14: A | G14: A+ | H14: A2 / A1 | I14: 0.0337
C16: RANGE | D16: 1.00- 1.75 | E16: 15.00 - 25.50 | I16: 3.37% - 6.13%
C17: Median | D17: =MEDIAN(D11:D14) -> 1.3 | E17: =MEDIAN(E11:E14) -> 0.21 | I17: =MEDIAN(I11:I14) -> 0.0393
C18: Average | D18: =AVERAGE(D11:D14) -> 1.3375 | E18: =AVERAGE(E11:E14) -> 0.20625 | I18: =AVERAGE(I11:I14) -> 0.0434
H20: Say | I20: 0.0393

Sheet CF Multiples_AC F ALL
A1: KENTUCKY DEPARTMENT OF REVENUE
A2: DIVISION OF STATE VALUATION, PUBLIC SERVICE BRANCH
A3: 2020 Tax Year
A5: Industry > Air Carriers - Freight
D7: CASH FLOW MULTIPLIERS
D8: YEAR END 12/31/2019
B11: Ticker | D11: Cash Flow | E11: Cash Flow | F11: Computed
A12: Company | B12: Symbol | C12: Price | D12: Per Share | E12: Multiple | F12: Inverse
C13: VL | D13: VL Actual 2019 CF
A16: Air Transport Services Group | B16: ATSG | C16: 23.46 | D16: 4.69 | E16: =C16/D16 -> 5.002132196 | F16: =1/E16 -> 0.1999147485
A17: Atlas Air Worldwide Holdings | B17: AAWW | C17: 27.08 | D17: 14.6 | E17: =C17/D17 -> 1.854794521 | F17: 0.5391432792
A18: FedEx Corp | B18: FDX | C18: 158 | D18: 28.67 | E18: =C18/D18 -> 5.510987095 | F18: 0.1814556962
A19: United Parcel Service | B19: UPS | C19: 104.87 | D19: 10.38 | E19: 10.10308285 | F19: 0.09897968914
B21: RANGE | C21: 23.46-158.00 | D21: 4.69-28.67 | E21: 1.85-10.10 | F21: 9.90-53.91%
B22: Median | C22: =MEDIAN(C16:C19) -> 65.975 | D22: =MEDIAN(D16:D19) -> 12.49 | E22: =MEDIAN(E16:E19) -> 5.256559645 | F22: =MEDIAN(F16:F19) -> 0.1906852224
B23: Average | C23: =AVERAGE(C16:C19) -> 78.3525 | D23: =AVERAGE(D16:D19) -> 14.585 | E23: =AVERAGE(E16:E19) -> 5.617749166 | F23: =AVERAGE(F16:F19) -> 0.2548733533
E25: SAY | F25: 0.1907
A27: WITHOUT ATLAS AIR
A29: Air Transport Services Group | B29: ATSG | C29: 23.46 | D29: 4.69 | E29: =C29/D29 -> 5.002132196 | F29: =1/E29 -> 0.1999147485
A30: FedEx Corp | B30: FDX | C30: 158 | D30: 28.67 | E30: =C30/D30 -> 5.510987095 | F30: 0.1814556962
A31: United Parcel Service | B31: UPS | C31: 104.87 | D31: 10.38 | E31: 10.10308285 | F31: 0.09897968914
B33: RANGE | C33: 23.46-158.00 | D33: 4.69-28.67 | E33: 5.00-10.10 | F33: 9.90-19.99%
B34: Median | C34: =MEDIAN(C29:C31) -> 104.87 | D34: =MEDIAN(D29:D31) -> 10.38 | E34: =MEDIAN(E29:E31) -> 5.510987095 | F34: =MEDIAN(F29:F31) -> 0.1814556962
B35: Average | C35: =AVERAGE(C29:C31) -> 95.44333333 | D35: =AVERAGE(D29:D31) -> 14.58 | E35: =AVERAGE(E29:E31) -> 6.872067381 | F35: =AVERAGE(F29:F31) -> 0.1601167113
E37: SAY | F37: 0.1815

Sheet CapRate_AC P ALL
C1: KENTUCKY DEPARTMENT OF REVENUE
C2: DIVISION OF STATE VALUATION, PUBLIC SERVICE BRANCH
C4: 2020 Tax Year
C5: DIRECT CAPITALIZATION RATE STUDY
C11: AIR CARRIER - All
C12: Cash Flow Direct Capitalization Rate
A14: Source of | B14: Capital | C14: Cost of | D14: Tax | E14: Cost of Capital | F14: Weighted
A15: Capital | B15: Structure | C15: Capital | D15: Rate | E15: After Tax | F15: Cost
A18: EQUITY | B18: 0.58 | C18: 0.1937 | E18: =+C18 -> 0.1937 | F18: =+E18*B18 -> 0.112346
A20: DEBT | B20: 0.42 | C20: 0.0569 | D20: 0.26 | E20: =+C20*(1-D20) -> 0.042106 | F20: =+B20*E20 -> 0.01768452
A22: TOTAL | B22: =+B18+B20 -> 1 | F22: =+F18+F20 -> 0.13003052
E24: SAY | F24: 0.13

Sheet S&D_AC P ALL
A1: KENTUCKY DEPARTMENT OF REVENUE
A2: DIVISION OF STATE VALUATION, PUBLIC SERVICE BRANCH
A3: 2020 Tax Year
A6: The capital structure of this industry is a representative or typical capital structure of the group, not that of the present owner. The capital structure selected reflects the most likely arrangement of a prospective buyer.
A9: Industry > Air Carriers - ALL
H11: Dec. 31, 2019
D12: 4th Qtr | F12: 4th Qtr | H12: Common Stock | I12: Dec. 31, 2019 | J12: Dec. 31, 2019
B13: Ticker | C13: Industry | D13: Stock Price | F13: Average | G13: Dec. 31, 2019 | H13: Shares Outstanding | I13: Preferred Stock | J13: Long Term Debt **
A14: Company | B14: Symbol | C14: Group | D14: High | E14: Low | F14: Stock Price | G14: Stock Price | H14: Net of Treasury | I14: BV | J14: BV
A15: VL | B15: VL | C15: VL | D15: Yahoo | E15: Yahoo | F15: Yahoo | G15: Yahoo | H15: 10K / SEC | I15: 10K / SEC | J15: 10K / SEC
A17: Alaska Air | B17: ALK | C17: AirTrans | D17: 71.91 | E17: 62.3 | F17: =AVERAGE(D17,E17) -> 67.105 | G17: 67.75 | H17: =123000307-8811866 -> 114188441 | I17: 0 | J17: =1264000000+235000000 -> 1499000000
A18: Allegiant Travel Co. | B18: ALGT | C18: AirTrans | D18: 180.15 | E18: 146.8 | F18: 163.475 | G18: 174.04 | H18: =16303262-6532453 -> 9770809 | I18: 0 | J18: =1248579000+173274000 -> 1421853000
A19: American Airlines Group | B19: AAL | C19: Airtrans | D19: 31.36 | E19: 25.27 | F19: 28.315 | G19: 28.68 | H19: 428202506 | I19: 0 | J19: =21454000000+2861000000 -> 24315000000
A20: Delta Air Lines | B20: DAL | C20: Airtrans | D20: 59.56 | E20: 52.83 | F20: 56.195 | G20: 58.48 | H20: =651731443-8959730 -> 642771713 | I20: 0 | J20: =8873000000+2287000000 -> 11160000000
A21: JetBlue Airways | B21: JBLU | C21: AirTrans | D21: 19.76 | E21: 16.02 | F21: 17.89 | G21: 18.72 | H21: 282000000 | I21: 0 | J21: =1990000000+344000000 -> 2334000000
A22: Skywest Inc | B22: SKYW | C22: AirTrans | D22: 65.32 | E22: 54.76 | F22: 60.04 | G22: 64.63 | H22: =81742937-31420179 -> 50322758 | I22: 0 | J22: =2628989000+364126000 -> 2993115000
A23: Southwest Airlines | B23: LUV | C23: AirTrans | D23: 58.26 | E23: 52.04 | F23: 55.15 | G23: 53.98 | H23: =807611634-288547318 -> 519064316 | I23: 0 | J23: =1846000000+819000000 -> 2665000000
A24: Spirit Airlines | B24: SAVE | C24: AirTrans | D24: 41.37 | E24: 33.1 | F24: 37.235 | G24: 40.31 | H24: =68455011-1693375 -> 66761636 | I24: 0 | J24: =1960453000+258852000 -> 2219305000
A25: United Airlines Holdings Inc | B25: UAL | C25: Airtrans | D25: 93.8 | E25: 83.27 | F25: 88.535 | G25: 88.09 | H25: 251216381 | I25: 0 | J25: =13145000000+1407000000 -> 14552000000
D30: Dec. 31, 2019 | E30: Dec. 31, 2019 | F30: Dec. 31, 2019 | G30: Dec. 31, 2019 | H30: Dec. 31, 2019 | I30: Dec. 31, 2019 | J30: Dec. 31, 2019
B31: Ticker | C31: Industry | D31: Common Stock | E31: Preferred Stock | F31: Op Leased Property * | G31: Long Term Debt | H31: Total Market Value | I31: % Common Stock | J31: % LT Debt
A32: Company | B32: Symbol | C32: Group | D32: FMV | E32: FMV | F32: FMV | G32: FMV | H32: CS+LTD +PS
A33: VL | B33: VL | C33: VL | D33: Calculated | E33: 10K / SEC | F33: Calculated | G33: 10K / SEC | H33: Calculated | I33: Calculated | J33: Calculated
A35: =+A17 -> Alaska Air | B35: ALK | C35: AirTrans | D35: =+G17*(H17) -> 7736266878 | E35: =(1/1)*I17 -> 0 | F35: 1711000000 | G35: =(483/475)*J17 -> 1524246316 | H35: =+D35+E35+F35+G35 -> 1.097151319e+10 | I35: =+D35/H35 -> 0.7051230529 | J35: =(+F35+G35)/H35 -> 0.2948769471
A36: Allegiant Travel Co. | B36: ALGT | C36: AirTrans | D36: =+G18*(H18) -> 1700511598 | E36: 0 | F36: 24000000 | G36: =(1140232/1329882)*J18 -> 1219087325 | H36: =+D36+E36+F36+G36 -> 2943598923 | I36: 0.5776981317 | J36: =(+F36+G36)/H36 -> 0.4223018683
A37: American Airlines Group | B37: AAL | C37: Airtrans | D37: =+G19*(H19) -> 1.228084787e+10 | E37: 0 | F37: 9129000000 | G37: =(24508/23645)*J19 -> 2.52024538e+10 | H37: 4.661230167e+10 | I37: 0.2634679566 | J37: 0.7365320434
A38: Delta Air Lines | B38: DAL | C38: Airtrans | D38: =+G20*(H20) -> 3.758928978e+10 | E38: 0 | F38: 6095000000 | G38: =(10400/10106)*J20 -> 1.148466258e+10 | H38: 5.516895235e+10 | I38: 0.6813486241 | J38: 0.3186513759
A39: JetBlue Airways | B39: JBLU | C39: AirTrans | D39: =+G21*(H21) -> 5279040000 | E39: 0 | F39: 912000000 | G39: =(2367/2245)*J21 -> 2460836526 | H39: 8651876526 | I39: 0.6101612736 | J39: 0.3898387264
A40: Skywest Inc | B40: SKYW | C40: AirTrans | D40: 3252359850 | E40: 0 | F40: 354043000 | G40: =(3049.1/3017.5)*J22 -> 3024459634 | H40: 6630862484 | I40: 0.4904882068 | J40: 0.5095117932
A41: Southwest Airlines | B41: LUV | C41: AirTrans | D41: 2.801909178e+10 | E41: 0 | F41: 1349000000 | G41: =(2122/2051)*J23 -> 2757254998 | H41: 3.212534678e+10 | I41: 0.8721802125 | J41: 0.1278197875
A42: Spirit Airlines | B42: SAVE | C42: AirTrans | D42: 2691161547 | E42: 0 | F42: 1369555000 | G42: =(2303/2213.6)*J24 -> 2308935406 | H42: 6369651953 | I42: 0.4224974248 | J42: 0.5775025752
A43: United Airlines Holdings Inc | B43: UAL | C43: Airtrans | D43: 2.2129651e+10 | E43: 0 | F43: 5632000000 | G43: =(15203/14552)*J25 -> 15203000000 | H43: 4.2964651e+10 | I43: 0.5150664671 | J43: 0.4849335329
H45: RANGE | I45: 26.35% - 87.22% | J45: 12.78% - 73.65%
A46: * Operating lease rents included are for aircraft, engines, office and facilities, purchased capacity, vehicles, real property, and other operating leased property. | H46: Median | I46: =MEDIAN(I35:I43) -> 0.5776981317 | J46: =MEDIAN(J35:J43) -> 0.4223018683
A47: ** Long Term Debt includes the capital lease debt plus current maturities. | H47: Average | I47: =AVERAGE(I35:I43) -> 0.5708923722 | J47: =AVERAGE(J35:J43) -> 0.4291076278
A48: Any difference between the lease liability value and lease asset value is prepayments, lease incentives, and/or other direct costs.
H49: SAY | I49: 0.58 | J49: 0.42
D56: Op Lese Expense | E56: Company | F56: ROU Values Assets | G56: ROU Values Liab.
D57: 668000000 | E57: =+A35 -> Alaska Air | F57: 1711000000 | G57: 1708000000
D58: 15000000 | E58: Allegiant Travel Co. | F58: 22081000 | G58: 24000000
D59: 4585000000 | E59: American Airlines Group | F59: 8737000000 | G59: 9129000000
D60: 2969000000 | E60: Delta Air Lines | F60: 5627000000 | G60: 6095000000
D61: 818000000 | E61: JetBlue Airways | F61: 912000000 | G61: 818000000
D62: 109243000 | E62: Skywest Inc | F62: 336009000 | G62: 354043000
D63: 935000000 | E63: Southwest Airlines | F63: 1349000000 | G63: 1331000000
D64: 345000000 | E64: Spirit Airlines | F64: 1369555000 | G64: 1338676000
D65: 2831000000 | E65: United Airlines Holdings Inc | F65: 4758000000 | G65: 5632000000

Sheet Debt_AC P ALL
A1: KENTUCKY DEPARTMENT OF REVENUE
A2: DIVISION OF STATE VALUATION, PUBLIC SERVICE BRANCH
A3: 2020 Tax Year
A5: Industry > Air Carriers - All
B7: Ticker | C7: Industry | D7: Beta | E7: Actual | F7: Financial | G7: S&P | H7: Moody's / Mergent Bond
A8: Company | B8: Symbol | C8: Group | E8: Tax Rate | F8: Strength | G8: Rating | H8: Rating | I8: Debt Rate
A9: VL | B9: VL | C9: VL | D9: VL | E9: VL | F9: VL | G9: S&P | H9: Mergent Bond | I9: Mergent Bond
A11: Alaska Air | B11: ALK | C11: AirTrans | D11: 1.05 | E11: 0.25 | F11: B+ | H11: Ba1 | I11: 0.0569
A12: Allegiant Travel Co. | B12: ALGT | C12: AirTrans | D12: 0.9 | E12: 0.23 | F12: B++ | H12: Ba3 | I12: 0.0657
A13: American Airlines | B13: AAL | C13: AirTrans | D13: 1.4 | E13: 0.245 | F13: B+ | H13: Ba3 | I13: 0.0657
A14: Delta Air Lines | B14: DAL | C14: AirTrans | D14: 1.15 | E14: 0.23 | F14: B+ | H14: Baa3 | I14: 0.0393
A15: JetBlue Airways | B15: JBLU | C15: AirTrans | D15: 1.2 | E15: 0.26 | F15: B++ | H15: Ba1 | I15: 0.0569
A16: Skywest Inc | B16: SKYW | C16: AirTrans | D16: 1.35 | E16: 0.235 | F16: B+ | H16: Baa | I16: 0.0393
A17: Southwest Airlines | B17: LUV | C17: AirTrans | D17: 1.15 | E17: 0.22 | F17: A | H17: A3 | I17: 0.0337
A18: Spirit Airlines | B18: SAVE | C18: AirTrans | D18: 1.15 | E18: 0.205 | F18: B++ | H18: Ba3 | I18: 0.0657
A19: United Airlines Holdings Inc | B19: UAL | C19: AirTrans | D19: 1.25 | E19: 0.22 | F19: BB | H19: Ba1 Ba2 | I19: 0.0569
C21: RANGE | D21: .90 - 1.40 | E21: 20.50% - 26.00% | I21: 3.37% - 6.57%
C22: Median | D22: =MEDIAN(D11:D19) -> 1.15 | E22: =MEDIAN(E11:E19) -> 0.23 | F22: B++ | H22: Ba1 | I22: =MEDIAN(I11:I19) -> 0.0569
C23: Average | D23: =AVERAGE(D11:D19) -> 1.177777778 | E23: =AVERAGE(E11:E19) -> 0.2327777778 | I23: =AVERAGE(I11:I19) -> 0.05334444444
H25: Say | I25: 0.0569

Sheet CF Multiples_AC P ALL
A1: KENTUCKY DEPARTMENT OF REVENUE
A2: DIVISION OF STATE VALUATION, PUBLIC SERVICE BRANCH
A3: 2020 Tax Year
A5: Industry > Air Carriers - All
D7: CASH FLOW MULTIPLIERS
D8: YEAR END 12/31/2019
B11: Ticker | D11: Cash Flow | E11: Cash Flow | F11: Computed
A12: Company | B12: Symbol | C12: Price | D12: Per Share | E12: Multiple | F12: Inverse
C13: VL | D13: VL
A16: Alaska Air | B16: ALK | C16: 64.55 | D16: 9.93 | E16: =C16/D16 -> 6.500503525 | F16: =1/E16 -> 0.153834237
A17: Allegiant Travel Co. | B17: ALGT | C17: 164.02 | D17: 24.25 | E17: =C17/D17 -> 6.76371134 | F17: =1/E17 -> 0.1478478234
A18: American Airlines | B18: AAL | C18: 29.84 | D18: 9.55 | E18: =C18/D18 -> 3.12460733 | F18: =1/E18 -> 0.3200402145
A19: Delta Air Lines | B19: DAL | C19: 58.66 | D19: 11.44 | E19: =C19/D19 -> 5.127622378 | F19: =1/E19 -> 0.1950221616
A20: JetBlue Airways | B20: JBLU | C20: 20.51 | D20: 3.85 | E20: 5.327272727 | F20: 0.1877133106
A21: Skywest Inc | B21: SKYW | C21: 57.39 | D21: 13.8 | E21: 4.158695652 | F21: 0.2404600105
A22: Southwest Airlines | B22: LUV | C22: 57.93 | D22: 6.85 | E22: 8.456934307 | F22: 0.1182461592
A23: Spirit Airlines | B23: SAVE | C23: 43.31 | D23: 8.39 | E23: 5.162097735 | F23: 0.1937196952
A24: United Airlines Holdings Inc | B24: UAL | C24: 80.53 | D24: 21.6 | E24: 3.728240741 | F24: 0.2682230225
B26: RANGE | C26: 20.51 - 164.02 | D26: 3.85 - 24.25 | E26: 3.12 - 8.46 | F26: 11.82% - 32.00%
B27: Median | C27: =MEDIAN(C16:C24) -> 57.93 | D27: =MEDIAN(D16:D24) -> 9.93 | E27: =MEDIAN(E16:E24) -> 5.162097735 | F27: =MEDIAN(F16:F24) -> 0.1937196952
B28: Average | C28: =AVERAGE(C16:C24) -> 64.08222222 | D28: =AVERAGE(D16:D24) -> 12.18444444 | E28: =AVERAGE(E16:E24) -> 5.372187304 | F28: =AVERAGE(F16:F24) -> 0.202789626
E30: SAY | F30: 0.1937

Sheet CapRate_AC P American
C1: KENTUCKY DEPARTMENT OF REVENUE
C2: DIVISION OF STATE VALUATION, PUBLIC SERVICE BRANCH
C4: 2020 Tax Year
C5: DIRECT CAPITALIZATION RATE STUDY
C11: AMERICAN AIRLINES
C12: Cash Flow Direct Capitalization Rate
A14: Source of | B14: Capital | C14: Cost of | D14: Tax | E14: Cost of Capital | F14: Weighted
A15: Capital | B15: Structure | C15: Capital | D15: Rate | E15: After Tax | F15: Cost
A18: EQUITY | B18: 0.26 | C18: 0.32 | E18: =+C18 -> 0.32 | F18: =+E18*B18 -> 0.0832
A20: DEBT | B20: 0.74 | C20: 0.0657 | D20: 0.26 | E20: =+C20*(1-D20) -> 0.048618 | F20: =+B20*E20 -> 0.03597732
A22: TOTAL | B22: =+B18+B20 -> 1 | F22: =+F18+F20 -> 0.11917732
E24: SAY | F24: 0.1192

Sheet S&D_AC P American
A1: KENTUCKY DEPARTMENT OF REVENUE
A2: DIVISION OF STATE VALUATION, PUBLIC SERVICE BRANCH
A3: 2020 Tax Year
A6: The capital structure of this industry is a representative or typical capital structure of the group, not that of the present owner. The capital structure selected reflects the most likely arrangement of a prospective buyer.
A9: Industry > Air Carriers - Passenger
H11: Dec. 31, 2019
D12: 4th Qtr | F12: 4th Qtr | H12: Common Stock | I12: Dec. 31, 2019 | J12: Dec. 31, 2019
B13: Ticker | C13: Industry | D13: Stock Price | F13: Average | G13: Dec. 31, 2019 | H13: Shares Outstanding | I13: Preferred Stock | J13: Long Term Debt **
A14: Company | B14: Symbol | C14: Group | D14: High | E14: Low | F14: Stock Price | G14: Stock Price | H14: Net of Treasury | I14: BV | J14: BV
A15: VL | B15: VL | C15: VL | D15: Yahoo | E15: Yahoo | F15: Yahoo | G15: Yahoo | H15: 10K / SEC | I15: 10K / SEC | J15: 10K / SEC
A17: American Airlines Group | B17: AAL | C17: Airtrans | D17: 31.36 | E17: 25.27 | F17: =AVERAGE(D17,E17) -> 28.315 | G17: 28.68 | H17: 428202506 | I17: 0 | J17: =21454000000+2861000000 -> 24315000000
D22: Dec. 31, 2019 | E22: Dec. 31, 2019 | F22: Dec. 31, 2019 | G22: Dec. 31, 2019 | H22: Dec. 31, 2019 | I22: Dec. 31, 2019 | J22: Dec. 31, 2019
B23: Ticker | C23: Industry | D23: Common Stock | E23: Preferred Stock | F23: Op Leased Property * | G23: Long Term Debt | H23: Total Market Value | I23: % Common Stock | J23: % LT Debt
A24: Company | B24: Symbol | C24: Group | D24: FMV | E24: FMV | F24: FMV | G24: FMV | H24: CS+LTD +PS
A25: VL | B25: VL | C25: VL | D25: Calculated | E25: 10K / SEC | F25: Calculated | G25: 10K / SEC | H25: Calculated | I25: Calculated | J25: Calculated
A27: =+A17 -> American Airlines Group | B27: =+B17 -> AAL | C27: =+C17 -> Airtrans | D27: =+G17*(H17) -> 1.228084787e+10 | E27: =(1/1)*I17 -> 0 | F27: 9129000000 | G27: =(24508/23645)*J17 -> 2.52024538e+10 | H27: =+D27+E27+F27+G27 -> 4.661230167e+10 | I27: =+D27/H27 -> 0.2634679566 | J27: =(+F27+G27)/H27 -> 0.7365320434
H29: RANGE | I29: 26.35% - 87.22% | J29: 12.78% - 73.65%
A30: * Operating lease rents included are for aircraft, engines, office and facilities, purchased capacity, vehicles, real property, and other operating leased property. | H30: Median | I30: =MEDIAN(I27:I27) -> 0.2634679566 | J30: =MEDIAN(J27:J27) -> 0.7365320434
A31: ** Long Term Debt includes the capital lease debt plus current maturities. | H31: Average | I31: =AVERAGE(I27:I27) -> 0.2634679566 | J31: =AVERAGE(J27:J27) -> 0.7365320434
A32: Any difference between the lease liability value and lease asset value is prepayments, lease incentives, and/or other direct costs.
H33: SAY | I33: 0.26 | J33: 0.74
D40: Op Lese Expense | E40: Company | F40: ROU Values Assets | G40: ROU Values Liab.
D41: 4585000000 | E41: =+A27 -> American Airlines Group | F41: 8737000000 | G41: 9129000000

Sheet Debt_AC P American
A1: KENTUCKY DEPARTMENT OF REVENUE
A2: DIVISION OF STATE VALUATION, PUBLIC SERVICE BRANCH
A3: 2020 Tax Year
A5: Industry > Air Carriers - Passenger
B7: Ticker | C7: Industry | D7: Beta | E7: Actual | F7: Financial | G7: S&P | H7: Moody's / Mergent Bond
A8: Company | B8: Symbol | C8: Group | E8: Tax Rate | F8: Strength | G8: Rating | H8: Rating | I8: Debt Rate
A9: VL | B9: VL | C9: VL | D9: VL | E9: VL | F9: VL | G9: S&P | H9: Mergent Bond | I9: Mergent Bond
A11: American Airlines | B11: AAL | C11: AirTrans | D11: 1.4 | E11: 0.245 | F11: B+ | H11: Ba3 | I11: 0.0657
C13: RANGE | D13: .90 - 1.40 | E13: 20.50% - 26.00% | I13: 3.37% - 6.57%
C14: Median | D14: =MEDIAN(D11:D11) -> 1.4 | E14: =MEDIAN(E11:E11) -> 0.245 | F14: B++ | H14: Ba1 | I14: =MEDIAN(I11:I11) -> 0.0657
C15: Average | D15: =AVERAGE(D11:D11) -> 1.4 | E15: =AVERAGE(E11:E11) -> 0.245 | I15: =AVERAGE(I11:I11) -> 0.0657
H17: Say | I17: 0.0657

Sheet CF Multiples_AC P American
A1: KENTUCKY DEPARTMENT OF REVENUE
A2: DIVISION OF STATE VALUATION, PUBLIC SERVICE BRANCH
A3: 2020 Tax Year
A5: Industry > Air Carriers - Passenger
D7: CASH FLOW MULTIPLIERS
D8: YEAR END 12/31/2019
B11: Ticker | D11: Cash Flow | E11: Cash Flow | F11: Computed
A12: Company | B12: Symbol | C12: Price | D12: Per Share | E12: Multiple | F12: Inverse
C13: VL | D13: VL
A16: American Airlines | B16: AAL | C16: 29.84 | D16: 9.55 | E16: =C16/D16 -> 3.12460733 | F16: =1/E16 -> 0.3200402145
B18: RANGE | C18: 20.51 - 164.02 | D18: 3.85 - 24.25 | E18: 3.12 - 8.46 | F18: 11.82% - 32.00%
B19: Median | C19: =MEDIAN(C16:C16) -> 29.84 | D19: =MEDIAN(D16:D16) -> 9.55 | E19: =MEDIAN(E16:E16) -> 3.12460733 | F19: =MEDIAN(F16:F16) -> 0.3200402145
B20: Average | C20: =AVERAGE(C16:C16) -> 29.84 | D20: =AVERAGE(D16:D16) -> 9.55 | E20: =AVERAGE(E16:E16) -> 3.12460733 | F20: =AVERAGE(F16:F16) -> 0.3200402145
E22: SAY | F22: 0.32

Sheet CapRate_AC P Delta
C1: KENTUCKY DEPARTMENT OF REVENUE
C2: DIVISION OF STATE VALUATION, PUBLIC SERVICE BRANCH
C4: 2020 Tax Year
C5: DIRECT CAPITALIZATION RATE STUDY
C11: DELTA
C12: Cash Flow Direct Capitalization Rate
A14: Source of | B14: Capital | C14: Cost of | D14: Tax | E14: Cost of Capital | F14: Weighted
A15: Capital | B15: Structure | C15: Capital | D15: Rate | E15: After Tax | F15: Cost
A18: EQUITY | B18: 0.68 | C18: 0.195 | E18: =+C18 -> 0.195 | F18: =+E18*B18 -> 0.1326
A20: DEBT | B20: 0.32 | C20: 0.0393 | D20: 0.26 | E20: =+C20*(1-D20) -> 0.029082 | F20: =+B20*E20 -> 0.00930624
A22: TOTAL | B22: =+B18+B20 -> 1 | F22: =+F18+F20 -> 0.14190624
E24: SAY | F24: 0.1419

Sheet S&D_AC P Delta
A1: KENTUCKY DEPARTMENT OF REVENUE
A2: DIVISION OF STATE VALUATION, PUBLIC SERVICE BRANCH
A3: 2020 Tax Year
A6: The capital structure of this industry is a representative or typical capital structure of the group, not that of the present owner. The capital structure selected reflects the most likely arrangement of a prospective buyer.
A9: Industry > Air Carriers - Passenger
H11: Dec. 31, 2019
D12: 4th Qtr | F12: 4th Qtr | H12: Common Stock | I12: Dec. 31, 2019 | J12: Dec. 31, 2019
B13: Ticker | C13: Industry | D13: Stock Price | F13: Average | G13: Dec. 31, 2019 | H13: Shares Outstanding | I13: Preferred Stock | J13: Long Term Debt **
A14: Company | B14: Symbol | C14: Group | D14: High | E14: Low | F14: Stock Price | G14: Stock Price | H14: Net of Treasury | I14: BV | J14: BV
A15: VL | B15: VL | C15: VL | D15: Yahoo | E15: Yahoo | F15: Yahoo | G15: Yahoo | H15: 10K / SEC | I15: 10K / SEC | J15: 10K / SEC
A17: Delta Air Lines | B17: DAL | C17: Airtrans | D17: 59.56 | E17: 52.83 | F17: =AVERAGE(D17,E17) -> 56.195 | G17: 58.48 | H17: =651731443-8959730 -> 642771713 | I17: 0 | J17: =8873000000+2287000000 -> 11160000000
D22: Dec. 31, 2019 | E22: Dec. 31, 2019 | F22: Dec. 31, 2019 | G22: Dec. 31, 2019 | H22: Dec. 31, 2019 | I22: Dec. 31, 2019 | J22: Dec. 31, 2019
B23: Ticker | C23: Industry | D23: Common Stock | E23: Preferred Stock | F23: Op Leased Property * | G23: Long Term Debt | H23: Total Market Value | I23: % Common Stock | J23: % LT Debt
A24: Company | B24: Symbol | C24: Group | D24: FMV | E24: FMV | F24: FMV | G24: FMV | H24: CS+LTD +PS
A25: VL | B25: VL | C25: VL | D25: Calculated | E25: 10K / SEC | F25: Calculated | G25: 10K / SEC | H25: Calculated | I25: Calculated | J25: Calculated
A27: =+A17 -> Delta Air Lines | B27: =+B17 -> DAL | C27: =+C17 -> Airtrans | D27: =+G17*(H17) -> 3.758928978e+10 | E27: =(1/1)*I17 -> 0 | F27: 6095000000 | G27: =(10400/10106)*J17 -> 1.148466258e+10 | H27: =+D27+E27+F27+G27 -> 5.516895235e+10 | I27: =+D27/H27 -> 0.6813486241 | J27: =(+F27+G27)/H27 -> 0.3186513759
H29: RANGE | I29: 26.35% - 87.22% | J29: 12.78% - 73.65%
A30: * Operating lease rents included are for aircraft, engines, office and facilities, purchased capacity, vehicles, real property, and other operating leased property. | H30: Median | I30: =MEDIAN(I27:I27) -> 0.6813486241 | J30: =MEDIAN(J27:J27) -> 0.3186513759
A31: ** Long Term Debt includes the capital lease debt plus current maturities. | H31: Average | I31: =AVERAGE(I27:I27) -> 0.6813486241 | J31: =AVERAGE(J27:J27) -> 0.3186513759
A32: Any difference between the lease liability value and lease asset value is prepayments, lease incentives, and/or other direct costs.
H33: SAY | I33: 0.68 | J33: 0.32
D40: Op Lese Expense | E40: Company | F40: ROU Values Assets | G40: ROU Values Liab.
D41: 2969000000 | E41: =+A27 -> Delta Air Lines | F41: 5627000000 | G41: 6095000000

Sheet Debt_AC P Delta
A1: KENTUCKY DEPARTMENT OF REVENUE
A2: DIVISION OF STATE VALUATION, PUBLIC SERVICE BRANCH
A3: 2020 Tax Year
A5: Industry > Air Carriers - Passenger
B7: Ticker | C7: Industry | D7: Beta | E7: Actual | F7: Financial | G7: S&P | H7: Moody's / Mergent Bond
A8: Company | B8: Symbol | C8: Group | E8: Tax Rate | F8: Strength | G8: Rating | H8: Rating | I8: Debt Rate
A9: VL | B9: VL | C9: VL | D9: VL | E9: VL | F9: VL | G9: S&P | H9: Mergent Bond | I9: Mergent Bond
A11: Delta Air Lines | B11: DAL | C11: AirTrans | D11: 1.15 | E11: 0.23 | F11: B+ | H11: Baa3 | I11: 0.0393
C13: RANGE | D13: .90 - 1.40 | E13: 20.50% - 26.00% | I13: 3.37% - 6.57%
C14: Median | D14: =MEDIAN(D11:D11) -> 1.15 | E14: =MEDIAN(E11:E11) -> 0.23 | F14: B++ | H14: Ba1 | I14: =MEDIAN(I11:I11) -> 0.0393
C15: Average | D15: =AVERAGE(D11:D11) -> 1.15 | E15: =AVERAGE(E11:E11) -> 0.23 | I15: =AVERAGE(I11:I11) -> 0.0393
H17: Say | I17: 0.0393

Sheet CF Multiples_AC P Delta
A1: KENTUCKY DEPARTMENT OF REVENUE
A2: DIVISION OF STATE VALUATION, PUBLIC SERVICE BRANCH
A3: 2020 Tax Year
A5: Industry > Air Carriers - Passenger
D7: CASH FLOW MULTIPLIERS
D8: YEAR END 12/31/2019
B11: Ticker | D11: Cash Flow | E11: Cash Flow | F11: Computed
A12: Company | B12: Symbol | C12: Price | D12: Per Share | E12: Multiple | F12: Inverse
C13: VL | D13: VL
A16: Delta Air Lines | B16: DAL | C16: 58.66 | D16: 11.44 | E16: =C16/D16 -> 5.127622378 | F16: =1/E16 -> 0.1950221616
B18: RANGE | C18: 20.51 - 164.02 | D18: 3.85 - 24.25 | E18: 3.12 - 8.46 | F18: 11.82% - 32.00%
B19: Median | C19: =MEDIAN(C16:C16) -> 58.66 | D19: =MEDIAN(D16:D16) -> 11.44 | E19: =MEDIAN(E16:E16) -> 5.127622378 | F19: =MEDIAN(F16:F16) -> 0.1950221616
B20: Average | C20: =AVERAGE(C16:C16) -> 58.66 | D20: =AVERAGE(D16:D16) -> 11.44 | E20: =AVERAGE(E16:E16) -> 5.127622378 | F20: =AVERAGE(F16:F16) -> 0.1950221616
E22: SAY | F22: 0.195

Sheet CapRate_AC P Skywest
C1: KENTUCKY DEPARTMENT OF REVENUE
C2: DIVISION OF STATE VALUATION, PUBLIC SERVICE BRANCH
C4: 2020 Tax Year
C5: DIRECT CAPITALIZATION RATE STUDY
C11: SKYWEST, INC.
C12: Cash Flow Direct Capitalization Rate
A14: Source of | B14: Capital | C14: Cost of | D14: Tax | E14: Cost of Capital | F14: Weighted
A15: Capital | B15: Structure | C15: Capital | D15: Rate | E15: After Tax | F15: Cost
A18: EQUITY | B18: 0.49 | C18: 0.2405 | E18: =+C18 -> 0.2405 | F18: =+E18*B18 -> 0.117845
A20: DEBT | B20: 0.51 | C20: 0.0393 | D20: 0.26 | E20: =+C20*(1-D20) -> 0.029082 | F20: =+B20*E20 -> 0.01483182
A22: TOTAL | B22: =+B18+B20 -> 1 | F22: =+F18+F20 -> 0.13267682
E24: SAY | F24: 0.1327

Sheet S&D_AC P Skywest
A1: KENTUCKY DEPARTMENT OF REVENUE
A2: DIVISION OF STATE VALUATION, PUBLIC SERVICE BRANCH
A3: 2020 Tax Year
A6: The capital structure of this industry is a representative or typical capital structure of the group, not that of the present owner. The capital structure selected reflects the most likely arrangement of a prospective buyer.
A9: Industry > Air Carriers - Passenger
H11: Dec. 31, 2019
D12: 4th Qtr | F12: 4th Qtr | H12: Common Stock | I12: Dec. 31, 2019 | J12: Dec. 31, 2019
B13: Ticker | C13: Industry | D13: Stock Price | F13: Average | G13: Dec. 31, 2019 | H13: Shares Outstanding | I13: Preferred Stock | J13: Long Term Debt **
A14: Company | B14: Symbol | C14: Group | D14: High | E14: Low | F14: Stock Price | G14: Stock Price | H14: Net of Treasury | I14: BV | J14: BV
A15: VL | B15: VL | C15: VL | D15: Yahoo | E15: Yahoo | F15: Yahoo | G15: Yahoo | H15: 10K / SEC | I15: 10K / SEC | J15: 10K / SEC
A17: Skywest Inc | B17: SKYW | C17: AirTrans | D17: 65.32 | E17: 54.76 | F17: =AVERAGE(D17,E17) -> 60.04 | G17: 64.63 | H17: =81742937-31420179 -> 50322758 | I17: 0 | J17: =2628989000+364126000 -> 2993115000
D22: Dec. 31, 2019 | E22: Dec. 31, 2019 | F22: Dec. 31, 2019 | G22: Dec. 31, 2019 | H22: Dec. 31, 2019 | I22: Dec. 31, 2019 | J22: Dec. 31, 2019
B23: Ticker | C23: Industry | D23: Common Stock | E23: Preferred Stock | F23: Op Leased Property * | G23: Long Term Debt | H23: Total Market Value | I23: % Common Stock | J23: % LT Debt
A24: Company | B24: Symbol | C24: Group | D24: FMV | E24: FMV | F24: FMV | G24: FMV | H24: CS+LTD +PS
A25: VL | B25: VL | C25: VL | D25: Calculated | E25: 10K / SEC | F25: Calculated | G25: 10K / SEC | H25: Calculated | I25: Calculated | J25: Calculated
A27: =+A17 -> Skywest Inc | B27: =+B17 -> SKYW | C27: =+C17 -> AirTrans | D27: =+G17*(H17) -> 3252359850 | E27: =(1/1)*I17 -> 0 | F27: 354043000 | G27: =(3049.1/3017.5)*J17 -> 3024459634 | H27: =+D27+E27+F27+G27 -> 6630862484 | I27: =+D27/H27 -> 0.4904882068 | J27: =(+F27+G27)/H27 -> 0.5095117932
H29: RANGE | I29: 26.35% - 87.22% | J29: 12.78% - 73.65%
A30: * Operating lease rents included are for aircraft, engines, office and facilities, purchased capacity, vehicles, real property, and other operating leased property. | H30: Median | I30: =MEDIAN(I27:I27) -> 0.4904882068 | J30: =MEDIAN(J27:J27) -> 0.5095117932
A31: ** Long Term Debt includes the capital lease debt plus current maturities. | H31: Average | I31: =AVERAGE(I27:I27) -> 0.4904882068 | J31: =AVERAGE(J27:J27) -> 0.5095117932
A32: Any difference between the lease liability value and lease asset value is prepayments, lease incentives, and/or other direct costs.
H33: SAY | I33: 0.49 | J33: 0.51
D40: Op Lese Expense | E40: Company | F40: ROU Values Assets | G40: ROU Values Liab.
D41: 109243000 | E41: =+A27 -> Skywest Inc | F41: 336009000 | G41: 354043000

Sheet Debt_AC P Skywest
A1: KENTUCKY DEPARTMENT OF REVENUE
A2: DIVISION OF STATE VALUATION, PUBLIC SERVICE BRANCH
A3: 2020 Tax Year
A5: Industry > Air Carriers - Passenger
B7: Ticker | C7: Industry | D7: Beta | E7: Actual | F7: Financial | G7: S&P | H7: Moody's / Mergent Bond
A8: Company | B8: Symbol | C8: Group | E8: Tax Rate | F8: Strength | G8: Rating | H8: Rating | I8: Debt Rate
A9: VL | B9: VL | C9: VL | D9: VL | E9: VL | F9: VL | G9: S&P | H9: Mergent Bond | I9: Mergent Bond
A11: Skywest Inc | B11: SKYW | C11: AirTrans | D11: 1.35 | E11: 0.235 | F11: B+ | H11: Baa | I11: 0.0393
C13: RANGE | D13: .90 - 1.40 | E13: 20.50% - 26.00% | I13: 3.37% - 6.57%
C14: Median | D14: =MEDIAN(D11:D11) -> 1.35 | E14: =MEDIAN(E11:E11) -> 0.235 | F14: B++ | H14: Ba1 | I14: =MEDIAN(I11:I11) -> 0.0393
C15: Average | D15: =AVERAGE(D11:D11) -> 1.35 | E15: =AVERAGE(E11:E11) -> 0.235 | I15: =AVERAGE(I11:I11) -> 0.0393
H17: Say | I17: 0.0393

Sheet CF Multiples_AC P Skywest
A1: KENTUCKY DEPARTMENT OF REVENUE
A2: DIVISION OF STATE VALUATION, PUBLIC SERVICE BRANCH
A3: 2020 Tax Year
A5: Industry > Air Carriers - Passenger
D7: CASH FLOW MULTIPLIERS
D8: YEAR END 12/31/2019
B11: Ticker | D11: Cash Flow | E11: Cash Flow | F11: Computed
A12: Company | B12: Symbol | C12: Price | D12: Per Share | E12: Multiple | F12: Inverse
C13: VL | D13: VL
A16: Skywest Inc | B16: SKYW | C16: 57.39 | D16: 13.8 | E16: =C16/D16 -> 4.158695652 | F16: =1/E16 -> 0.2404600105
B18: RANGE | C18: 20.51 - 164.02 | D18: 3.85 - 24.25 | E18: 3.12 - 8.46 | F18: 11.82% - 32.00%
B19: Median | C19: =MEDIAN(C16:C16) -> 57.39 | D19: =MEDIAN(D16:D16) -> 13.8 | E19: =MEDIAN(E16:E16) -> 4.158695652 | F19: =MEDIAN(F16:F16) -> 0.2404600105
B20: Average | C20: =AVERAGE(C16:C16) -> 57.39 | D20: =AVERAGE(D16:D16) -> 13.8 | E20: =AVERAGE(E16:E16) -> 4.158695652 | F20: =AVERAGE(F16:F16) -> 0.2404600105
E22: SAY | F22: 0.2405

Sheet CapRate_AC P Southwest
C1: KENTUCKY DEPARTMENT OF REVENUE
C2: DIVISION OF STATE VALUATION, PUBLIC SERVICE BRANCH
C4: 2020 Tax Year
C5: DIRECT CAPITALIZATION RATE STUDY
C11: SOUTHWEST
C12: Cash Flow Direct Capitalization Rate
A14: Source of | B14: Capital | C14: Cost of | D14: Tax | E14: Cost of Capital | F14: Weighted
A15: Capital | B15: Structure | C15: Capital | D15: Rate | E15: After Tax | F15: Cost
A18: EQUITY | B18: 0.87 | C18: 0.1182 | E18: =+C18 -> 0.1182 | F18: =+E18*B18 -> 0.102834
A20: DEBT | B20: 0.13 | C20: 0.0337 | D20: 0.26 | E20: =+C20*(1-D20) -> 0.024938 | F20: =+B20*E20 -> 0.00324194
A22: TOTAL | B22: =+B18+B20 -> 1 | F22: =+F18+F20 -> 0.10607594
E24: SAY | F24: 0.1061

Sheet S&D_AC P Southwest
A1: KENTUCKY DEPARTMENT OF REVENUE
A2: DIVISION OF STATE VALUATION, PUBLIC SERVICE BRANCH
A3: 2020 Tax Year
A6: The capital structure of this industry is a representative or typical capital structure of the group, not that of the present owner. The capital structure selected reflects the most likely arrangement of a prospective buyer.
A9: Industry > Air Carriers - Passenger
H11: Dec. 31, 2019
D12: 4th Qtr | F12: 4th Qtr | H12: Common Stock | I12: Dec. 31, 2019 | J12: Dec. 31, 2019
B13: Ticker | C13: Industry | D13: Stock Price | F13: Average | G13: Dec. 31, 2019 | H13: Shares Outstanding | I13: Preferred Stock | J13: Long Term Debt **
A14: Company | B14: Symbol | C14: Group | D14: High | E14: Low | F14: Stock Price | G14: Stock Price | H14: Net of Treasury | I14: BV | J14: BV
A15: VL | B15: VL | C15: VL | D15: Yahoo | E15: Yahoo | F15: Yahoo | G15: Yahoo | H15: 10K / SEC | I15: 10K / SEC | J15: 10K / SEC
A17: Southwest Airlines | B17: LUV | C17: AirTrans | D17: 58.26 | E17: 52.04 | F17: =AVERAGE(D17,E17) -> 55.15 | G17: 53.98 | H17: =807611634-288547318 -> 519064316 | I17: 0 | J17: =1846000000+819000000 -> 2665000000
D22: Dec. 31, 2019 | E22: Dec. 31, 2019 | F22: Dec. 31, 2019 | G22: Dec. 31, 2019 | H22: Dec. 31, 2019 | I22: Dec. 31, 2019 | J22: Dec. 31, 2019
B23: Ticker | C23: Industry | D23: Common Stock | E23: Preferred Stock | F23: Op Leased Property * | G23: Long Term Debt | H23: Total Market Value | I23: % Common Stock | J23: % LT Debt
A24: Company | B24: Symbol | C24: Group | D24: FMV | E24: FMV | F24: FMV | G24: FMV | H24: CS+LTD +PS
A25: VL | B25: VL | C25: VL | D25: Calculated | E25: 10K / SEC | F25: Calculated | G25: 10K / SEC | H25: Calculated | I25: Calculated | J25: Calculated
A27: =+A17 -> Southwest Airlines | B27: =+B17 -> LUV | C27: =+C17 -> AirTrans | D27: =+G17*(H17) -> 2.801909178e+10 | E27: =(1/1)*I17 -> 0 | F27: 1349000000 | G27: =(2122/2051)*J17 -> 2757254998 | H27: =+D27+E27+F27+G27 -> 3.212534678e+10 | I27: =+D27/H27 -> 0.8721802125 | J27: =(+F27+G27)/H27 -> 0.1278197875
H29: RANGE | I29: 26.35% - 87.22% | J29: 12.78% - 73.65%
A30: * Operating lease rents included are for aircraft, engines, office and facilities, purchased capacity, vehicles, real property, and other operating leased property. | H30: Median | I30: =MEDIAN(I27:I27) -> 0.8721802125 | J30: =MEDIAN(J27:J27) -> 0.1278197875
A31: ** Long Term Debt includes the capital lease debt plus current maturities. | H31: Average | I31: =AVERAGE(I27:I27) -> 0.8721802125 | J31: =AVERAGE(J27:J27) -> 0.1278197875
A32: Any difference between the lease liability value and lease asset value is prepayments, lease incentives, and/or other direct costs.
H33: SAY | I33: 0.87 | J33: 0.13
D40: Op Lese Expense | E40: Company | F40: ROU Values Assets | G40: ROU Values Liab.
D41: 935000000 | E41: =+A27 -> Southwest Airlines | F41: 1349000000 | G41: 1331000000

Sheet Debt_AC P Southwest
A1: KENTUCKY DEPARTMENT OF REVENUE
A2: DIVISION OF STATE VALUATION, PUBLIC SERVICE BRANCH
A3: 2020 Tax Year
A5: Industry > Air Carriers - Passenger
B7: Ticker | C7: Industry | D7: Beta | E7: Actual | F7: Financial | G7: S&P | H7: Moody's / Mergent Bond
A8: Company | B8: Symbol | C8: Group | E8: Tax Rate | F8: Strength | G8: Rating | H8: Rating | I8: Debt Rate
A9: VL | B9: VL | C9: VL | D9: VL | E9: VL | F9: VL | G9: S&P | H9: Mergent Bond | I9: Mergent Bond
A11: Southwest Airlines | B11: LUV | C11: AirTrans | D11: 1.15 | E11: 0.22 | F11: A | H11: A3 | I11: 0.0337
C13: RANGE | D13: .90 - 1.40 | E13: 20.50% - 26.00% | I13: 3.37% - 6.57%
C14: Median | D14: =MEDIAN(D11:D11) -> 1.15 | E14: =MEDIAN(E11:E11) -> 0.22 | F14: B++ | H14: Ba1 | I14: =MEDIAN(I11:I11) -> 0.0337
C15: Average | D15: =AVERAGE(D11:D11) -> 1.15 | E15: =AVERAGE(E11:E11) -> 0.22 | I15: =AVERAGE(I11:I11) -> 0.0337
H17: Say | I17: 0.0337

Sheet CF Multiples_AC P Southwest
A1: KENTUCKY DEPARTMENT OF REVENUE
A2: DIVISION OF STATE VALUATION, PUBLIC SERVICE BRANCH
A3: 2020 Tax Year
A5: Industry > Air Carriers - Passenger
D7: CASH FLOW MULTIPLIERS
D8: YEAR END 12/31/2019
B11: Ticker | D11: Cash Flow | E11: Cash Flow | F11: Computed
A12: Company | B12: Symbol | C12: Price | D12: Per Share | E12: Multiple | F12: Inverse
C13: VL | D13: VL
A16: Southwest Airlines | B16: LUV | C16: 57.93 | D16: 6.85 | E16: =C16/D16 -> 8.456934307 | F16: =1/E16 -> 0.1182461592
B18: RANGE | C18: 20.51 - 164.02 | D18: 3.85 - 24.25 | E18: 3.12 - 8.46 | F18: 11.82% - 32.00%
B19: Median | C19: =MEDIAN(C16:C16) -> 57.93 | D19: =MEDIAN(D16:D16) -> 6.85 | E19: =MEDIAN(E16:E16) -> 8.456934307 | F19: =MEDIAN(F16:F16) -> 0.1182461592
B20: Average | C20: =AVERAGE(C16:C16) -> 57.93 | D20: =AVERAGE(D16:D16) -> 6.85 | E20: =AVERAGE(E16:E16) -> 8.456934307 | F20: =AVERAGE(F16:F16) -> 0.1182461592
E22: SAY | F22: 0.1182

Sheet CapRate_AC P United
C1: KENTUCKY DEPARTMENT OF REVENUE
C2: DIVISION OF STATE VALUATION, PUBLIC SERVICE BRANCH
C4: 2020 Tax Year
C5: DIRECT CAPITALIZATION RATE STUDY
C11: UNITED AIRLINES
C12: Cash Flow Direct Capitalization Rate
A14: Source of | B14: Capital | C14: Cost of | D14: Tax | E14: Cost of Capital | F14: Weighted
A15: Capital | B15: Structure | C15: Capital | D15: Rate | E15: After Tax | F15: Cost
A18: EQUITY | B18: 0.52 | C18: 0.2682 | E18: =+C18 -> 0.2682 | F18: =+E18*B18 -> 0.139464
A20: DEBT | B20: 0.48 | C20: 0.0569 | D20: 0.26 | E20: =+C20*(1-D20) -> 0.042106 | F20: =+B20*E20 -> 0.02021088
A22: TOTAL | B22: =+B18+B20 -> 1 | F22: =+F18+F20 -> 0.15967488
E24: SAY | F24: 0.1597

Sheet S&D_AC P United
A1: KENTUCKY DEPARTMENT OF REVENUE
A2: DIVISION OF STATE VALUATION, PUBLIC SERVICE BRANCH
A3: 2020 Tax Year
A6: The capital structure of this industry is a representative or typical capital structure of the group, not that of the present owner. The capital structure selected reflects the most likely arrangement of a prospective buyer.
A9: Industry > Air Carriers - Passenger
H11: Dec. 31, 2019
D12: 4th Qtr | F12: 4th Qtr | H12: Common Stock | I12: Dec. 31, 2019 | J12: Dec. 31, 2019
B13: Ticker | C13: Industry | D13: Stock Price | F13: Average | G13: Dec. 31, 2019 | H13: Shares Outstanding | I13: Preferred Stock | J13: Long Term Debt **
A14: Company | B14: Symbol | C14: Group | D14: High | E14: Low | F14: Stock Price | G14: Stock Price | H14: Net of Treasury | I14: BV | J14: BV
A15: VL | B15: VL | C15: VL | D15: Yahoo | E15: Yahoo | F15: Yahoo | G15: Yahoo | H15: 10K / SEC | I15: 10K / SEC | J15: 10K / SEC
A17: United Airlines Holdings Inc | B17: UAL | C17: Airtrans | D17: 93.8 | E17: 83.27 | F17: =AVERAGE(D17,E17) -> 88.535 | G17: 88.09 | H17: 251216381 | I17: 0 | J17: =13145000000+1407000000 -> 14552000000
D22: Dec. 31, 2019 | E22: Dec. 31, 2019 | F22: Dec. 31, 2019 | G22: Dec. 31, 2019 | H22: Dec. 31, 2019 | I22: Dec. 31, 2019 | J22: Dec. 31, 2019
B23: Ticker | C23: Industry | D23: Common Stock | E23: Preferred Stock | F23: Op Leased Property * | G23: Long Term Debt | H23: Total Market Value | I23: % Common Stock | J23: % LT Debt
A24: Company | B24: Symbol | C24: Group | D24: FMV | E24: FMV | F24: FMV | G24: FMV | H24: CS+LTD +PS
A25: VL | B25: VL | C25: VL | D25: Calculated | E25: 10K / SEC | F25: Calculated | G25: 10K / SEC | H25: Calculated | I25: Calculated | J25: Calculated
A26: =+A17 -> United Airlines Holdings Inc | B26: =+B17 -> UAL | C26: =+C17 -> Airtrans | D26: =+G17*(H17) -> 2.2129651e+10 | E26: =(1/1)*I17 -> 0 | F26: 5632000000 | G26: =(15203/14552)*J17 -> 15203000000 | H26: =+D26+E26+F26+G26 -> 4.2964651e+10 | I26: =+D26/H26 -> 0.5150664671 | J26: =(+F26+G26)/H26 -> 0.4849335329
H28: RANGE | I28: 26.35% - 87.22% | J28: 12.78% - 73.65%
A29: * Operating lease rents included are for aircraft, engines, office and facilities, purchased capacity, vehicles, real property, and other operating leased property. | H29: Median | I29: =MEDIAN(I26:I26) -> 0.5150664671 | J29: =MEDIAN(J26:J26) -> 0.4849335329
A30: ** Long Term Debt includes the capital lease debt plus current maturities. | H30: Average | I30: =AVERAGE(I26:I26) -> 0.5150664671 | J30: =AVERAGE(J26:J26) -> 0.4849335329
A31: Any difference between the lease liability value and lease asset value is prepayments, lease incentives, and/or other direct costs.
H32: SAY | I32: 0.52 | J32: 0.48
D39: Op Lese Expense | E39: Company | F39: ROU Values Assets | G39: ROU Values Liab.
D40: 2831000000 | E40: =+A26 -> United Airlines Holdings Inc | F40: 4758000000 | G40: 5632000000

Sheet Debt_AC P United
A1: KENTUCKY DEPARTMENT OF REVENUE
A2: DIVISION OF STATE VALUATION, PUBLIC SERVICE BRANCH
A3: 2020 Tax Year
A5: Industry > Air Carriers - Passenger
B7: Ticker | C7: Industry | D7: Beta | E7: Actual | F7: Financial | G7: S&P | H7: Moody's / Mergent Bond
A8: Company | B8: Symbol | C8: Group | E8: Tax Rate | F8: Strength | G8: Rating | H8: Rating | I8: Debt Rate
A9: VL | B9: VL | C9: VL | D9: VL | E9: VL | F9: VL | G9: S&P | H9: Mergent Bond | I9: Mergent Bond
A11: United Airlines Holdings Inc | B11: UAL | C11: AirTrans | D11: 1.25 | E11: 0.22 | F11: BB | H11: Ba1 Ba2 | I11: 0.0569
C13: RANGE | D13: .90 - 1.40 | E13: 20.50% - 26.00% | I13: 3.37% - 6.57%
C14: Median | D14: =MEDIAN(D11:D11) -> 1.25 | E14: =MEDIAN(E11:E11) -> 0.22 | F14: B++ | H14: Ba1 | I14: =MEDIAN(I11:I11) -> 0.0569
C15: Average | D15: =AVERAGE(D11:D11) -> 1.25 | E15: =AVERAGE(E11:E11) -> 0.22 | I15: =AVERAGE(I11:I11) -> 0.0569
H17: Say | I17: 0.0569

Sheet CF Multiples_AC P United
A1: KENTUCKY DEPARTMENT OF REVENUE
A2: DIVISION OF STATE VALUATION, PUBLIC SERVICE BRANCH
A3: 2020 Tax Year
A5: Industry > Air Carriers - Passenger
D7: CASH FLOW MULTIPLIERS
D8: YEAR END 12/31/2019
B11: Ticker | D11: Cash Flow | E11: Cash Flow | F11: Computed
A12: Company | B12: Symbol | C12: Price | D12: Per Share | E12: Multiple | F12: Inverse
C13: VL | D13: VL
A16: United Airlines Holdings Inc | B16: UAL | C16: 80.53 | D16: 21.6 | E16: =C16/D16 -> 3.728240741 | F16: =1/E16 -> 0.2682230225
B18: RANGE | C18: 20.51 - 164.02 | D18: 3.85 - 24.25 | E18: 3.12 - 8.46 | F18: 11.82% - 32.00%
B19: Median | C19: =MEDIAN(C16:C16) -> 80.53 | D19: =MEDIAN(D16:D16) -> 21.6 | E19: =MEDIAN(E16:E16) -> 3.728240741 | F19: =MEDIAN(F16:F16) -> 0.2682230225
B20: Average | C20: =AVERAGE(C16:C16) -> 80.53 | D20: =AVERAGE(D16:D16) -> 21.6 | E20: =AVERAGE(E16:E16) -> 3.728240741 | F20: =AVERAGE(F16:F16) -> 0.2682230225
E22: SAY | F22: 0.2682

Sheet CapRate_EU
C1: KENTUCKY DEPARTMENT OF REVENUE
C2: DIVISION OF STATE VALUATION, PUBLIC SERVICE BRANCH
C4: 2020 Tax Year
C5: DIRECT CAPITALIZATION RATE STUDY
C11: ELECTRIC UTILITIES
C12: Cash Flow Direct Capitalization Rate
A14: Source of | B14: Capital | C14: Cost of | D14: Tax | E14: Cost of Capital | F14: Weighted
A15: Capital | B15: Structure | C15: Capital | D15: Rate | E15: After Tax | F15: Cost
A18: EQUITY | B18: 0.59 | C18: 0.0995 | D18: - | E18: =+C18 -> 0.0995 | F18: =+E18*B18 -> 0.058705
A20: DEBT | B20: 0.41 | C20: 0.0393 | D20: 0.26 | E20: =+C20*(1-D20) -> 0.029082 | F20: =+B20*E20 -> 0.01192362
A22: TOTAL | B22: =+B18+B20 -> 1 | F22: =+F18+F20 -> 0.07062862
E24: SAY | F24: 0.0706

Sheet S&D_EU
A1: KENTUCKY DEPARTMENT OF REVENUE
A2: DIVISION OF STATE VALUATION, PUBLIC SERVICE BRANCH
A3: 2020 Tax Year
A6: The capital structure of this industry is a representative or typical capital structure of the group, not that of the present owner. The capital structure selected reflects the most likely arrangement of a prospective buyer.
A9: Industry > Electric Companies
D12: 4th Qtr | E12: 4th Qtr | F12: 4th Qtr | H12: Dec. 31, 2019 | I12: Dec. 31, 2019 | J12: Dec. 31, 2019
B13: Ticker | C13: Industry | D13: Stock Price | E13: Stock Price | F13: Average | G13: Dec. 31, 2019 | H13: Common Stock | I13: Preferred Stock | J13: Long Term Debt
A14: Company | B14: Symbol | C14: Group | D14: High | E14: Low | F14: Stock Price | G14: Stock Price | H14: Shares Outstanding | I14: BV | J14: BV
A15: VL | B15: VL | C15: VL | D15: Yahoo | E15: Yahoo | G15: Yahoo | H15: 10K / SEC | I15: 10K / SEC | J15: 10K / SEC
A17: Allete | B17: ALE | C17: Electric Utility | D17: 87.25 | E17: 78.82 | F17: =AVERAGE(D17,E17) -> 83.035 | G17: 81.05 | H17: 51700000 | I17: 0 | J17: =1400900000+212900000 -> 1613800000
A18: Alliant Energy | B18: LNT | C18: Electric Utility | D18: 54.95 | E18: 51.5 | F18: =AVERAGE(D18,E18) -> 53.225 | G18: 54.72 | H18: 245022800 | I18: 200000000 | J18: =5333000000+657200000 -> 5990200000
A19: AMEREN | B19: AEE | C19: Electric Utility | D19: 79.66 | E19: 73.68 | F19: 76.67 | G19: 76.8 | H19: 246200000 | I19: 0 | J19: =8915000000+442000000 -> 9357000000
A20: American Electric Power | B20: AEP | C20: Electric Utility | D20: 95.72 | E20: 88.5 | F20: 92.11 | G20: 94.51 | H20: =514373631-20204160 -> 494169471 | I20: 0 | J20: =25126800000+1598700000 -> 26725500000
A21: Centerpoint Energy | B21: CNP | C21: Electric Utility | D21: 30.16 | E21: 24.39 | F21: 27.275 | G21: 27.27 | H21: 502242061 | I21: 1740000000 | J21: =14244000000+231000000+618000000 -> 15093000000
A22: CMS Energy | B22: CMS | C22: Electric Utility | D22: 64.92 | E22: 59.58 | F22: 62.25 | G22: 62.84 | H22: 283900000 | I22: 37000000 | J22: =11951000000+1130000000+76000000 -> 13157000000
A23: DTE Energy | B23: DTE | C23: Electric Utility | D23: 133.19 | E23: 120.49 | F23: 126.84 | G23: 129.87 | H23: 192208533 | I23: 164000000 | J23: =15935000000+687000000 -> 16622000000
A24: Duke Energy | B24: DUK | C24: Electric Utility | D24: 97.17 | E24: 86.66 | F24: 91.915 | G24: 91.21 | H24: 733000000 | I24: =989000000+973000000 -> 1962000000 | J24: =54985000000+3141000000 -> 58126000000
A25: Entergy Corp | B25: ETR | C25: Electric Utility | D25: 121.56 | E25: 114.09 | F25: 117.825 | G25: 119.8 | H25: =270035180-70886400 -> 199148780 | I25: 35000000 | J25: =17078643000+795012000 -> 17873655000
A26: FirstEnergy Solutions Corp | B26: FE | C26: Electric Utility | D26: 48.82 | E26: 46.03 | F26: 47.425 | G26: 48.6 | H26: 540652222 | I26: 0 | J26: =19618000000+380000000 -> 19998000000
A27: MGE Energy | B27: MGEE | C27: Electric Utility | D27: 79.88 | E27: 72.99 | F27: 76.435 | G27: 78.82 | H27: 34668000 | I27: 0 | J27: =1200000+19300000+70000000+457379000 -> 547879000
A28: OGE Energy Corp. | B28: OGE | C28: Electric Utility | D28: 45.26 | E28: 41.96 | F28: 43.61 | G28: 44.03 | H28: 200100000 | I28: 0 | J28: 3195200000
A29: Otter Tail Corp | B29: OTTR | C29: Electric Utility | D29: 57.43 | E29: 48.51 | F29: 52.97 | G29: 51.29 | H29: 40157591 | I29: 0 | J29: =689581000+183000 -> 689764000
A30: PPL Corporation | B30: PPL | C30: Electric Utility | D30: 36.25 | E30: 30.21 | F30: 33.23 | G30: 35.88 | H30: 767233000 | I30: 0 | J30: =20721000000+1172000000 -> 21893000000
A31: Southern | B31: SO | C31: Electric Utility | D31: 63.86 | E31: 60.33 | F31: 62.095 | G31: 63.7 | H31: =1100000000-100000000 -> 1000000000 | I31: 291000000 | J31: =2989000000+41798000000 -> 44787000000
A32: WEC Energy Group | B32: WEC | C32: Electric Utility | D32: 96.08 | E32: 87.14 | F32: 91.61 | G32: 92.23 | H32: 315434531 | I32: =30400000 -> 30400000 | J32: =11211000000+693200000 -> 11904200000
D37: Dec. 31, 2019 | E37: Dec. 31, 2019 | F37: Dec. 31, 2019 | G37: Dec. 31, 2019 | H37: Dec. 31, 2019 | I37: Dec. 31, 2019
B38: Ticker | C38: Industry | D38: Common Stock | E38: Preferred Stock & | F38: Long Term Debt * | G38: Total Market Value | H38: % Common Stock | I38: % LT Debt & Pref Stock
A39: Company | B39: Symbol | C39: Group | D39: FMV | E39: FMV | F39: FMV | G39: CS+LTD +PS
A40: VL | B40: VL | C40: VL | D40: Calculated | E40: 10K / SEC | F40: 10K / SEC | G40: Calculated | H40: Calculated | I40: Calculated
A42: =+A17 -> Allete | B42: =+B17 -> ALE | C42: =+C17 -> Electric Utility | D42: =(+H17)*G17 -> 4190285000 | E42: =(1/1)*I17 -> 0 | F42: =J17*(1791.8/1622.6) -> 1782082362 | G42: =+D42+E42+F42 -> 5972367362 | H42: =(+D42)/G42 -> 0.7016120654 | I42: =(+E42+F42)/G42 -> 0.2983879346
A43: =+A18 -> Alliant Energy | B43: LNT | C43: Electric Utility | D43: =(+H18)*G18 -> 13407647616 | E43: =(194.8/200)*I18 -> 194800000 | F43: =J18*(6917.9/6190.2) -> 6694388643 | G43: =+D43+E43+F43 -> 2.029683626e+10 | H43: 0.6605782027 | I43: =(+E43+F43)/G43 -> 0.3394217973
A44: AMEREN | B44: AEE | C44: Electric Utility | D44: 18908160000 | E44: =(1/1)*I19 -> 0 | F44: =J19*(10441/9357) -> 10441000000 | G44: 29349160000 | H44: 0.6442487621 | I44: 0.3557512379
A45: American Electric Power | B45: AEP | C45: Electric Utility | D45: 4.67039567e+10 | E45: =(1/1)*I20 -> 0 | F45: 30172000000 | G45: 7.68759567e+10 | H45: 0.6075235835 | I45: 0.3924764165
A46: Centerpoint Energy | B46: CNP | C46: Electric Utility | D46: 1.3696141e+10 | E46: 1740000000 | F46: =J21*(16067/15093) -> 16067000000 | G46: 3.1503141e+10 | H46: 0.4347547758 | I46: 0.5652452242
A47: CMS Energy | B47: CMS | C47: Electric Utility | D47: 17840276000 | E47: 37000000 | F47: =J22*(14185/13157) -> 14185000000 | G47: 32062276000 | H47: 0.5564257509 | I47: 0.4435742491
A48: DTE Energy | B48: DTE | C48: Electric Utility | D48: 2.496212218e+10 | E48: 164000000 | F48: =J23*(18031/16606) -> 1.8048373e+10 | G48: 4.317449518e+10 | H48: 0.5781682467 | I48: 0.4218317533
A49: Duke Energy | B49: DUK | C49: =+C24 -> Electric Utility | D49: 6.685693e+10 | E49: 1962000000 | F49: 63062000000 | G49: 131880930000 | H49: 0.5069491851 | I49: 0.4930508149
A50: Entergy Corp | B50: ETR | C50: =+C25 -> Electric Utility | D50: 23858023844 | E50: 35000000 | F50: 19059950000 | G50: 42952973844 | H50: 0.5554452162 | I50: 0.4445547838
A51: FirstEnergy Solutions Corp | B51: FE | C51: Electric Utility | D51: 2.627569799e+10 | E51: 0 | F51: =J26*(22928/20074) -> 2.284119478e+10 | G51: 4.911689277e+10 | H51: 0.5349625456 | I51: 0.4650374544
A52: MGE Energy | B52: MGEE | C52: Electric Utility | D52: 2732531760 | E52: 0 | F52: =J27*(611909/547879) -> 611909000 | G52: 3344440760 | H52: 0.8170369745 | I52: 0.1829630255
A53: OGE Energy Corp. | B53: OGE | C53: Electric Utility | D53: 8810403000 | E53: 0 | F53: 3646000000 | G53: 12456403000 | H53: 0.7072991296 | I53: 0.2927008704
A54: Otter Tail Corp | B54: OTTR | C54: Electric Utility | D54: 2059682842 | E54: 0 | F54: =J29*(742279/689764) -> 742279000 | G54: 2801961842 | H54: 0.7350859713 | I54: 0.2649140287
A55: PPL Corporation | B55: PPL | C55: =+C30 -> Electric Utility | D55: 2.752832004e+10 | E55: 0 | F55: =J30*(25481000000/21893000000) -> 25481000000 | G55: 53009320040 | H55: 0.5193109442 | I55: 0.4806890558
A56: Southern | B56: SO | C56: =+C31 -> Electric Utility | D56: 63700000000 | E56: 291000000 | F56: =J31*(48339/44561) -> 4.858416088e+10 | G56: 1.125751609e+11 | H56: 0.5658441836 | I56: 0.4341558164
A57: WEC Energy Group | B57: WEC | C57: Electric Utility | D57: 2.909252679e+10 | E57: 29500000 | F57: =J32*(13035.9/11858.3) -> 1.308635814e+10 | G57: 4.220838494e+10 | H57: 0.689259417 | I57: 0.310740583
G61: RANGE | H61: 43.48% - 81.70% | I61: 18.30% - 56.52%
G62: Median | H62: =MEDIAN(H42:H57) -> 0.5928459151 | I62: =MEDIAN(I42:I57) -> 0.4071540849
G63: Average | H63: =AVERAGE(H42:H57) -> 0.6134065596 | I63: =AVERAGE(I42:I57) -> 0.3865934404
G65: SAY | H65: 0.59 | I65: 0.41

Sheet Debt_EU
A1: KENTUCKY DEPARTMENT OF REVENUE
A2: DIVISION OF STATE VALUATION, PUBLIC SERVICE BRANCH
A3: 2020 Tax Year
A5: Industry > Electric Companies
B7: Ticker | C7: Industry | D7: Beta | E7: Actual | F7: Financial | G7: S & P | H7: Mergent Bond | I7: Mergent Bond
A8: Company | B8: Symbol | C8: Group | E8: Tax Rate | F8: Strength | G8: Rating | H8: Rating | I8: Debt Rate
A9: VL | B9: VL | C9: VL | D9: VL | E9: VL | F9: VL | G9: S&P | H9: Mergent Bond | I9: Mergent Bond
A12: Allete | B12: ALE | C12: Electric Utility | D12: 0.65 | E12: 0 | F12: A | G12: BBB+ | H12: Baa1 | I12: 0.0393
A13: Alliant Energy | B13: LNT | C13: Electric Utility | D13: 0.6 | E13: 0.11 | F13: A | G13: BBB | H13: Baa2 | I13: 0.0393
A14: AMEREN | B14: AEE | C14: Electric Utility | D14: 0.55 | E14: 0.18 | F14: A | G14: BBB+ | H14: Baa1 / A | I14: 0.0393
A15: American Electric Power | B15: AEP | C15: Electric Utility | D15: 0.55 | E15: 0.02 | F15: A+ | G15: BBB+ | H15: Baa1 | I15: 0.0393
A16: Centerpoint Energy | B16: CNP | C16: Electric Utility | D16: 0.8 | E16: 0.125 | F16: B+ | G16: BBB | H16: Baa2 | I16: 0.0393
A17: CMS Energy | B17: CMS | C17: Electric Utility | D17: 0.5 | E17: 0.17 | F17: B++ | G17: BBB+ | H17: Baa1 | I17: 0.0393
A18: DTE Energy | B18: DTE | C18: Electric Utility | D18: 0.55 | E18: 0.12 | F18: B++ | G18: BBB | H18: Baa2 / Aa | I18: 0.0393
A19: Duke Energy | B19: DUK | C19: Electric Utility | D19: 0.5 | E19: 0.12 | F19: A | G19: A , A- | H19: A2, Aa2. A3 | I19: 0.0337
A20: Entergy Corp | B20: ETR | C20: Electric Utility | D20: 0.6 | E20: 0.23 | F20: B++ | G20: BBB | H20: Baa2 | I20: 0.0393
A21: FirstEnergy Corp | B21: FE | C21: Electric Utility | D21: 0.65 | E21: 0.225 | F21: B++ | G21: BBB | H21: Baa1, A3 | I21: 0.0393
A22: MGE Energy | B22: MGEE | C22: Electric Utility | D22: 0.55 | E22: 0.19 | F22: A+ | G22: A+ | H22: A1 / A | I22: 0.0337
A23: OGE Energy Corp. | B23: OGE | C23: Electric Utility | D23: 0.75 | E23: 0.06 | F23: A | G23: BBB+ | H23: Baa1 / A | I23: 0.0393
A24: Otter Tail Corp | B24: OTTR | C24: Electric Utility | D24: 0.7 | E24: 0.18 | F24: A | G24: BBB | H24: Baa2 / A | I24: 0.0393
A25: PPL Corporation | B25: PPL | C25: Electric Utility | D25: 0.7 | E25: 0.19 | F25: B++ | G25: BBB+, A, A- | H25: Baa1,2,3, A1 | I25: 0.0393
A26: Southern Company | B26: SO | C26: Electric Utility | D26: 0.5 | E26: 0.2 | F26: A | G26: BBB, BBB- BB+ | H26: Baa2,3, Ba1 | I26: 0.0393
A27: WEC Energy Group | B27: WEC | C27: Electric Utility | D27: 0.5 | E27: 0.11 | F27: A+ | G27: BBB+ | H27: Baa1 | I27: 0.0393
C29: RANGE | D29: .50 - .80 | E29: 0% - 23.00% | F29: A+ - B++ | H29: A1 - Baa2 | I29: 3.37% - 3.93%
C30: Median | D30: =MEDIAN(D12:D27) -> 0.575 | E30: =MEDIAN(E12:E27) -> 0.1475 | I30: =MEDIAN(I12:I27) -> 0.0393
C31: Average | D31: =AVERAGE(D12:D27) -> 0.603125 | E31: =AVERAGE(E12:E27) -> 0.139375 | I31: =AVERAGE(I12:I27) -> 0.0386
H33: Say | I33: 0.0393

Sheet CF Multiples_EU
A1: KENTUCKY DEPARTMENT OF REVENUE
A2: DIVISION OF STATE VALUATION, PUBLIC SERVICE BRANCH
A3: 2020 Tax Year
A5: Industry > Electric Companies
D7: CASH FLOW MULTIPLIERS
D8: YEAR END 12/31/2019
B11: Ticker | D11: Cash Flow | E11: Cash Flow | F11: Computed
A12: Company | B12: Symbol | C12: Price | D12: Per Share | E12: Multiple | F12: Inverse
C13: VL | D13: VL
A16: Allete | B16: ALE | C16: 80.04 | D16: 7.35 | E16: =C16/D16 -> 10.88979592 | F16: =1/E16 -> 0.09182908546
A17: Alliant Energy | B17: LNT | C17: 52.7 | D17: 4.6 | E17: 11.45652174 | F17: 0.08728652751
A18: AMEREN | B18: AEE | C18: 73.81 | D18: 7.65 | E18: 9.648366013 | F18: 0.1036444926
A19: American Electric Power | B19: AEP | C19: 90.88 | D19: 9.4 | E19: =C19/D19 -> 9.668085106 | F19: 0.1034330986
A20: Centerpoint Energy | B20: CNP | C20: 24.4 | D20: 4.6 | E20: 5.304347826 | F20: 0.1885245902
A21: CMS Energy | B21: CMS | C21: 61.13 | D21: 6 | E21: 10.18833333 | F21: 0.09815148045
A22: DTE Energy | B22: DTE | C22: 124.01 | D22: 12.5 | E22: 9.9208 | F22: 0.1007983227
A23: Duke Energy | B23: DUK | C23: 93.15 | D23: 11.8 | E23: 7.894067797 | F23: 0.126677402
A24: Entergy Corp | B24: ETR | C24: 116.92 | D24: 15.5 | E24: 7.543225806 | F24: 0.1325692781
A25: FirstEnergy Corp | B25: FE | C25: 47.32 | D25: 4.1 | E25: 11.54146341 | F25: 0.08664412511
A26: MGE Energy | B26: MGEE | C26: 76.73 | D26: 4.65 | E26: 16.50107527 | F26: 0.0606021113
A27: OGE Energy Corp. | B27: OGE | C27: 42.11 | D27: 4 | E27: 10.5275 | F27: 0.0949893137
A28: Otter Tail Corp | B28: OTTR | C28: 49.16 | D28: 4.05 | E28: 12.1382716 | F28: 0.08238405207
A29: PPL Corp | B29: PPL | C29: 33.57 | D29: 3.95 | E29: 8.498734177 | F29: 0.1176645815
A30: Southern Company | B30: SO | C30: 61.36 | D30: 6.3 | E30: 9.73968254 | F30: 0.102672751
A31: WEC Energy Group | B31: WEC | C31: 88.27 | D31: 6.5 | E31: 13.58 | F31: 0.0736377025
B33: RANGE | C33: 24.40-124.01 | D33: 3.95-15.50 | E33: 5.30-16.50 | F33: 6.06-18.85
B34: Median | C34: =MEDIAN(C16:C31) -> 67.585 | D34: =MEDIAN(D16:D31) -> 6.15 | E34: =MEDIAN(E16:E31) -> 10.05456667 | F34: =MEDIAN(F16:F31) -> 0.09947490158
B35: Average | C35: =AVERAGE(C16:C31) -> 69.7225 | D35: =AVERAGE(D16:D31) -> 7.059375 | E35: =AVERAGE(E16:E31) -> 10.31501691 | F35: =AVERAGE(F16:F31) -> 0.1032193072
E37: SAY | F37: 0.0995
A40: Guideline companies were selected from Electric (East & Central & West) Value Line Industry groups.
A42: Companies excluded from this study include >
A44: Great Plains Energy - No longer publicly traded. Evergy Inc created through a merger of Great Plains and Westar Energy Inc.
A45: Westar Energy - No longer publicly traded. Evergy Inc created through a merger of Great Plains and Westar Energy Inc.
A46: Vectren Corp - No longer publicly traded. Merged with Center Point Energy Inc. on February 1, 2019.

Sheet CapRate_EU Wholesale
C1: KENTUCKY DEPARTMENT OF REVENUE
C2: DIVISION OF STATE VALUATION, PUBLIC SERVICE BRANCH
C4: 2020 Tax Year
C5: DIRECT CAPITALIZATION RATE STUDY
C11: INDEPENDENT ELECTRIC UTILITIES
C12: Cash Flow Direct Capitalization Rate
A14: Source of | B14: Capital | C14: Cost of | D14: Tax | E14: Cost of Capital | F14: Weighted
A15: Capital | B15: Structure | C15: Capital | D15: Rate | E15: After Tax | F15: Cost
A18: EQUITY | B18: 0.53 | C18: 0.1561 | D18: - | E18: =+C18 -> 0.1561 | F18: =+E18*B18 -> 0.082733
A20: DEBT | B20: 0.47 | C20: 0.0569 | D20: 0.26 | E20: =+C20*(1-D20) -> 0.042106 | F20: =+B20*E20 -> 0.01978982
A22: TOTAL | B22: =+B18+B20 -> 1 | F22: =+F18+F20 -> 0.10252282
E24: SAY | F24: 0.1025

Sheet S&D_EU Wholesale
A1: KENTUCKY DEPARTMENT OF REVENUE
A2: DIVISION OF STATE VALUATION, PUBLIC SERVICE BRANCH
A3: 2020 Tax Year
A6: The capital structure of this industry is a representative or typical capital structure of the group, not that of the present owner. The capital structure selected reflects the most likely arrangement of a prospective buyer.
A9: Industry > Independent Electric Companies
D11: 4th Qtr
B12: Ticker | C12: Industry | D12: Stock Price | E12: 4th Qtr | F12: 4th Qtr | H12: Dec. 31, 2019 | I12: Dec. 31, 2019 | J12: Dec. 31, 2019
E13: Stock Price | F13: Average | G13: Dec. 31, 2019 | H13: Common Stock | I13: Preferred Stock | J13: Long Term Debt
A14: Company | B14: Symbol | C14: Group | D14: High | E14: Low | F14: Stock Price | G14: Stock Price | H14: Shares Issued | I14: BV | J14: BV
A15: VL | B15: VL | C15: VL | D15: Yahoo | E15: Yahoo | F15: Yahoo | G15: Yahoo | H15: 10K / SEC | I15: 10K / SEC | J15: 10K / SEC
A17: AES Corp | B17: AES | C17: Wholesale Power | D17: 20.04 | E17: 15.51 | F17: =AVERAGE(D17,E17) -> 17.775 | G17: 20.04 | H17: =663952656-153891260 -> 510061396 | I17: 0 | J17: 22435000000
A18: Exelon Corp | B18: EXC | C18: Wholesale Power | D18: 48.46 | E18: 43.82 | F18: =AVERAGE(D18,E18) -> 46.14 | G18: 45.59 | H18: =973000000-2000000 -> 971000000 | I18: 0 | J18: =4710000000+31329000000 -> 36039000000
A19: NextEra Energy | B19: NEE | C19: Wholesale Power | D19: 242.71 | E19: 222.08 | F19: 232.395 | G19: 242.16 | H19: 489000000 | I19: 0 | J19: 37543000000
A20: NRG Energy | B20: NRG | C20: Wholesale Power | D20: 40.84 | E20: 38.21 | F20: 39.525 | G20: 39.89 | H20: =248996189-172894601 -> 76101588 | I20: 0 | J20: =5803000000+88000000 -> 5891000000
A21: Southern Company | B21: SO | C21: Wholesale Power | D21: 63.86 | E21: 60.33 | F21: 62.095 | G21: 63.7 | H21: =1100000000-100000000 -> 1000000000 | I21: 291000000 | J21: =41798000000+2989000000 -> 44787000000
A22: Transalta Corporation | B22: TSE-TA.TO | C22: Wholesale Power | D22: 9.28 | E22: 7.65 | F22: 8.465 | G22: 9.28 | H22: 277000000 | I22: 0 | J22: =3070000000/1.41 -> 2177304965
A23: Vistra Energy | B23: VST | C23: Wholesale Power | D23: 27.37 | E23: 22.82 | F23: 25.095 | G23: 22.99 | H23: =487698111-41043224 -> 446654887 | I23: 0 | J23: 10102000000
D27: Dec. 31, 2019 | E27: Dec. 31, 2019 | F27: Dec. 31, 2019 | G27: Dec. 31, 2019 | H27: Dec. 31, 2019 | I27: Dec. 31, 2019
B28: Ticker | C28: Industry | D28: Common Stock | E28: Preferred Stock | F28: Long Term Debt * | G28: Total Market Value | H28: % Common Stock | I28: % LT Debt & Pref Stock
A29: Company | B29: Symbol | C29: Group | D29: FMV | E29: FMV | F29: FMV | G29: CS+LTD +PS
A30: VL | B30: VL | C30: VL | D30: Calculated | E30: 10K / SEC | F30: 10K / SEC | G30: Calculated | H30: Calculated | I30: Calculated
A32: =+A17 -> AES Corp | B32: AES | C32: Wholesale Power | D32: =(+H17)*G17 -> 1.022163038e+10 | E32: =(1/1)*I17 -> 0 | F32: =J17*(1/1) -> 22435000000 | G32: =+D32+E32+F32 -> 3.265663038e+10 | H32: =(+D32)/G32 -> 0.3130032174 | I32: =(+E32+F32)/G32 -> 0.6869967826
A33: Exelon Corp | B33: EXC | C33: Wholesale Power | D33: 44267890000 | E33: 0 | F33: =J18*(7221/7175) -> 3.627005143e+10 | G33: =+D33+E33+F33 -> 8.053794143e+10 | H33: 0.5496526136 | I33: =(+E33+F33)/G33 -> 0.4503473864
A34: NextEra Energy | B34: NEE | C34: Wholesale Power | D34: 118416240000 | E34: 0 | F34: =J19*(42928/39667) -> 4.062938725e+10 | G34: 1.590456272e+11 | H34: 0.7445425696 | I34: 0.2554574304
A35: NRG Energy | B35: NRG | C35: Wholesale Power | D35: 3035692345 | E35: 0 | F35: =J20*(6504/5956) -> 6433019476 | G35: 9468711821 | H35: 0.3206024645 | I35: 0.6793975355
A36: Southern Company | B36: SO | C36: Wholesale Power | D36: 63700000000 | E36: 291000000 | F36: =J21*(80432/76570) -> 4.704594468e+10 | G36: 1.110369447e+11 | H36: 0.5736829322 | I36: 0.4263170678
A37: Transalta Corporation | B37: TSE-TA.TO | C37: Wholesale Power | D37: 2570560000 | E37: 0 | F37: =J22*(3157/3070) -> 2239007092 | G37: 4809567092 | H37: 0.5344680614 | I37: 0.4655319386
A38: Vistra Energy | B38: VST | C38: =+C23 -> Wholesale Power | D38: 1.026859585e+10 | E38: 0 | F38: =J23*(2717/2715) -> 1.010944162e+10 | G38: 2.037803747e+10 | H38: 0.5039050432 | I38: 0.4960949568
G41: RANGE | H41: 31.30% - 74.45% | I41: 25.55% - 68.70%
G42: Median | H42: =MEDIAN(H32:H38) -> 0.5344680614 | I42: =MEDIAN(I32:I38) -> 0.4655319386
G43: Average | H43: =AVERAGE(H32:H38) -> 0.5056938431 | I43: =AVERAGE(I32:I38) -> 0.4943061569
G45: SAY | H45: 0.53 | I45: 0.47

Sheet Debt_EU Wholesale
A1: KENTUCKY DEPARTMENT OF REVENUE
A2: DIVISION OF STATE VALUATION, PUBLIC SERVICE BRANCH
A3: 2020 Tax Year
A5: Industry > Independent Electric Companies
B7: Ticker | C7: Industry | D7: Beta | E7: Actual | F7: Financial | G7: S & P | H7: Mergent Bond | I7: Mergent Bond
A8: Company | B8: Symbol | C8: Group | E8: Tax Rate | F8: Strength | G8: Rating | H8: Rating | I8: Debt Rate
A9: VL | B9: VL | C9: VL | D9: VL | E9: VL | F9: VL | G9: S&P | H9: Mergent Bond | I9: Mergent Bond
A12: AES Corp | B12: AES | C12: Wholesale Power | D12: 1.1 | E12: 0.28 | F12: B | G12: BB+ | H12: Ba1 | I12: 0.0569
A13: Exelon Corp | B13: EXC | C13: Wholesale Power | D13: 0.65 | E13: 0.205 | F13: B++ | G13: BBB+ | H13: Baa2 | I13: 0.0393
A14: NextEra Energy | B14: NEE | C14: Wholesale Power | D14: 0.55 | E14: 0.09 | F14: A+ | G14: A- | H14: Baa1 | I14: 0.0393
A15: NRG Energy | B15: NRG | C15: Wholesale Power | D15: 1.25 | E15: 0.21 | F15: B+ | G15: BB | H15: Ba1 | I15: 0.0569
A16: Southern Company | B16: SO | C16: Wholesale Power | D16: 0.5 | E16: 0.2 | F16: A | G16: A- BBB, BBB- BB+ | H16: Baa2,3, Ba1 | I16: 0.0569
A17: Transalta Corporation | B17: TSE-TA.TO | C17: Wholesale Power | D17: 0.95 | E17: 0.25 | F17: C+ | G17: BB+ | H17: Ba1 | I17: 0.0569
A18: Vistra Energy | B18: VST | C18: Wholesale Power | D18: 0.85 | E18: 0.2 | F18: B+ | G18: BB | H18: Ba1 | I18: 0.0569
C20: RANGE | D20: .50 - 1.25 | E20: 9.00% - 28.00% | F20: A+ - B++ | G20: A- BB | H20: Ba1 Baa1 | I20: 3.93% - 5.69%
C21: Median | D21: =MEDIAN(D12:D18) -> 0.85 | E21: =MEDIAN(E12:E18) -> 0.205 | I21: =MEDIAN(I12:I18) -> 0.0569
C22: Average | D22: =AVERAGE(D12:D18) -> 0.8357142857 | E22: =AVERAGE(E12:E18) -> 0.205 | I22: =AVERAGE(I12:I18) -> 0.05187142857
H24: Say | I24: 0.0569
A26: Independent Unregulated Wholesale Electric companies selected are limited to those companies that are operating in or near Kentucky.
A27: Guideline companies were selected from Power Producers in Value Line Industry groups.

Sheet CF Multiples_EU Wholesale
A1: KENTUCKY DEPARTMENT OF REVENUE
A2: DIVISION OF STATE VALUATION, PUBLIC SERVICE BRANCH
A3: 2020 Tax Year
A5: Industry > Independent Electric Companies
D7: CASH FLOW MULTIPLIERS
D8: YEAR END 12/31/2019
B11: Ticker | D11: Cash Flow | E11: Cash Flow | F11: Computed
A12: Company | B12: Symbol | C12: Price | D12: Per Share | E12: Multiple | F12: Inverse
C13: VL | D13: VL Actual 2019 CF
A16: AES Corp | B16: AES | C16: 15.21 | D16: 2.05 | E16: =C16/D16 -> 7.419512195 | F16: =1/E16 -> 0.1347797502
A17: Exelon Corp | B17: EXC | C17: 44.78 | D17: 9 | E17: 4.975555556 | F17: 0.2009825815
A18: NextEra Energy Inc | B18: NEE | C18: 227.11 | D18: 16.45 | E18: 13.80607903 | F18: 0.07243186121
A19: NRG Energy | B19: NRG | C19: 32.35 | D19: 5.05 | E19: 6.405940594 | F19: 0.1561051005
A20: Southern Company | B20: SO | C20: 61.36 | D20: 6.3 | E20: 9.73968254 | F20: 0.102672751
A21: TransAlta Corporation | B21: TSE-TA.TO | C21: 8.02 | D21: 2.7 | E21: 2.97037037 | F21: 0.3366583541
A22: Vistra Energy | B22: VST | C22: 19.34 | D22: 5.27 | E22: =C22/D22 -> 3.669829222 | F22: =1/E22 -> 0.2724922441
B24: RANGE | C24: 8.02 - 227.11 | D24: 2.70-16.45 | E24: 2.97-13.81 | F24: 7.24-33.67
B25: Median | C25: =MEDIAN(C16:C22) -> 32.35 | D25: =MEDIAN(D16:D22) -> 5.27 | E25: =MEDIAN(E16:E22) -> 6.405940594 | F25: =MEDIAN(F16:F22) -> 0.1561051005
B26: Average | C26: =AVERAGE(C16:C22) -> 58.31 | D26: =AVERAGE(D16:D22) -> 6.688571429 | E26: =AVERAGE(E16:E22) -> 6.998138501 | F26: =AVERAGE(F16:F22) -> 0.1823032346
E28: SAY | F28: 0.1561
A31: Guideline companies were selected from Power Producers in Value Line Industry groups.
A33: Companies excluded from the study >
A35: BMX Technologies - Nuclear energy supplier
A36: Ormat Technologies Inc. - Geothermal operations
A37: Pattern Energy- Was unable to find Valueline page and info for company. Company removed
A40: Companies added to the study >
A42: Exelon Corp - 68% Nuclear energy provider of electricty. Has nonregulated generation and marketing operations. Added in 2019 study.
A43: TransAlta Corporation - Unregulated electric power producer

Sheet CapRate_Gas Dist
C1: KENTUCKY DEPARTMENT OF REVENUE
C2: DIVISION OF STATE VALUATION, PUBLIC SERVICE BRANCH
C4: 2020 Tax Year
C5: DIRECT CAPITALIZATION RATE STUDY
C11: GAS DISTRIBUTION COMPANIES
C12: Cash Flow Direct Capitalization Rate
A14: Source of | B14: Capital | C14: Cost of | D14: Tax | E14: Cost of Capital | F14: Weighted
A15: Capital | B15: Structure | C15: Capital | D15: Rate | E15: After Tax | F15: Cost
A18: EQUITY | B18: 0.61 | C18: 0.0736 | D18: - | E18: =+C18 -> 0.0736 | F18: =+E18*B18 -> 0.044896
A20: DEBT | B20: 0.39 | C20: 0.0337 | D20: 0.26 | E20: =+C20*(1-D20) -> 0.024938 | F20: =+B20*E20 -> 0.00972582
A22: TOTAL | B22: =+B18+B20 -> 1 | F22: =+F18+F20 -> 0.05462182
E24: SAY | F24: 0.0546

Sheet S&D_Gas Dist
A1: KENTUCKY DEPARTMENT OF REVENUE
A2: DIVISION OF STATE VALUATION, PUBLIC SERVICE BRANCH
A3: 2020 Tax Year
A6: The capital structure of this industry is a representative or typical capital structure of the group, not that of the present owner. The capital structure selected reflects the most likely arrangement of a prospective buyer.
A9: Industry > Gas Distribution
H11: Dec. 31, 2019
D12: 4th Qtr | E12: 4th Qtr | F12: 4th Qtr | H12: Common Stock | I12: Dec. 31, 2019 | J12: Dec. 31, 2019
B13: Ticker | C13: Industry | D13: Stock Price | E13: Stock Price | F13: Average | G13: Dec. 31, 2018 | H13: Shares Outstanding | I13: Preferred Stock | J13: Long Term Debt
A14: Company | B14: Symbol | C14: Group | D14: High | E14: Low | F14: Stock Price | G14: Stock Price | H14: Net of Treasury | I14: BV | J14: BV
A15: VL | B15: VL | C15: VL | D15: Yahoo | E15: Yahoo | F15: 10K / SEC | G15: Yahoo | H15: 10K / SEC | I15: 10K / SEC | J15: 10K / SEC
A17: Atmos Energy Corp | B17: ATO | C17: Nat Gas Utility | D17: 113.42 | E17: 105.47 | F17: =AVERAGE(D17,E17) -> 109.445 | G17: 111.86 | H17: 122262403 | I17: 0 | J17: =4324285000+50000 -> 4324335000
A18: Black Hills Corporation | B18: BKH | C18: Electric & Gas | D18: 79.44 | E18: 74.71 | F18: =AVERAGE(D18,E18) -> 77.075 | G18: 78.54 | H18: =61480658-3956 -> 61476702 | I18: 0 | J18: =3140096000+5743000 -> 3145839000
A19: CenterPoint Energy Inc. | B19: CNP | C19: Electric & Gas | D19: 30.16 | E19: 24.39 | F19: =AVERAGE(D19,E19) -> 27.275 | G19: 27.27 | H19: 502242061 | I19: 1740000000 | J19: =14244000000+231000000+618000000 -> 15093000000
A20: CMS Energy Corporation | B20: CMS | C20: Electric & Gas | D20: 64.92 | E20: 59.58 | F20: 62.25 | G20: 62.84 | H20: 283900000 | I20: 37000000 | J20: =11951000000+1130000000+76000000 -> 13157000000
A21: MGE Energy Inc. | B21: MGEE | C21: Electric & Gas | D21: 79.88 | E21: 72.99 | F21: 76.435 | G21: 78.82 | H21: 34668000 | I21: 0 | J21: =1200000+19300000+70000000+457379000 -> 547879000
A22: New Jersey Resources Corp | B22: NJR | C22: Nat Gas Utility | D22: 45.46 | E22: 40.61 | F22: 43.035 | G22: 44.57 | H22: =95508010-580603 -> 94927407 | I22: 0 | J22: =1537549000+21797000 -> 1559346000
A23: NISOURCE Inc | B23: NI | C23: Nat Gas Utility | D23: 29.63 | E23: 26.04 | F23: 27.835 | G23: 27.84 | H23: 382135680 | I23: 880000000 | J23: =7856200000+13400000 -> 7869600000
A24: Northwest Natural Gas Company | B24: NWN | C24: Nat Gas Utility | D24: 73.86 | E24: 64.36 | F24: 69.11 | G24: 73.73 | H24: 30472000 | I24: 0 | J24: =769081000+74907000 -> 843988000
A25: One Gas Inc | B25: OGS | C25: Nat Gas Utility | D25: 95.64 | E25: 85.42 | F25: 90.53 | G25: 93.57 | H25: =52771749-33103 -> 52738646 | I25: 0 | J25: =1286064000+84603000 -> 1370667000
A26: Southwest Gas Corp | B26: SWX | C26: Nat Gas Utility | D26: 91.44 | E26: 74.68 | F26: 83.06 | G26: 75.97 | H26: 55007433 | I26: 0 | J26: =125000000+1991333000 -> 2116333000
A27: South Jersey Industries Inc. | B27: SJI | C27: Nat Gas Utility | D27: 32.98 | E27: 29.89 | F27: =AVERAGE(D27,E27) -> 31.435 | G27: 32.98 | H27: 92394155 | I27: 0 | J27: =2070086000+467909000 -> 2537995000
A28: Spire Inc | B28: SR | C28: Nat Gas Utility | D28: 86.15 | E28: 75.54 | F28: =AVERAGE(D28,E28) -> 80.845 | G28: 83.31 | H28: 51100000 | I28: 242000000 | J28: =2484400000+45300000 -> 2529700000
A29: WEC Energy Group | B29: WEC | C29: Electric & Gas | D29: 96.08 | E29: 87.14 | F29: =AVERAGE(D29,E29) -> 91.61 | G29: 92.23 | H29: 315434531 | I29: =30400000 -> 30400000 | J29: =11211000000+693200000 -> 11904200000
D34: Dec. 31, 2018 | E34: Dec. 31, 2018 | F34: Dec. 31, 2018 | G34: Dec. 31, 2018 | H34: Dec. 31, 2019 | I34: Dec. 31, 2019
B35: Ticker | C35: Industry | D35: Common Stock | E35: Preferred Stock | F35: Long Term Debt * | G35: Total Market Value | H35: % Common Stock | I35: % LT Debt & Pref Stock
A36: Company | B36: Symbol | C36: Group | D36: FMV | E36: FMV | F36: FMV | G36: CS+LTD +PS
A37: VL | B37: VL | C37: VL | D37: Calculated | E37: Calculated | F37: 10K / SEC | G37: Calculated | H37: Calculated | I37: Calculated
A39: =+A17 -> Atmos Energy Corp | B39: ATO | C39: Nat Gas Utility | D39: =(+H17)*G17 -> 1.36762724e+10 | E39: =(1/1)*I17 -> 0 | F39: =J17*(4927756/4360000) -> 4887446730 | G39: =+D39+E39+F39 -> 1.856371913e+10 | H39: =(+D39)/G39 -> 0.7367204979 | I39: =(E39+F39)/G39 -> 0.2632795021
A40: Black Hills Corporation | B40: BKH | C40: Electric & Gas | D40: =(+H18)*G18 -> 4828380175 | E40: =(1/1)*I18 -> 0 | F40: =J18*(3479367/3145839) -> 3479367000 | G40: =+D40+E40+F40 -> 8307747175 | H40: 0.5811900715 | I40: =(E40+F40)/G40 -> 0.4188099285
A41: CenterPoint Energy Inc. | B41: CNP | C41: Electric & Gas | D41: =(+H19)*G19 -> 1.3696141e+10 | E41: 1740000000 | F41: =J19*(16067/15093) -> 16067000000 | G41: 3.1503141e+10 | H41: 0.4347547758 | I41: 0.5652452242
A42: CMS Energy Corporation | B42: CMS | C42: Electric & Gas | D42: 17840276000 | E42: 37000000 | F42: =J20*(14185/13157) -> 14185000000 | G42: 32062276000 | H42: 0.5564257509 | I42: 0.4435742491
A43: MGE Energy Inc. | B43: MGEE | C43: Electric & Gas | D43: 2732531760 | E43: 0 | F43: =J21*(611909/547879) -> 611909000 | G43: 3344440760 | H43: 0.8170369745 | I43: 0.1829630255
A44: New Jersey Resources Corp | B44: NJR | C44: Nat Gas Utility | D44: 4230914530 | E44: =(1/1)*I22 -> 0 | F44: =J22*(1548234/1442845) -> 1673244524 | G44: 5904159054 | H44: 0.7165990095 | I44: 0.2834009905
A45: NISOURCE Inc | B45: NI | C45: Nat Gas Utility | D45: =((+H23)*G23)-99900000 -> 1.053875733e+10 | E45: =(1/1)*I23 -> 880000000 | F45: =J23*(8764.4/7869.6) -> 8764400000 | G45: 2.018315733e+10 | H45: 0.5221560313 | I45: 0.4778439687
A46: =+A24 -> Northwest Natural Gas Company | B46: NWN | C46: Nat Gas Utility | D46: 2246700560 | E46: =(1/1)*I24 -> 0 | F46: =J24*(919835/843988) -> 919835000 | G46: 3166535560 | H46: 0.7095137627 | I46: 0.2904862373
A47: =+A25 -> One Gas Inc | B47: OGS | C47: Nat Gas Utility | D47: 4934755106 | E47: =(1/1)*I25 -> 0 | F47: =J25*(1.5/1.3) -> 1581538846 | G47: 6516293952 | H47: 0.7572947357 | I47: 0.2427052643
A48: =+A26 -> Southwest Gas Corp | B48: SWX | C48: Nat Gas Utility | D48: 4178914685 | E48: 0 | F48: =J26*((1965051+150000+200000+125000)/(1991333+125000)) -> 2440051000 | G48: 6618965685 | H48: 0.6313546382 | I48: 0.3686453618
A49: =+A27 -> South Jersey Industries Inc. | B49: SJI | C49: Nat Gas Utility | D49: 3047159232 | E49: 0 | F49: =J27*(2.73/2.54) -> 2727845020 | G49: 5775004252 | H49: 0.5276462318 | I49: 0.4723537682
A50: Spire Inc | B50: SR | C50: Nat Gas Utility | D50: 4257141000 | E50: 242000000 | F50: =J28*(2765900000/2529700000) -> 2765900000 | G50: 7265041000 | H50: 0.5859761838 | I50: 0.4140238162
A51: WEC Energy Group | B51: WEC | C51: Electric & Gas | D51: 2.909252679e+10 | E51: =29500000 -> 29500000 | F51: =J29*(13035.9/11858.3) -> 1.308635814e+10 | G51: 4.220838494e+10 | H51: 0.689259417 | I51: 0.310740583
G55: RANGE | H55: 43.48%-81.70% | I55: 18.30%-56.52%
G56: Median | H56: =MEDIAN(H39:H50) -> 0.608665411 | I56: =MEDIAN(I39:I50) -> 0.391334589
G57: Average | H57: =AVERAGE(H39:H50) -> 0.6313890553 | I57: =AVERAGE(I39:I50) -> 0.3686109447
G59: SAY | H59: 0.61 | I59: 0.39

Sheet Debt_Gas Dist
A1: KENTUCKY DEPARTMENT OF REVENUE
A2: DIVISION OF STATE VALUATION, PUBLIC SERVICE BRANCH
A3: 2020 Tax Year
A5: Industry > Gas Distribution Companies
B7: Ticker | C7: Industry | D7: Beta | E7: Actual | F7: Financial | G7: S&P | H7: Mergent Bond | I7: Mergent Bond
A8: Company | B8: Symbol | C8: Group | E8: Tax Rate | F8: Strength | G8: Rating | H8: Rating | I8: Debt Rate
A9: VL | B9: VL | C9: VL | D9: VL | E9: VL | F9: VL | G9: S&P | H9: Mergent Bond | I9: Mergent Bond
A12: Atmos Energy Corp | B12: ATO | C12: Gas Utility | D12: 0.55 | E12: 0.24 | F12: A+ | G12: A | H12: A1 | I12: 0.0337
A13: Black Hills Corporation | B13: BKH | C13: Electric & Gas | D13: 0.7 | E13: 0.135 | F13: A | H13: Baa2 | I13: 0.0393
A14: CenterPoint Energy Inc. | B14: CNP | C14: Electric & Gas | D14: 0.8 | E14: 0.125 | F14: B++ | H14: Baa2 | I14: 0.0393
A15: CMS Energy Corporation | B15: CMS | C15: Electric & Gas | D15: 0.5 | E15: 0.17 | F15: B++ | H15: Baa1 | I15: 0.0393
A16: MGE Energy Inc. | B16: MGEE | C16: Electric & Gas | D16: 0.55 | E16: 0.19 | F16: A+ | H16: A1 | I16: 0.0337
A17: New Jersey Resources Corp | B17: NJR | C17: Gas Utility | D17: 0.65 | E17: 0.15 | F17: A+ | H17: Aa3 | I17: 0.0313
A18: NISOURCE Inc. | B18: NI | C18: Gas Utility | D18: 0.55 | E18: 0.21 | F18: B+ | G18: BBB+ | H18: Baa2 / Baa3 | I18: 0.0393
A19: Northwest Natural Gas Company | B19: NWN | C19: Gas Utility | D19: 0.55 | E19: 0.21 | F19: A | G19: AA- / A+ | H19: A2 / Baa1 | I19: 0.032
A20: One Gas Inc | B20: OGS | C20: Gas Utility | D20: 0.6 | E20: 0.22 | F20: A | G20: A | H20: A2 | I20: 0.0337
A21: Southwest Gas | B21: SWX | C21: Gas Utility | D21: 0.65 | E21: 0.21 | F21: A | G21: BBB+ | H21: A3 | I21: 0.0337
A22: South Jersey Industries Inc. | B22: SJI | C22: Gas Utility | D22: 0.8 | E22: 0.21 | F22: B++ | G22: BBB | H22: A3 | I22: 0.0337
A23: Spire Inc | B23: SR | C23: Gas Utility | D23: 0.6 | E23: 0.235 | F23: B++ | G23: A- | H23: Baa2 | I23: 0.0393
A24: WEC Energy Group | B24: WEC | C24: Electric & Gas | D24: 0.5 | E24: 0.11 | F24: A+ | H24: Baa1 | I24: 0.0393
C26: RANGE | D26: .50 - .80 | E26: 12.50% - 24.00% | I26: 3.37% - 3.93%
C27: Median | D27: =MEDIAN(D12:D24) -> 0.6 | E27: =MEDIAN(E12:E24) -> 0.21 | G27: A | H27: A3 | I27: =MEDIAN(I12:I24) -> 0.0337
C28: Average | D28: =AVERAGE(D12:D24) -> 0.6153846154 | E28: =AVERAGE(E12:E24) -> 0.1857692308 | I28: =AVERAGE(I12:I24) -> 0.03596923077
H30: Say | I30: 0.0337

Sheet CF Multiples_Gas Dist
A1: KENTUCKY DEPARTMENT OF REVENUE
A2: DIVISION OF STATE VALUATION, PUBLIC SERVICE BRANCH
A3: 2020 Tax Year
A5: Industry > Gas Distribution Companies
E7: CASH FLOW MULTIPLIERS
E8: YEAR END 12/31/2019
B11: Ticker | E11: Cash Flow | F11: Cash Flow | G11: Computed
A12: Company | B12: Symbol | D12: Price | E12: Per Share | F12: Multiple | G12: Inverse
D13: VL | E13: VL Actual 2019 CF
A16: Atmos Energy Corp | B16: ATO | C16: Gas Utility | D16: 120.57 | E16: 7.57 | F16: =D16/E16 -> 15.92734478 | G16: =1/F16 -> 0.06278510409
A17: Black Hills Corporation | B17: BKH | C17: Electric & Gas | D17: 77.18 | E17: 6.85 | F17: 11.26715328 | G17: 0.0887535631
A18: CenterPoint Energy Inc. | B18: CNP | C18: Electric & Gas | D18: 24.4 | E18: 4.6 | F18: 5.304347826 | G18: 0.1885245902
A19: CMS Energy Corporation | B19: CMS | C19: Electric & Gas | D19: 61.13 | E19: 6 | F19: 10.18833333 | G19: 0.09815148045
A20: MGE Energy Inc. | B20: MGEE | C20: Electric & Gas | D20: 76.73 | E20: 4.65 | F20: 16.50107527 | G20: 0.0606021113
A21: New Jersey Resources Corp | B21: NJR | C21: Gas Utility | D21: 43.69 | E21: 2.99 | F21: 14.61204013 | G21: 0.06843671321
A22: NISOURCE Inc. | B22: NI | C22: Gas Utility | D22: 30.21 | E22: 2.8 | F22: 10.78928571 | G22: 0.09268454154
A23: Northwest Natural Gas Company | B23: NWN | C23: Gas Utility | D23: 76.9 | E23: 4.5 | F23: 17.08888889 | G23: 0.05851755527
A24: One Gas INC | B24: OGS | C24: Gas Utility | D24: 96.69 | E24: 6.95 | F24: 13.91223022 | G24: 0.07187920157
A25: Southwest Gas | B25: SWX | C25: Gas Utility | D25: 79.45 | E25: 9.2 | F25: 8.635869565 | G25: 0.1157960982
A26: South Jersey Industries Inc. | B26: SJI | C26: Gas Utility | D26: 32.3 | E26: 2.15 | F26: 15.02325581 | G26: 0.06656346749
A27: Spire Inc | B27: SR | C27: Gas Utility | D27: 87.6 | E27: 7.12 | F27: 12.30337079 | G27: 0.08127853881
A28: WEC Energy Group | B28: WEC | C28: Electric & Gas | D28: 88.27 | E28: 6.5 | F28: 13.58 | G28: 0.0736377025
B30: RANGE | D30: 24.40-120.57 | E30: 2.15-9.20 | F30: 5.30-17.09 | G30: 5.85-18.85
B31: Median | D31: =MEDIAN(D16:D28) -> 76.9 | E31: =MEDIAN(E16:E28) -> 6 | F31: =MEDIAN(F16:F28) -> 13.58 | G31: =MEDIAN(G16:G28) -> 0.0736377025
B32: Average | D32: =AVERAGE(D16:D28) -> 68.85538462 | E32: =AVERAGE(E16:E28) -> 5.529230769 | F32: =AVERAGE(F16:F28) -> 12.70255351 | G32: =AVERAGE(G16:G28) -> 0.08673928213
F34: SAY | G34: 0.0736
A36: Companies excluded from this study include >
A38: Chesapeake Utilities - 50% of their business income is associated with unregulated propane distribution. DOR decided to exclude this company as a guideline utility.
A39: Delta Natural Gas Company - No longer publicly traded. Peoples Natural Gas acquired Delta.
A40: Gas Natural, Inc. - Not publicly traded. Recently acquired (June 2017) by Black Rock Assets Global Energy & Power.
A41: UGI Corporation - Gas distribution utility operations too small (27%).
A42: WGL Holdings - Currently merging with AtlaGas Ltd.
A44: Companies added to this study are >
A46: Black Hills Corporation - 84% of their customers are provided gas distribtuion and 16% are provided electric services. Serve gas customers in Arkansas, Colorado, Iowa, Kansas, Nebraska, and Wyoming.
A47: CenterPoint Energy Inc - 64% of their customers are provided gas distribtuion and 36% are provided electric services. This company merged with Vectren Corp. in early 2019 but will be used for our purposes.
A48: CMS Energy Corporation - 50% of their customers are provided gas distribution and 50% are provided electric services.
A49: MGE Energy Inc. - 51% of their customers are provided gas distribution and 49% are provided electric services.
A50: WEC Energy Group - 64% of their customers receive gas distribution as well as electric service
A53: Atmos Energy Corporation - Nation's largest fully regulated natural gas-only distributor. 3 million customers.
A54: New Jersey Resources Inc. (Holding Company) - New Jersey Natural Gas serves customers in New Jersey and states from the Gulf Coast to New England and Canada. Provides retail and wholesale services to 547,600 customers.
A55: Nisource Inc. - 67% of their business income is associated with natural gas distribution. A natural gas and electric company serving customers in Kentucky, Indiana, Ohio, Pennsylvania, Virginia, Maryland and Massachusetts
A56: NothWest Natural Gas Company - 89% of their business income is associated with natural gas distribution.
A57: One Gas Inc. - Oklahoma, Kansas, and Texas gas distributor. Nation's 3rd largest fully regulated natural gas-only distributor. 2.0 million customers.
A58: Southwest Gas Holdings Inc. (Southwest Gas Corp) - Arizona, California and Nevada gas distributor. A large fully regulated natural gas distributor. 2.0 million customers. Also owns the Paiute Pipeline Company.
A59: South Jersey Industries Inc. - New Jersey and Maryland gas distributor. Fully regulated natural gas-only distributor serving 690,000 customers.
A60: Spire Inc. - Missouri, Alabama and Mississippi gas distributor. Nation's 5th largest fully regulated natural gas-only distributor. 1.7 million customers.

Sheet CapRate_GP
C1: KENTUCKY DEPARTMENT OF REVENUE
C2: DIVISION OF STATE VALUATION, PUBLIC SERVICE BRANCH
C4: 2020 Tax Year
C5: DIRECT CAPITALIZATION RATE STUDY
C11: GAS PIPELINE COMPANIES
C12: Cash Flow Direct Capitalization Rate
A14: Source of | B14: Capital | C14: Cost of | D14: Tax | E14: Cost of Capital | F14: Weighted
A15: Capital | B15: Structure | C15: Capital | D15: Rate | E15: After Tax | F15: Cost
A18: EQUITY | B18: 0.55 | C18: 0.1058 | D18: - | E18: =+C18 -> 0.1058 | F18: =+E18*B18 -> 0.05819
A20: DEBT | B20: 0.45 | C20: 0.0393 | D20: 0.26 | E20: =+C20*(1-D20) -> 0.029082 | F20: =+B20*E20 -> 0.0130869
A22: TOTAL | B22: =+B18+B20 -> 1 | F22: =+F18+F20 -> 0.0712769
E24: SAY | F24: 0.0713

Sheet S&D_GP
A1: KENTUCKY DEPARTMENT OF REVENUE
A2: DIVISION OF STATE VALUATION, PUBLIC SERVICE BRANCH
A3: 2020 Tax Year
A6: The capital structure of this industry is a representative or typical capital structure of the group, not that of the present owner. The capital structure selected reflects the most likely arrangement of a prospective buyer.
A9: Industry > Gas Pipeline Companies
H11: Dec. 31, 2019
D12: 4th Qtr | E12: 4th Qtr | F12: 4th Qtr | H12: Common Stock | I12: Dec. 31, 2019 | J12: Dec. 31, 2019
B13: Ticker | C13: Industry | D13: Stock Price | E13: Stock Price | F13: Average | G13: Dec. 31, 2019 | H13: Shares Outstanding | I13: Preferred Stock | J13: Long Term Debt
A14: Company | B14: Symbol | C14: Group | D14: High | E14: Low | F14: Stock Price | G14: Stock Price | H14: Net of Treasury | I14: BV | J14: BV
A15: VL | B15: VL | C15: VL | D15: Yahoo | E15: Yahoo | F15: Yahoo | G15: Yahoo | H15: 10K / SEC | I15: 10K / SEC | J15: 10K / SEC
A17: DCP Midstream LP | B17: DCP | C17: Pipeline MLPs | D17: 26.14 | E17: 20.64 | F17: =AVERAGE(D17,E17) -> 23.39 | G17: 24.49 | H17: 208329928 | I17: 779000000 | J17: =5321000000+603000000+12000000 -> 5936000000
A18: Enable Midstream Partners LP | B18: ENBL | C18: Pipeline MLPs | D18: 11.79 | E18: 8.95 | F18: 10.37 | G18: 10.03 | H18: 435201365 | I18: =362000000 -> 362000000 | J18: =3969000000+251000000+155000000 -> 4375000000
A19: Enbridge Inc | B19: ENB.TO | C19: Oil & Gas Distribution | D19: 39.77 | E19: 35.14 | F19: 37.455 | G19: 39.77 | H19: 2025000000 | I19: =(7747000000)/1.41 -> 5494326241 | J19: =(59661000000+4404000000)/1.299 -> 4.93187067e+10
A20: Enlink Midstream LLC | B20: ENLC | C20: Oil & Gas Distribution | D20: 8.06 | E20: 4.39 | F20: 6.225 | G20: 6.13 | H20: 487791612 | I20: =1681600000 -> 1681600000 | J20: 4764300000
A21: Enterprise Products Partnership LP | B21: EPD | C21: Pipeline MLPs | D21: 28.59 | E21: 25.15 | F21: =AVERAGE(D21,E21) -> 26.87 | G21: 28.16 | H21: 2189226130 | I21: 0 | J21: =25643200000+1981900000 -> 27625100000
A22: EQM Midstream Partnership LP | B22: EQM | C22: Pipeline MLPs | D22: 33.1 | E22: 21.54 | F22: 27.32 | G22: 29.91 | H22: =200457630+7000000 -> 207457630 | I22: =1183814000 -> 1183814000 | J22: =4859499000+902500000 -> 5761999000
A23: Kinder Morgan Inc | B23: KMI | C23: Oil & Gas Distribution | D23: 21.2 | E23: 19.15 | F23: =AVERAGE(D23,E23) -> 20.175 | G23: 21.17 | H23: 2264936054 | I23: 0 | J23: 31915000000
A24: ONEOK Inc | B24: OKE | C24: Oil & Gas Distribution | D24: 76.13 | E24: 68.2 | F24: 72.165 | G24: 75.67 | H24: =413239050-31777184 -> 381461866 | I24: 0 | J24: 12813704000
A25: TC Energy Corp | B25: TRP | C25: Oil & Gas Distribution | D25: 53.84 | E25: 49.68 | F25: =AVERAGE(D25,E25) -> 51.76 | G25: 53.31 | H25: 938400000 | I25: =3980000000/1.41 -> 2822695035 | J25: =(34280000000+8614000000+2705000000)/1.299 -> 3.510315627e+10
A26: William Companys Inc | B26: WMB | C26: Oil & Gas Distribution | D26: 23.94 | E26: 21.95 | F26: 22.945 | G26: 23.72 | H26: =1247000000-35000000 -> 1212000000 | I26: 35000000 | J26: 22288000000
D30: Dec. 31, 2019 | E30: Dec. 31, 2019 | G30: Dec. 31, 2019 | H30: Dec. 31, 2019 | I30: Dec. 31, 2019 | J30: Dec. 31, 2019
B31: Ticker | C31: Industry | D31: Common Stock | E31: Preferred Stock | G31: Long Term Debt * | H31: Total Market Value | I31: % Common Stock | J31: % LT Debt & Pref Stock
A32: Company | B32: Symbol | C32: Group | D32: FMV | E32: FMV | G32: FMV | H32: CS+LTD +PS
A33: VL | B33: VL | C33: VL | D33: Calculated | E33: 10K / SEC | G33: 10K / SEC | H33: Calculated | I33: Calculated | J33: Calculated
A35: =+A17 -> DCP Midstream LP | B35: DCP | C35: Pipeline MLPs | D35: =(+H17)*G17 -> 5101999937 | E35: =(1/1)*I17 -> 779000000 | G35: 6130000000 | H35: =+D35+E35+F35+G35 -> 1.201099994e+10 | I35: =(+D35)/H35 -> 0.4247772845 | J35: =(+E35+F35+G35)/H35 -> 0.5752227155
A36: Enable Midstream Partners LP | B36: ENBL | C36: Pipeline MLPs | D36: =(+H18)*G18 -> 4365069691 | E36: =(390/399)*I18 -> 353834586.5 | G36: =(4207/4243)*J18 -> 4337880038 | H36: =+D36+E36+F36+G36 -> 9056784315 | I36: 0.4819668371 | J36: =(+E36+F36+G36)/H36 -> 0.5180331629
A37: Enbridge Inc | B37: ENB.TO | C37: Oil & Gas Distribution | D37: =(+H19)*G19 -> 80534250000 | E37: 5494326241 | G37: =(70.5/64.4)*J19 -> 5.39901991e+10 | H37: 1.400187753e+11 | I37: 0.5751675074 | J37: 0.4248324926
A38: Enlink Midstream LLC | B38: ENLC | C38: Oil & Gas Distribution | D38: =(+H20)*G20 -> 2990162582 | E38: 1681600000 | G38: =(4444.2/4764.3)*J20 -> 4444200000 | H38: 9115962582 | I38: 0.3280139157 | J38: 0.6719860843
A39: Enterprise Products Partnership LP | B39: EPD | C39: Pipeline MLPs | D39: =(+H21)*G21 -> 6.164860782e+10 | E39: 0 | G39: =(30.37/27.15)*J21 -> 3.090144703e+10 | H39: 9.255005486e+10 | I39: 0.6661109809 | J39: 0.3338890191
A40: EQM Midstream Partnership LP | B40: EQM | C40: Pipeline MLPs | D40: 6205057713 | E40: 1183814000 | G40: =(5723849/5761999)*J22 -> 5723849000 | H40: 1.311272071e+10 | I40: 0.4732090196 | J40: 0.5267909804
A41: Kinder Morgan Inc | B41: KMI | C41: Oil & Gas Distribution | D41: 4.794869626e+10 | E41: 0 | G41: 38016000000 | H41: 8.596469626e+10 | I41: 0.55777195 | J41: 0.44222805
A42: ONEOK Inc | B42: OKE | C42: Oil & Gas Distribution | D42: 2.88652194e+10 | E42: 0 | G42: 13800000000 | H42: 4.26652194e+10 | I42: 0.6765515285 | J42: 0.3234484715
A43: TC Energy Corp | B43: TRP | C43: Oil & Gas Distribution | D43: =(+H25)*G25 -> 50026104000 | E43: 2822695035 | G43: =(51964/45599)*J25 -> 4.000307929e+10 | H43: 9.285187833e+10 | I43: 0.5387732042 | J43: 0.4612267958
A44: William Companys Inc | B44: WMB | C44: Oil & Gas Distribution | D44: 28748640000 | E44: 35000000 | G44: 22414000000 | H44: 51197640000 | I44: 0.5615227577 | J44: 0.4384772423
A46: CAD = 1.299 USD=1
H47: RANGE | I47: 32.80% - 67.66% | J47: 32.34% - 67.20%
H48: Median | I48: =MEDIAN(I35:I44) -> 0.5482725771 | J48: =MEDIAN(J35:J44) -> 0.4517274229
H49: Average | I49: =AVERAGE(I35:I44) -> 0.5283864986 | J49: =AVERAGE(J35:J44) -> 0.4716135014
H51: SAY | I51: 0.55 | J51: 0.45

Sheet Debt_GP
A1: KENTUCKY DEPARTMENT OF REVENUE
A2: DIVISION OF STATE VALUATION, PUBLIC SERVICE BRANCH
A3: 2020 Tax Year
A5: Industry > Gas Pipeline Companies
B7: Ticker | C7: Industry | D7: Beta | E7: Actual | F7: Financial | G7: S&P | H7: Moody's /Mergent Bond | I7: Mergent Bond
A8: Company | B8: Symbol | C8: Group | E8: Tax Rate | F8: Strength | G8: Rating | H8: Rating | I8: Debt Rate
A9: VL | B9: VL | C9: VL | D9: VL | E9: VL | F9: VL | G9: S&P | H9: Mergent Bond | I9: Mergent Bond
A11: DCP Midstream LP | B11: DCP | C11: Pipeline MLPs | D11: 1.75 | E11: 0.027 | F11: B+ | G11: BB | H11: Ba / Ba2 | I11: 0.0613
A12: Enable Midstream Partners LP | B12: ENBL | C12: Pipeline MLPs | D12: 1.25 | E12: 0.05 | F12: B+ | G12: BBB- | H12: Baa3 | I12: 0.0393
A13: Enbridge Inc | B13: ENB.TO | C13: Oil & Gas Distribution | D13: 1 | E13: 0.07 | F13: B++ | G13: BBB | H13: Baa2 | I13: 0.0393
A14: Enlink Midstream LLC | B14: ENLC | C14: Oil & Gas Distribution | D14: 1.8 | E14: 0 | F14: C+ | G14: BB+ | H14: Ba1 | I14: 0.0569
A15: Enterprise Products Partnership LP | B15: EPD | C15: Pipeline MLPs | D15: 1.25 | E15: 0.015 | F15: B++ | G15: BBB+ | H15: Baa / Ba1 | I15: 0.0393
A16: EQM Midstream Partners LP | B16: EQM | C16: Pipeline MLPs | D16: 1.15 | E16: 0 | F16: B++ | G16: BBB- | H16: Ba1 | I16: 0.0569
A17: Kinder Morgan Inc | B17: KMI | C17: Oil & Gas Distribution | D17: 1.4 | E17: 0.21 | F17: B | G17: BBB | H17: Baa2 | I17: 0.0393
A18: ONEOK Inc | B18: OKE | C18: Oil & Gas Distribution | D18: 1.45 | E18: 0.21 | F18: B+ | G18: BBB- | H18: Baa3 | I18: 0.0393
A19: TC Energy Corp | B19: TRP | C19: Oil & Gas Distribution | D19: 1.05 | E19: 0.25 | F19: B++ | G19: BBB | H19: Baa2 | I19: 0.0393
A20: William Companys Inc | B20: WMB | C20: Oil & Gas Distribution | D20: 1.9 | E20: 0.23 | F20: B | G20: BBB- | H20: Baa3 | I20: 0.0393
C22: RANGE | D22: 1.00 - 1.90 | E22: 0.00% - 25.00% | I22: 3.93% - 6.13%
C23: Median | D23: =MEDIAN(D11:D20) -> 1.325 | E23: =MEDIAN(E11:E20) -> 0.06 | G23: BBB | H23: Baa2 | I23: =MEDIAN(I11:I20) -> 0.0393
C24: Average | D24: =AVERAGE(D11:D20) -> 1.4 | E24: =AVERAGE(E11:E20) -> 0.1062 | I24: =AVERAGE(I11:I20) -> 0.04502
H26: Say | I26: 0.0393

Sheet CF Multiples_GP
A1: KENTUCKY DEPARTMENT OF REVENUE
A2: DIVISION OF STATE VALUATION, PUBLIC SERVICE BRANCH
A3: 2020 Tax Year
A5: Industry > Gas Pipeline Companies
E7: CASH FLOW MULTIPLIERS
E8: YEAR END 12/31/2019
B11: Ticker | E11: Cash Flow | F11: Cash Flow | G11: Computed
A12: Company | B12: Symbol | D12: Price | E12: Per Share | F12: Multiple | G12: Inverse
D13: VL | E13: VL Actual 2019 CF
A15: DCP Midstream LP | B15: DCP | C15: Pipeline MLPs | D15: 19.86 | E15: 1.7 | F15: =D15/E15 -> 11.68235294 | G15: =1/F15 -> 0.08559919436
A16: Enable Midstream Partners LP | B16: ENBL | C16: Pipeline MLPs | D16: 8.5 | E16: 1.9 | F16: =D16/E16 -> 4.473684211 | G16: =1/F16 -> 0.2235294118
A17: Enbridge Inc | B17: ENB.TO | C17: Oil & Gas Distribution | D17: 54.94 | E17: 4.12 | F17: 13.33495146 | G17: 0.07499089916
A18: Enlink Midstream LLC | B18: ENLC | C18: Oil & Gas Distribution | D18: 4.56 | E18: 0.8 | F18: 5.7 | G18: 0.1754385965
A19: Enterprise Products Partnership LP | B19: EPD | C19: Pipeline MLPs | D19: 25.97 | E19: 2.95 | F19: 8.803389831 | G19: 0.1135926069
A20: EQM Midstream Partners LP | B20: EQM | C20: Pipeline MLPs | D20: 22.05 | E20: 5.9 | F20: 3.737288136 | G20: 0.2675736961
A21: Kinder Morgan Inc | B21: KMI | C21: Oil & Gas Distribution | D21: 22.01 | E21: 2.03 | F21: 10.84236453 | G21: 0.09223080418
A22: ONEOK Inc | B22: OKE | C22: Oil & Gas Distribution | D22: 76.94 | E22: 4.25 | F22: 18.10352941 | G22: 0.05523784767
A23: TC Energy Corp | B23: TRP | C23: Oil & Gas Distribution | D23: 56.61 | E23: 5.66 | F23: 10.00176678 | G23: 0.09998233528
A24: Williams Companys Inc | B24: WMB | C24: Oil & Gas Distribution | D24: 21.49 | E24: 2.4 | F24: 8.954166667 | G24: 0.1116798511
B26: RANGE | D26: 4.56-76.94 | E26: .80-5.90 | F26: 3.74-18.10 | G26: 5.52%-26.76%
B27: Median | D27: =MEDIAN(D15:D24) -> 22.03 | E27: =MEDIAN(E15:E24) -> 2.675 | F27: =MEDIAN(F15:F24) -> 9.477966726 | G27: =MEDIAN(G15:G24) -> 0.1058310932
B28: Average | D28: =AVERAGE(D15:D24) -> 31.293 | E28: =AVERAGE(E15:E24) -> 3.171 | F28: =AVERAGE(F15:F24) -> 9.563349397 | G28: =AVERAGE(G15:G24) -> 0.1299855243
F30: SAY | G30: 0.1058
A33: Companies added to the study >
A35: Enlink Midstream LLC (ENLC) - Transports, stores, sells natural gas liquids and crude oil. They have 12,000 miles of pipeline.
A36: EQM Midstream Partners LP (EQM) - Midstream natural gas transmission in the Appalachian basin. Engaged in natural gas transmission, storage, and gatthering services. EQT Corp is 74% of revenues.
A39: Companies excluded from the study >
A41: AmeriGas Partners (APU) - Primarily engaged in the marketing and distribution of propane. Not applicable to gas and/or fluid transportation pipeline services. MLP
A42: Andeavor Logistics LP (AMDX) - Removed, Was acquired by MPLX LP on July 30th, 2019. No longer listed on stock indexes.
A43: Antero Midstream Parters (AM) - Primarily gathers and processes natural gas (some oil). Also engaged mid stream activities and hydro facturing & processing. Not applicable to fluid transportation pipeline services. Nat Gas Diversified
A44: Boardwalk Pipeline (BWP) - Not Used. No longer publicly traded.
A45: Cheniere Energy Partners (CQP) - Not Used. On the gulf coast (Louisiana). NGL facilities engaged in shipping gas worldwide via ships. A few pipelines.
A46: Enlink Midstream Partners LP (ENLK) - Primarily oil / gas exploration, production, gathering, and some transmission. Company recently acquired by EnLink Midstream LLC
A47: MDU Resources (MDU) - Mainly in construction materials and contracting. They do have pipeline servcies representing 1% of revenues. Too small and more like a utility. Nat Gas Diversified
A48: MPLX LP - Primarily oil transporation. Some gas transmission. See liquid pipelines. MLP
A49: National Fuel Gas (NFG) - Primarily independent exploration and production company. Not applicable to Gas pipeline transportation services. Nat Gas Diversified
A50: Spectra Energy Partners LP (SEP) and Spectra Energy Corp - Not used. No longer publicly traded. Acquired by Enbridge.
A51: Suburban Propane (SPH) - Primarily engaged in the marketing and distribution of propane and fuel oil to retail customers. Not applicable to gas pipeline services or the fluid transportation pipeline services. MLP

Sheet CapRate_LQ PL
C1: KENTUCKY DEPARTMENT OF REVENUE
C2: DIVISION OF STATE VALUATION, PUBLIC SERVICE BRANCH
C4: 2020 Tax Year
C5: DIRECT CAPITALIZATION RATE STUDY
C11: LIQUID PIPELINE COMPANIES
C12: Cash Flow Direct Capitalization Rate
A14: Source of | B14: Capital | C14: Cost of | D14: Tax | E14: Cost of Capital | F14: Weighted
A15: Capital | B15: Structure | C15: Capital | D15: Rate | E15: After Tax | F15: Cost
A18: EQUITY | B18: 0.54 | C18: 0.1146 | D18: - | E18: =+C18 -> 0.1146 | F18: =+E18*B18 -> 0.061884
A20: DEBT | B20: 0.46 | C20: 0.0481 | D20: 0.26 | E20: =+C20*(1-D20) -> 0.035594 | F20: =+B20*E20 -> 0.01637324
A22: TOTAL | B22: =+B18+B20 -> 1 | F22: =+F18+F20 -> 0.07825724
E24: SAY | F24: 0.0783

Sheet S&D_LQ PL
A1: KENTUCKY DEPARTMENT OF REVENUE
A2: DIVISION OF STATE VALUATION, PUBLIC SERVICE BRANCH
A3: 2020 Tax Year
A5: The capital structure of this industry is a representative or typical capital structure of the group, not that of the present owner. The capital structure selected reflects the most likely arrangement of a prospective buyer.
A8: Industry > Pipeline Companies
H10: Dec. 31, 2019
D11: 4th Qtr | E11: 4th Qtr | F11: 4th Qtr | H11: Common Stock | I11: Dec. 31, 2019 | J11: Dec. 31, 2019
B12: Ticker | C12: Industry | D12: Stock Price | E12: Stock Price | F12: Average | G12: Dec. 31, 2018 | H12: Shares Outstanding | I12: Preferred Stock | J12: Long Term Debt
A13: Company | B13: Symbol | C13: Group | D13: High | E13: Low | F13: Stock Price | G13: Stock Price | H13: Net of Treasury | I13: BV | J13: BV
A14: VL | B14: VL | C14: VL | D14: Yahoo | E14: Yahoo | F14: Yahoo | G14: Yahoo | H14: 10K / SEC | I14: 10K / SEC | J14: 10K / SEC
A15: DCP Midstream LP | B15: DCP | C15: Pipeline MLPs | D15: 26.14 | E15: 20.64 | F15: =AVERAGE(D15,E15) -> 23.39 | G15: 24.49 | H15: 208329928 | I15: 779000000 | J15: =5321000000+603000000+12000000 -> 5936000000
A16: Enable Midstream Partners LP | B16: ENBL | C16: Pipeline MLPs | D16: 11.79 | E16: 8.95 | F16: 10.37 | G16: 10.03 | H16: 435201365 | I16: =362000000 -> 362000000 | J16: =3969000000+251000000+155000000 -> 4375000000
A17: Enterprise Products Partnership | B17: EPD | C17: Pipeline MLPs | D17: 28.59 | E17: 25.15 | F17: 26.87 | G17: 28.16 | H17: 2189226130 | I17: 0 | J17: 27625100000
A18: EQM Midstream Partnership LP | B18: EQM | C18: Pipeline MLPs | D18: 33.1 | E18: 21.54 | F18: 27.32 | G18: 29.91 | H18: =200457630+7000000 -> 207457630 | I18: =1183814000 -> 1183814000 | J18: =4859499000+902500000 -> 5761999000
A19: Holly Energy Partners LP | B19: HEP | C19: Pipeline MLPs | D19: 25.31 | E19: 21.26 | F19: 23.285 | G19: 22.15 | H19: 105440201 | I19: =49392000 -> 49392000 | J19: 1462031000
A20: Magellan Midstream Partners | B20: MMP | C20: Pipeline MLPs | D20: 65.77 | E20: 58.47 | F20: 62.12 | G20: 62.87 | H20: 228403000 | I20: 0 | J20: 4706075000
A21: MPLX, LP | B21: MPLX | C21: Pipeline MLPs | D21: 27.91 | E21: 22.63 | F21: 25.27 | G21: 25.46 | H21: =1058355471+600000 -> 1058955471 | I21: =968000000 -> 968000000 | J21: 19704000000
A22: NuStar Energy LP | B22: NS | C22: Pipeline MLPs | D22: 29.43 | E22: 25.59 | F22: 27.51 | G22: 25.85 | H22: 108527806 | I22: =756301000+581935000 -> 1338236000 | J22: =2934918000+452367000 -> 3387285000
A23: Phillips 66 Partners LP | B23: PSXP | C23: Pipeline MLPs | D23: 62.77 | E23: 54.06 | F23: 58.415 | G23: 61.64 | H23: =58539439+169760137 -> 228299576 | I23: 746000000 | J23: 3516000000
A24: Plains All American Pipeline LP | B24: PAA | C24: Pipeline MLPs | D24: 20.55 | E24: 16.86 | F24: 18.705 | G24: 18.39 | H24: 728028576 | I24: 2292000000 | J24: =8939000000+248000000 -> 9187000000
D28: Dec. 31, 2019 | E28: Dec. 31, 2019 | F28: Dec. 31, 2019 | G28: Dec. 31, 2019 | H28: Dec. 31, 2019 | I28: Dec. 31, 2019
B29: Ticker | C29: Industry | D29: Common Stock | E29: Preferred Stock | F29: Long Term Debt * | G29: Total Market Value | H29: % Common Stock | I29: % LT Debt
A30: Company | B30: Symbol | C30: Group | D30: FMV | E30: FMV | F30: FMV | G30: CS+LTD +PS
A31: VL | B31: VL | C31: VL | D31: Calculated | E31: 10K / SEC | F31: 10K / SEC | G31: Calculated | H31: Calculated | I31: Calculated
A32: =+A15 -> DCP Midstream LP | B32: DCP | C32: Pipeline MLPs | D32: =(+H15)*G15 -> 5101999937 | E32: =(1/1)*I15 -> 779000000 | F32: 6130000000 | G32: =+D32+E32+F32 -> 1.201099994e+10 | H32: =(+D32)/G32 -> 0.4247772845 | I32: =(+E32+F32)/G32 -> 0.5752227155
A33: Enable Midstream Partners LP | B33: ENBL | C33: Pipeline MLPs | D33: =(+H16)*G16 -> 4365069691 | E33: =(390/399)*I16 -> 353834586.5 | F33: =(4207/4243)*J16 -> 4337880038 | G33: =+D33+E33+F33 -> 9056784315 | H33: 0.4819668371 | I33: =(+E33+F33)/G33 -> 0.5180331629
A34: Enterprise Products Partnership | B34: EPD | C34: Pipeline MLPs | D34: =(+H17)*G17 -> 6.164860782e+10 | E34: =(1/1)*I17 -> 0 | F34: =(30.37/27.15)*J17 -> 3.090144703e+10 | G34: 9.255005486e+10 | H34: 0.6661109809 | I34: 0.3338890191
A35: EQM Midstream Partnership LP | B35: EQM | C35: Pipeline MLPs | D35: =(+H18)*G18 -> 6205057713 | E35: =(1/1)*I18 -> 1183814000 | F35: =(5723849/5761999)*J18 -> 5723849000 | G35: 1.311272071e+10 | H35: 0.4732090196 | I35: 0.5267909804
A36: Holly Energy Partners LP | B36: HEP | C36: Pipeline MLPs | D36: 2335500452 | E36: 49392000 | F36: =(522045/496531)*J19 -> 1537156740 | G36: 3922049192 | H36: 0.5954796428 | I36: 0.4045203572
A37: Magellan Midstream Partners | B37: MMP | C37: Pipeline MLPs | D37: 14359696610 | E37: 0 | F37: =(5192685/4706075)*J20 -> 5192685000 | G37: 19552381610 | H37: 0.7344218672 | I37: 0.2655781328
A38: MPLX, LP | B38: MPLX | C38: Pipeline MLPs | D38: 2.696100629e+10 | E38: 968000000 | F38: =(21054/19800)*J21 -> 20951920000 | G38: 4.888092629e+10 | H38: 0.5515649628 | I38: 0.4484350372
A39: NuStar Energy LP | B39: NS | C39: Pipeline MLPs | D39: 2805443785 | E39: 1338236000 | F39: =(3442001/3331839)*J22 -> 3499280235 | G39: 7642960020 | H39: 0.3670624703 | I39: 0.6329375297
A40: Phillips 66 Partners LP | B40: PSXP | C40: Pipeline MLPs | D40: 1.407238586e+10 | E40: 746000000 | F40: =(3725/3516)*J23 -> 3725000000 | G40: 1.854338586e+10 | H40: 0.7588897717 | I40: 0.2411102283
A41: Plains All American Pipeline LP | B41: PAA | C41: Pipeline MLPs | D41: 1.338844551e+10 | E41: 2292000000 | F41: =(9.3/9)*J24 -> 9493233333 | G41: 2.517367885e+10 | H41: 0.5318430252 | I41: 0.4681569748
G43: RANGE | H43: 36.71% - 75.89% | I43: 24.11% - 63.29%
G44: Median | H44: =MEDIAN(H32:H41) -> 0.541703994 | I44: =MEDIAN(I32:I41) -> 0.458296006
G45: Average | H45: =AVERAGE(H32:H41) -> 0.5585325862 | I45: =AVERAGE(I32:I41) -> 0.4414674138
G47: SAY | H47: 0.54 | I47: 0.46

Sheet Debt_LQ PL
A1: KENTUCKY DEPARTMENT OF REVENUE
A2: DIVISION OF STATE VALUATION, PUBLIC SERVICE BRANCH
A3: 2020 Tax Year
A5: Industry > Liquid Pipeline Companies
B7: Ticker | C7: Industry | D7: Beta | E7: Actual | F7: Financial | G7: S&P | H7: Mergent Bond | I7: Mergent Bond
A8: Company | B8: Symbol | C8: Group | E8: Tax Rate | F8: Strength | G8: Rating | H8: Rating | I8: Debt Rate
A9: VL | B9: VL | C9: VL | D9: VL | E9: VL | F9: VL | G9: S&P | H9: Mergent Bond | I9: Mergent Bond
A11: DCP Midstream LP | B11: DCP | C11: Pipeline MLPs | D11: 1.75 | E11: 0.027 | F11: B+ | G11: BB | H11: Ba2 / Ba | I11: 6.13
A12: Enable Midstream Partners LP | B12: ENBL | C12: Pipeline MLPs | D12: 1.25 | E12: 0.05 | F12: B+ | G12: BBB- | H12: Baa3 | I12: 3.93
A13: Enterprise Products Partnership LP | B13: EPD | C13: Pipeline MLPs | D13: 1.25 | E13: 0.015 | F13: B++ | G13: BBB+ | H13: Baa | I13: 3.93
A14: EQM Midstream Partnership LP | B14: EQM | C14: Pipeline MLPs | D14: 1.15 | E14: 0 | F14: B++ | G14: BBB- | H14: Ba1 | I14: 5.69
A15: Holly Energy Partners | B15: HEP | C15: Pipeline MLPs | D15: 1 | E15: 0.001 | F15: B | H15: Ba2 | I15: 6.13
A16: Magellan Midstream Partners LP | B16: MMP | C16: Pipeline MLPs | D16: 1.05 | E16: 0.005 | F16: B++ | H16: Baa1 / Baa | I16: 3.93
A17: MPLX, LP | B17: MPLX | C17: Pipeline MLPs | D17: 1.35 | E17: 0.005 | F17: B+ | H17: Baa2 | I17: 3.93
A18: NuStar Energy LP | B18: NS | C18: Pipeline MLPs | D18: 1.5 | E18: 0.15 | F18: B+ | G18: BB- | H18: Ba2 | I18: 6.13
A19: Phillips 66 Partners LP | B19: PSXP | C19: Pipeline MLPs | D19: 0.95 | E19: 0 | F19: B++ | H19: Baa3 | I19: 3.93
A20: Plains All American Pipeline LP | B20: PAA | C20: Pipeline MLPs | D20: 1.45 | E20: 0.04 | F20: B+ | G20: BBB | H20: Ba1 / Ba | I20: 5.69
C22: RANGE | D22: .95 - 1.75 | E22: 0.00% - 15.00% | I22: 3.93% - 6.13%
C23: Median | D23: =MEDIAN(D11:D20) -> 1.25 | E23: =MEDIAN(E11:E20) -> 0.01 | F23: B+ | G23: BBB | H23: Baa3 | I23: =MEDIAN(I11:I20) -> 4.81
C24: Average | D24: =AVERAGE(D11:D20) -> 1.27 | E24: =AVERAGE(E11:E20) -> 0.0293 | I24: =AVERAGE(I11:I20) -> 4.942
H26: SAY | I26: 0.0481

Sheet CF Multiples_LQ PL
A1: KENTUCKY DEPARTMENT OF REVENUE
A2: DIVISION OF STATE VALUATION, PUBLIC SERVICE BRANCH
A3: 2020 Tax Year
A5: Industry > Liquid Pipeline Companies
E7: CASH FLOW MULTIPLIERS
E8: YEAR END 12/31/2019
E9: Valueline Date 3/1/2020
B11: Ticker | E11: Cash Flow | F11: Cash Flow | G11: Computed
A12: Company | B12: Symbol | D12: Price | E12: Per Share | F12: Multiple | G12: Inverse
D13: VL | E13: VL Actual 2019 CF
A14: DCP Midstream LP | B14: DCP | C14: Pipeline MLPs | D14: 19.86 | E14: 1.7 | F14: =D14/E14 -> 11.68235294 | G14: =1/F14 -> 0.08559919436
A15: Enable Midstream Partners LP | B15: ENBL | C15: Pipeline MLPs | D15: 8.5 | E15: 1.9 | F15: =D15/E15 -> 4.473684211 | G15: =1/F15 -> 0.2235294118
A16: Enterprise Products Partnership LP | B16: EPD | C16: Pipeline MLPs | D16: 25.97 | E16: 2.95 | F16: =D16/E16 -> 8.803389831 | G16: =1/F16 -> 0.1135926069
A17: EQM Midstream Partnership LP | B17: EQM | C17: Pipeline MLPs | D17: 22.05 | E17: 5.9 | F17: =D17/E17 -> 3.737288136 | G17: =1/F17 -> 0.2675736961
A18: Holly Energy Partners LP | B18: HEP | C18: Pipeline MLPs | D18: 23.35 | E18: 2.7 | F18: =D18/E18 -> 8.648148148 | G18: =1/F18 -> 0.1156316916
A19: Magellan Midstream Partners LP | B19: MMP | C19: Pipeline MLPs | D19: 60.43 | E19: 5.55 | F19: 10.88828829 | G19: 0.09184180043
A20: MPLX, LP | B20: MPLX | C20: Pipeline MLPs | D20: 23.81 | E20: 2.05 | F20: 11.61463415 | G20: 0.08609827803
A21: NuStar Energy LP | B21: NS | C21: Pipeline MLPs | D21: 27.46 | E21: 4.4 | F21: 6.240909091 | G21: 0.1602330663
A22: Phillips 66 Partners LP | B22: PSXP | C22: Pipeline MLPs | D22: 61.59 | E22: 4.6 | F22: 13.38913043 | G22: 0.07468744926
A23: Plains All American Pipeline LP | B23: PAA | C23: Pipeline MLPs | D23: 16.32 | E23: 3.5 | F23: 4.662857143 | G23: 0.2144607843
B25: RANGE | D25: 8.50-61.59 | E25: 2.05-5.90 | F25: 3.74-13.39 | G25: 7.47% - 26.76%
B26: Median | D26: =MEDIAN(D14:D23) -> 23.58 | E26: =MEDIAN(E14:E23) -> 3.225 | F26: =MEDIAN(F14:F23) -> 8.725768989 | G26: =MEDIAN(G14:G23) -> 0.1146121493
B27: Average | D27: =AVERAGE(D14:D23) -> 28.934 | E27: =AVERAGE(E14:E23) -> 3.525 | F27: =AVERAGE(F14:F23) -> 8.414068237 | G27: =AVERAGE(G14:G23) -> 0.1433247979
F29: SAY | G29: 0.1146
A31: Companies excluded from the study >
A33: AmeriGas Partners (APU) - Primarily engaged in the marketing and distribution of propane. Not applicable to fluid transportation pipeline services.
A34: Andeavor Logistics LP - Removed, Was acquired by MPLX LP on July 30th, 2019. No longer listed on stock indexes.
A35: Antero Midstream Parters (AM) - Primarily gathers and processes natural gas (some oil). Also engaged mid stream activities and hydro facturing & processing. Not applicable to fluid transportation pipeline services.
A36: Boardwalk Pipeline - Not Used. No longer publicly traded.
A37: Buckeye Partners LP - Removed Acquired/merged by IFM investors. No longer publicly traded.
A38: Cheniere Energy Partners (CQP) - Engages in LNG business and related natural gas pipelines. MLP
A39: Energy Transfer LP (ET) - Acquired SemGroup Corporation Dec. 2019. Now called Energy Transfer LP. Will be used in the future. Involved in interstate & intrastate transportation of crude oil, natural gas, NGLs and refined products.
A40: Suburban Propane (SPH) - Primarily engaged in the marketing and distribution of propane and fuel oil to retail customers. Not applicable to fluid transportation pipeline services.
A41: Shell Midstream Partners LP (SHLX) - Owns 2.6% of the explorer pipeline that is engaged in the transportation of oil products. Too small.
A42: Spectra Energy Partners LP (SEP) and Spectra Energy Corp - Not used. No longer publicly traded.
A43: Tallgrass Energy Partners (TEP) and Tallgrass Energy GP, LP (TEGP) - Not used. No longer publicly traded.
A44: Western Gas Partners LP (WES) - Not used. Merger took place in Feb. 2019. Company involved in gathering and midstream processing in Rocky mountains and Texas.
A45: Valero Energy Partners (VLP) - Not Used. No longer publicly traded. Acquired by Valero Energy Corp.
A48: Companies added to the study >
A50: EQM Midstream Partners (EQM) - Midstream natural gas transmission in the Appalachian basin.

Sheet CapRate_Private Water
C1: KENTUCKY DEPARTMENT OF REVENUE
C2: DIVISION OF STATE VALUATION, PUBLIC SERVICE BRANCH
C4: 2020 Tax Year
C5: DIRECT CAPITALIZATION RATE STUDY
C11: PRIVATE WATER COMPANIES
C12: Cash Flow Direct Capitalization Rate
A14: Source of | B14: Capital | C14: Cost of | D14: Tax | E14: Cost of Capital | F14: Weighted
A15: Capital | B15: Structure | C15: Capital | D15: Rate | E15: After Tax | F15: Cost
A18: EQUITY | B18: 0.76 | C18: 0.0439 | D18: - | E18: =+C18 -> 0.0439 | F18: =+E18*B18 -> 0.033364
A20: DEBT | B20: 0.24 | C20: 0.0337 | D20: 0.26 | E20: =+C20*(1-D20) -> 0.024938 | F20: =+B20*E20 -> 0.00598512
A22: TOTAL | B22: =+B18+B20 -> 1 | F22: =+F18+F20 -> 0.03934912
E24: SAY | F24: 0.0393
D25: `

Sheet S&D_Private Water
A1: KENTUCKY DEPARTMENT OF REVENUE
A2: DIVISION OF STATE VALUATION, PUBLIC SERVICE BRANCH
A3: 2020 Tax Year
A6: The capital structure of this industry is a representative or typical capital structure of the group, not that of the present owner. The capital structure selected reflects the most likely arrangement of a prospective buyer.
A9: Industry > Private Water Companies
D11: * | E11: * | H11: Dec. 31, 2019
D12: 4th Qtr | E12: 4th Qtr | F12: 4th Qtr | H12: Common Stock | I12: Dec. 31, 2019 | J12: Dec. 31, 2019
B13: Ticker | C13: Industry | D13: Stock Price | E13: Stock Price | F13: Average | G13: Dec. 31, 2019 | H13: Shares Outstanding | I13: Preferred Stock | J13: Long Term Debt
A14: Company | B14: Symbol | C14: Group | D14: High | E14: Low | F14: Stock Price | G14: Stock Price | H14: Net of Treasury | I14: BV | J14: BV
A15: VL | B15: VL | C15: VL | D15: Yahoo | E15: Yahoo | F15: Yahoo | G15: Yahoo | H15: 10K / SEC | I15: 10K / SEC | J15: 10K / SEC
A17: American States Water Company | B17: AWR | C17: Water Utility | D17: 95.13 | E17: 84.04 | F17: =AVERAGE(D17,E17) -> 89.585 | G17: 86.64 | H17: 36846614 | I17: 0 | J17: 284699000
A18: American Water Works Company Inc | B18: AWK | C18: Water Utility | D18: 125.78 | E18: 115.38 | F18: =AVERAGE(D18,E18) -> 120.58 | G18: 122.85 | H18: =185903727-5090855 -> 180812872 | I18: 0 | J18: =8644000000+28000000 -> 8672000000
A19: California Water Service Group | B19: CWT | C19: Water Utility | D19: 56.1 | E19: 49.33 | F19: 52.715 | G19: 51.56 | H19: 48532000 | I19: 0 | J19: =786754000+21868000 -> 808622000
A20: Essential Utilities, Inc. | B20: WTRG | C20: Water Utility | D20: 46.94 | E20: 43.2 | F20: =AVERAGE(D20,E20) -> 45.07 | G20: 46.94 | H20: =223871284-3112565 -> 220758719 | I20: 0 | J20: 3077400000
A21: Middlesex Water Company | B21: MSEX | C21: Water Utility | D21: 67.25 | E21: 59.03 | F21: 63.14 | G21: 63.57 | H21: 17434000 | I21: 2084000 | J21: =230777000+7178000 -> 237955000
A22: SJW Corporation | B22: SJW | C22: Water Utility | D22: 74.47 | E22: 67.16 | F22: 70.815 | G22: 71.06 | H22: 28456508 | I22: 0 | J22: =1283597000+22272000 -> 1305869000
A23: The York Water Company | B23: YORW | C23: Water Utility | D23: 46.75 | E23: 41.6 | F23: 44.175 | G23: 46.11 | H23: 13014898 | I23: 0 | J23: =94535000+6500000+2815000+192000 -> 104042000
D30: Dec. 31, 2019 | E30: Dec. 31, 2019 | F30: Dec. 31, 2019 | G30: Dec. 31, 2019 | H30: Dec. 31, 2019 | I30: Dec. 31, 2019
B31: Ticker | C31: Industry | D31: Common Stock | E31: Preferred Stock | F31: Long Term Debt * | G31: Total Market Value | H31: % Common Stock | I31: % LT Debt & Pref Stock
A32: Company | B32: Symbol | C32: Group | D32: FMV | E32: FMV | F32: FMV | G32: CS+LTD +PS
A33: VL | B33: VL | C33: VL | D33: Calculated | E33: 10K / SEC | F33: 10K / SEC | G33: Calculated | H33: Calculated | I33: Calculated
A35: =+A17 -> American States Water Company | B35: AWR | C35: Water Utility | D35: =+G17*H17 -> 3192390637 | E35: =(1/1)*I17 -> 0 | F35: =(376467/284699)*J17 -> 376467000 | G35: =+D35+E35+F35 -> 3568857637 | H35: =(+D35)/G35 -> 0.8945133042 | I35: =(E35+F35)/G35 -> 0.1054866958
A36: American Water Works Company Inc | B36: AWK | C36: Water Utility | D36: 2.221286133e+10 | E36: =(15/12)*I18 -> 0 | F36: =(9770/8664)*J18 -> 9779021237 | G36: =+D36+E36+F36 -> 3.199188256e+10 | H36: =(+D36)/G36 -> 0.6943280466 | I36: =(E36+F36)/G36 -> 0.3056719534
A37: California Water Service Group | B37: CWT | C37: Water Utility | D37: 2502309920 | E37: =(1/1)*I19 -> 0 | F37: =(873454/808622)*J19 -> 873454000 | G37: 3375763920 | H37: 0.7412573803 | I37: 0.2587426197
A38: Essential Utilities, Inc. | B38: WTRG | C38: Water Utility | D38: =+G20*H20 -> 1.036241427e+10 | E38: =(1/1)*I20 -> 0 | F38: =(3324377/3077400)*J20 -> 3324377000 | G38: 1.368679127e+10 | H38: 0.7571105649 | I38: 0.2428894351
A39: Middlesex Water Company | B39: MSEX | C39: Water Utility | D39: 1108279380 | E39: =(1/1)*I21 -> 2084000 | F39: =(160772/151361)*J21 -> 252750056.2 | G39: 1363113436 | H39: 0.8130500005 | I39: 0.1869499995
A40: SJW Corporation | B40: SJW | C40: Water Utility | D40: 2022119458 | E40: 0 | F40: 1396205000 | G40: 3418324458 | H40: 0.5915528157 | I40: 0.4084471843
A41: The York Water Company | B41: YORW | C41: Water Utility | D41: 600116946.8 | E41: 0 | F41: =(115000/104042)*J23 -> 115000000 | G41: 715116946.8 | H41: 0.839187142 | I41: 0.160812858
G45: RANGE | H45: 59.16% - 89.45% | I45: 10.55% - 40.84%
G46: Median | H46: =MEDIAN(H35:H41) -> 0.7571105649 | I46: =MEDIAN(I35:I41) -> 0.2428894351
G47: Average | H47: =AVERAGE(H35:H41) -> 0.761571322 | I47: =AVERAGE(I35:I41) -> 0.238428678
G49: SAY | H49: 0.76 | I49: 0.24

Sheet Debt_Private Water
A1: KENTUCKY DEPARTMENT OF REVENUE
A2: DIVISION OF STATE VALUATION, PUBLIC SERVICE BRANCH
A3: 2020 Tax Year
A5: Industry > Private Water Companies
B7: Ticker | C7: Industry | D7: Beta | E7: Actual | F7: Financial | G7: S&P Bond | H7: S&P Bond | I7: Mergent Bond | J7: Mergent Bond
A8: Company | B8: Symbol | C8: Group | E8: Tax Rate | F8: Strength | G8: Rating | H8: Debt Rate | I8: Rating | J8: Debt Rate
A9: VL | B9: VL | C9: VL | D9: VL | E9: VL | F9: VL | G9: S&P | H9: S&P | I9: Mergent | J9: Mergent
A12: American States Water Company | B12: AWR | C12: Water Utility | D12: 0.65 | E12: 0.23 | F12: A | G12: A+ | H12: 0.0337 | I12: A1 | J12: 0.0337
A13: American Water Works Company Inc | B13: AWK | C13: Water Utility | D13: 0.55 | E13: 0.21 | F13: B+ | G13: A | H13: 0.0337 | I13: Baa1 | J13: 0.0393
A14: California Water Service Group | B14: CWT | C14: Water Utility | D14: 0.7 | E14: 0.21 | F14: B++ | G14: B- | H14: 0.0789 | I14: B3 | J14: 0.0789
A15: Essential Utilities, Inc. | B15: WTRG | C15: Water Utility | D15: 0.65 | E15: 0.07 | F15: A | G15: A | H15: 0.0337 | I15: A2 | J15: 0.0337
A16: Middlesex Water Company | B16: MSEX | C16: Water Utility | D16: 0.75 | E16: 0.21 | F16: B++ | G16: A | H16: 0.0337 | I16: Baa1 | J16: 0.0393
A17: SJW Corporation | B17: SJW | C17: Water Utility | D17: 0.6 | E17: 0.21 | F17: B+ | G17: A / A- | H17: 0.0337 | I17: A2 / A3 | J17: 0.0337
A18: The York Water Company | B18: YORW | C18: Water Utility | D18: 0.7 | E18: 0.21 | F18: B+ | G18: A- | H18: 0.0337 | I18: A3 | J18: 0.0337
C20: RANGE | D20: 0.55 - .75 | E20: 7.00% - 23.00% | H20: 3.37% - 7.89% | J20: 3.37% - 7.89%
C21: Median | D21: =MEDIAN(D12:D18) -> 0.65 | E21: =MEDIAN(E12:E18) -> 0.21 | H21: =MEDIAN(H12:H18) -> 0.0337 | J21: =MEDIAN(J12:J18) -> 0.0337
C22: Average | D22: =SUM(D12:D18)/6 -> 0.7666666667 | E22: =SUM(E12:E18)/6 -> 0.225 | H22: =AVERAGE(H12:H18) -> 0.04015714286 | J22: =AVERAGE(J12:J18) -> 0.04175714286
I24: SAY | J24: 0.0337

Sheet CF Multiples_Private Water
A1: KENTUCKY DEPARTMENT OF REVENUE
A2: DIVISION OF STATE VALUATION, PUBLIC SERVICE BRANCH
A3: 2020 Tax Year
A5: Industry > Private Water Companies
D7: CASH FLOW MULTIPLIERS
D8: YEAR END 12/31/2019
D9: Valueline Date 1/11/2020
B11: Ticker | D11: Cash Flow | E11: Cash Flow | F11: Computed
A12: Company | B12: Symbol | C12: Price | D12: Per Share | E12: Multiple | F12: Inverse
C13: VL | D13: VL Actual 2019 CF
A16: American States Water Company | B16: AWR | C16: 87.33 | D16: 3.1 | E16: =C16/D16 -> 28.17096774 | F16: =1/E16 -> 0.03549753807
A17: American Water Works Company Inc | B17: AWK | C17: 123.05 | D17: 6.75 | E17: 18.22962963 | F17: 0.0548557497
A18: California Water Service Group | B18: CWT | C18: 51.52 | D18: 3.05 | E18: 16.89180328 | F18: 0.05920031056
A19: Essential Utilities, Inc. | B19: WTRG | C19: 47.08 | D19: 1.8 | E19: =C19/D19 -> 26.15555556 | F19: =1/E19 -> 0.03823279524
A20: Middlesex Water Company | B20: MSEX | C20: 63.56 | D20: 2.8 | E20: 22.7 | F20: 0.04405286344
A21: SJW Group Corporation | B21: SJW | C21: 71.79 | D21: 3.15 | E21: 22.79047619 | F21: 0.04387797743
A22: The York Water Company | B22: YORW | C22: 46.38 | D22: 1.75 | E22: 26.50285714 | F22: 0.03773178094
B24: RANGE | C24: 46.38-123.05 | D24: 1.75-6.75 | E24: 16.89-28.17 | F24: 3.55%-5.92%
B25: Median | C25: =MEDIAN(C16:C22) -> 63.56 | D25: =MEDIAN(D16:D22) -> 3.05 | E25: =MEDIAN(E16:E22) -> 22.79047619 | F25: =MEDIAN(F16:F22) -> 0.04387797743
B26: Average | C26: =AVERAGE(C16:C22) -> 70.10142857 | D26: =AVERAGE(D16:D22) -> 3.2 | E26: =AVERAGE(E16:E22) -> 23.06304136 | F26: =AVERAGE(F16:F22) -> 0.04477843077
E28: SAY | F28: 0.0439
A30: Companies excluded from this study include >
A32: Connecticut Water Service Inc | B32: Merged with SJW in Oct '19. No longer listed on Stock Market Indexes/Publically Traded.
A36: NOTE: Aqua America Inc. change its name to Essential Utilities Inc in February 2020

Sheet CapRate_RR
C1: KENTUCKY DEPARTMENT OF REVENUE
C2: DIVISION OF STATE VALUATION, PUBLIC SERVICE BRANCH
C4: 2020 Tax Year
C5: DIRECT CAPITALIZATION RATE STUDY
C11: RAILROAD COMPANIES
C12: Cash Flow Direct Capitalization Rate
A14: Source of | B14: Capital | C14: Cost of | D14: Tax | E14: Cost of Capital | F14: Weighted
A15: Capital | B15: Structure | C15: Capital | D15: Rate | E15: After Tax | F15: Cost
A18: EQUITY | B18: 0.81 | C18: 0.0643 | D18: - | E18: =+C18 -> 0.0643 | F18: =+E18*B18 -> 0.052083
A20: DEBT | B20: 0.19 | C20: 0.0393 | D20: 0.26 | E20: =+C20*(1-D20) -> 0.029082 | F20: =+B20*E20 -> 0.00552558
A22: TOTAL | B22: =+B18+B20 -> 1 | F22: =+F18+F20 -> 0.05760858
E24: SAY | F24: 0.0576

Sheet S&D_RR
A1: KENTUCKY DEPARTMENT OF REVENUE
A2: DIVISION OF STATE VALUATION, PUBLIC SERVICE BRANCH
A3: 2020 Tax Year
A6: The capital structure of this industry is a representative or typical capital structure of the group, not that of the present owner. The capital structure selected reflects the most likely arrangement of a prospective buyer.
A11: Industry > Railroads
H13: Dec. 31, 2019
D14: 4th Qtr | E14: 4th Qtr | F14: 4th Qtr | H14: Common Stock | I14: Dec. 31, 2019 | J14: Dec. 31, 2019
B15: Ticker | C15: Industry | D15: Stock Price | E15: Stock Price | F15: Average | G15: Dec. 31, 2019 | H15: Shares Outstanding | I15: Preferred Stock | J15: Long Term Debt
A16: Company | B16: Symbol | C16: Group | D16: High | E16: Low | F16: Stock Price | G16: Stock Price | H16: Net of Treasury | I16: BV | J16: BV
A17: VL | B17: VL | C17: VL | D17: Yahoo | E17: Yahoo | F17: Yahoo | G17: Yahoo | H17: 10K / SEC | I17: 10K / SEC | J17: 10K / SEC / $ US
A18: Canadian National | B18: CNI | C18: Railroad | D18: 94.81 | E18: 83.78 | F18: =AVERAGE(D18,E18) -> 89.295 | G18: 90.45 | H18: 712300000 | I18: 0 | J18: =13796000000/1.299 -> 1.062047729e+10
A19: Canadian Pacific | B19: CP | C19: Railroad | D19: 257.15 | E19: 207.97 | F19: =AVERAGE(D19,E19) -> 232.56 | G19: 254.95 | H19: 137000000 | I19: 0 | J19: =8757000000/1.299 -> 6741339492
A20: CSX Corp | B20: CSX | C20: Railroad | D20: 74.08 | E20: 65.86 | F20: 69.97 | G20: 72.36 | H20: 773000000 | I20: 0 | J20: 16238000000
A21: Kansas City Southern | B21: KSU | C21: Railroad | D21: 155.1 | E21: 126.58 | F21: 140.84 | G21: 153.16 | H21: 96115669 | I21: =5600000 -> 5600000 | J21: 3246000000
A22: Norfolk Southern | B22: NSC | C22: Railroad | D22: 196.95 | E22: 166.74 | F22: 181.845 | G22: 194.13 | H22: 257904956 | I22: 0 | J22: 12196000000
A23: Union Pacific Railroad | B23: UNP | C23: Railroad | D23: 181.41 | E23: 151.47 | F23: 166.44 | G23: 180.79 | H23: 692100651 | I23: 0 | J23: =23943000000+1257000000 -> 25200000000
D30: Dec. 31, 2019 | E30: Dec. 31, 2019 | G30: Dec. 31, 2019 | H30: Dec. 31, 2019 | I30: Dec. 31, 2019 | J30: Dec. 31, 2019
B31: Ticker | C31: Industry | D31: Common Stock | E31: Preferred Stock | G31: Long Term Debt * | H31: Total Market Value | I31: % Common Stock | J31: % LT Debt & Pref Stock
A32: Company | B32: Symbol | C32: Group | D32: FMV | E32: FMV | G32: FMV | H32: CS+LTD +PS
A33: VL | B33: VL | C33: VL | D33: Calculated | E33: 10K / SEC | G33: 10K / SEC | H33: Calculated | I33: Calculated | J33: Calculated
A34: =+A18 -> Canadian National | B34: CNI | C34: Railroad | D34: =(H18)*G18 -> 64427535000 | E34: =(1/1)*I18 -> 0 | G34: =(15667/13662)*J18 -> 1.217911124e+10 | H34: =+D34+E34+F34+G34 -> 7.660664624e+10 | I34: =(+D34)/H34 -> 0.841017564 | J34: =(E34+F34+G34)/H34 -> 0.158982436
A35: Canadian Pacific | B35: CP | C35: Railroad | D35: =(H19)*G19 -> 34928150000 | E35: =(1/1)*I19 -> 0 | G35: =(10149/8757)*J19 -> 7812933025 | H35: =+D35+E35+F35+G35 -> 4.274108303e+10 | I35: 0.8172032042 | J35: =(E35+F35+G35)/H35 -> 0.1827967958
A36: CSX Corp | B36: CSX | C36: Railroad | D36: =(H20)*G20 -> 55934280000 | E36: =(1/1)*I20 -> 0 | G36: =(18503/16238)*J20 -> 18503000000 | H36: 74437280000 | I36: 0.7514283166 | J36: 0.2485716834
A37: Kansas City Southern | B37: KSU | C37: Railroad | D37: =(H21)*G21 -> 1.472107586e+10 | E37: =(222625*26.39) -> 5875073.75 | G37: =(3535.7/3246)*J21 -> 3535700000 | H37: 1.826265094e+10 | I37: 0.8060755207 | J37: 0.1939244793
A38: Norfolk Southern | B38: NSC | C38: Railroad | D38: =(H22)*G22 -> 5.006708911e+10 | E38: =(1/1)*I22 -> 0 | G38: =(14806/12196)*J22 -> 14806000000 | H38: 6.487308911e+10 | I38: 0.7717697707 | J38: 0.2282302293
A39: Union Pacific Railroad | B39: UNP | C39: Railroad | D39: 1.251248767e+11 | E39: =(1/1)*I23 -> 0 | G39: =(27.2/25.2)*J23 -> 27200000000 | H39: 1.523248767e+11 | I39: 0.8214342884 | J39: 0.1785657116
A42: At Dec 31, 2019, the Exchange Rate was $1.299 Canadian per $1.00 US
H43: RANGE | I43: 74.59% - 83.66% | J43: 16.34% - 25.41%
H44: Median | I44: =MEDIAN(I34:I39) -> 0.8116393625 | J44: =MEDIAN(J34:J39) -> 0.1883606375
H45: Average | I45: =AVERAGE(I34:I39) -> 0.8014881108 | J45: =AVERAGE(J34:J39) -> 0.1985118892
H47: SAY | I47: 0.81 | J47: 0.19

Sheet Debt_RR
A1: KENTUCKY DEPARTMENT OF REVENUE
A2: DIVISION OF STATE VALUATION, PUBLIC SERVICE BRANCH
A3: 2020 Tax Year
A5: Industry > Railroad Companies
B7: Ticker | C7: Industry | D7: Beta | E7: Actual | F7: Financial | G7: S&P | H7: Mergent Bond | I7: Mergent Bond
A8: Company | B8: Symbol | C8: Group | E8: Tax Rate | F8: Strength | G8: Rating | H8: Rating | I8: Debt Rate
A9: VL | B9: VL | C9: VL | D9: VL | E9: VL | F9: VL | G9: S&P | H9: Mergent Bond | I9: Mergent Bond
A11: Canadian National | B11: CNI | C11: Railroad | D11: 1.05 | E11: 0.25 | F11: A | G11: A | H11: A2 | I11: 0.0337
A12: Canadian Pacific | B12: CP | C12: Railroad | D12: 1.15 | E12: 0.24 | F12: B++ | G12: BBB+ | H12: Baa1 | I12: 0.0393
A13: CSX Corp | B13: CSX | C13: Railroad | D13: 1.25 | E13: 0.24 | F13: B++ | G13: BBB+ | H13: Baa1 | I13: 0.0393
A14: Kansas City Southern | B14: KSU | C14: Railroad | D14: 1.1 | E14: 0.29 | F14: A | G14: BBB | H14: Baa2 | I14: 0.0393
A15: Norfolk Southern | B15: NSC | C15: Railroad | D15: 1.2 | E15: 0.24 | F15: A+ | G15: BBB+ | H15: Baa1 | I15: 0.0393
A16: Union Pacific | B16: UNP | C16: Railroad | D16: 1.15 | E16: 0.24 | F16: A++ | G16: BBB+ / A- | H16: Baa1 | I16: 0.0393
C18: RANGE | D18: 1.05 - 1.45 | E18: 24.00% - 29.00% | F18: A++ - B+ | G18: A - BBB- | H18: Aa2 - Baa3 | I18: 3.37% - 3.93%
C19: Median | D19: =AVERAGE(D12:D16) -> 1.17 | E19: =AVERAGE(E11:E16) -> 0.25 | F19: A | G19: BBB+ | H19: Baa1 | I19: =MEDIAN(I11:I16) -> 0.0393
C20: Average | D20: =MEDIAN(D12:D16) -> 1.15 | E20: =MEDIAN(E11:E16) -> 0.24 | I20: =AVERAGE(I11:I16) -> 0.03836666667
H22: Say | I22: 0.0393

Sheet CF Multiples_RR
A1: KENTUCKY DEPARTMENT OF REVENUE
A2: DIVISION OF STATE VALUATION, PUBLIC SERVICE BRANCH
A3: 2020 Tax Year
A5: Industry > Railroad Companies
D7: CASH FLOW MULTIPLIERS
D8: YEAR END 02/22/2020
D9: Valueline Date 2/22/2020
B11: Ticker | D11: Cash Flow | E11: Cash Flow | F11: Computed
A12: Company | B12: Symbol | C12: Price | D12: Per Share | E12: Multiple | F12: Inverse
C13: VL | D13: VL Actual 2019 CF
A16: Canadian National | B16: CNI | C16: 94.32 | D16: 6 | E16: =C16/D16 -> 15.72 | F16: =1/E16 -> 0.06361323155
A17: Canadian Pacific | B17: CP | C17: 270.15 | D17: 16.55 | E17: 16.32326284 | F17: 0.06126226171
A18: CSX Corp | B18: CSX | C18: 78.52 | D18: 6 | E18: 13.08666667 | F18: 0.07641365257
A19: Kansas City Southern | B19: KSU | C19: 170.24 | D19: 10.55 | E19: 16.13649289 | F19: 0.06197133459
A20: Norfolk Southern | B20: NSC | C20: 209.17 | D20: 14.95 | E20: 13.99130435 | F20: 0.07147296457
A21: Union Pacific | B21: UNP | C21: 183.3 | D21: 11.9 | E21: 15.40336134 | F21: 0.06492089471
B23: RANGE | C23: 78.52-270.15 | D23: 6.00-16.55 | E23: 13.09-16.32 | F23: 6.13 - 7.64
B24: Median | C24: =MEDIAN(C16:C21) -> 176.77 | D24: =MEDIAN(D16:D21) -> 11.225 | E24: =MEDIAN(E16:E21) -> 15.56168067 | F24: =MEDIAN(F16:F21) -> 0.06426706313
B25: Average | C25: =AVERAGE(C16:C21) -> 167.6166667 | D25: =AVERAGE(D16:D21) -> 10.99166667 | E25: =AVERAGE(E16:E21) -> 15.11018135 | F25: =AVERAGE(F16:F21) -> 0.06660905662
E27: SAY | F27: 0.0643
A30: Companies excluded from this study include >
A32: American Railcar Industries Inc - Designer and manufacturer of railcars. Not a railroad.
A33: GATX Corporation - Railcar lessor. Not a railroad.
A34: Genesee & Wyoming- Removed, was sold to infastructure asset management firm Brookfield Infastructure in '19. No longer listed on stock indexes as separate entity.
A35: GreenBrier Companies Inc. - Designer, manufacturer, plus repairs of railcars. Not a railroad.
A36: Trinity Industries Inc. - Manufacturer of railcars and component parts. Not a railroad.
